Workbook

Sheet 1. INFORMACION ACUMULADA
A2: VEEDURIA DISTRITAL - INFORMACIÓN GESTION CONTRACTUAL
A3: DEL 1 DE ENERO AL 31 DE DICIEMBRE DE 2022
A5: 1. Entidad | E5: FONDO DE DESARROLLO LOCAL DE CHAPINERO FDLCH | H5: 1. Entidad | I5: FONDO DE DESARROLLO LOCAL DE CHAPINERO FDLCH
A6: 2. Sector | E6: SECRETARIA DE GOBIERNO | H6: 2. Sector | I6: SECRETARIA DE GOBIERNO
A7: 3. Presupuesto Disponible Inversión Directa PREDIS (BOGDATA) | E7: 24421953191 | H7: 5. Presupuesto Disponible Funcionamiento PREDIS (BOGDATA) | I7: 2296264000 | AI7: 7. Nombre de quien diligencia el formato | AK7: JIMENA MARIA CARDONA DÍAZ
A8: 4. Presupuesto Comprometido de Inversión Directa según PREDIS (BOGDATA) | E8: 24296914848 | H8: 6. Presupuesto Comprometido Funcionamiento según PREDIS (BOGDATA) | I8: 2292232163 | AI8: Cargo | AK8: PROFESIONAL UNIVERSITARIO
AI9: Dependencia | AK9: CONTRATACIÓN
AI10: Teléfono | AK10: 601-3820660 Ext. 1017
AI11: Correo Electrónico | AK11: jimena.cardona@gobiernobogota.gov.co
A12: 1- INFORMACION GENERAL | V12: 2- INFORMACION FINANCIERA | AC12: 3 - PLAZOS | AI12: 4. CESION | AM12: 5. ESTADO | AN12: 6. % Avance y/o cumplimiento
A13: 1 | B13: 2 | C13: 3 | E13: 4 | F13: 5 | G13: 6 | H13: 7 | I13: 8 | N13: 9 | O13: 10 | P13: 11 | V13: 12 | W13: 13 | X13: 14 | Y13: 15 | Z13: 16 | AA13: 17 | AB13: 18 | AC13: 19 | AD13: 20 | AE13: 21 | AF13: 22 | AG13: 23 | AH13: 24 | AI13: 25 | AJ13: 26 | AK13: 27 | AL13: 28 | AM13: 29 | AN13: 30
A14: Número Contrato | B14: Año | C14: Número de proceso contractual SECOP | D14: Link proceso SECOP | E14: Tipo de contrato | F14: Modalidad de Selección | G14: Procedimiento o causal | H14: Objeto | I14: Afectación | J14: 1. Plan de Desarrollo Distrital | K14: Número Programa | L14: 3. Equivalencia número de programa | M14: 2. Propósito | N14: 4. Número Proyecto | O14: Número de proponentes | P14: Número de Identificación del contratista (Cédula o NIT sin puntos, comas ni caracteres especiales y sin digito de verificación) | Q14: Nombre del contratista (según el caso: nombres y apellidos o Razón social y Tipo societario) | R14: Naturaleza Jurídica | S14: Número de Identificación del integrante del Consorcio o U.T. (Cédula o NIT sin puntos, comas ni caracteres especiales y sin digito de verificación) | T14: Nombre del Integrante del Consorcio o U.T. y Tipo societario (Según el caso: nombres y apellidos o razón social y tipo societario) | U14: % Participación (indicar solo el numero del porcentaje, sin caracteres especiales) | V14: Vigencias futuras | W14: Valor Inicial del contrato | X14: Valor total reducciones (En valor negativo) | Y14: Número de adiciones | Z14: Valor total de adiciones | AA14: Valor Final | AB14: Giros (Valor en pesos) | AC14: Fecha de suscripción (DD/MM/AAAA) | AD14: Fecha de inicio (DD/MM/AAAA) | AE14: Fecha de terminación (DD/MM/AAAA) | AF14: Plazo en días | AG14: Número de prórrogas | AH14: Prorroga en días | AI14: Número de Identificación del cesionario (NIT sin digito de verificación) | AJ14: Nombre cesionario | AK14: Fecha cesión (DD/MM/AAAA) | AL14: Valor cesión | AM14: Estado | AN14: % Avance y/o Cumplimiento
A15: 1 | B15: 2022 | C15: FDLCH-CPS-001-2022-a | D15: https://community.secop.gov.co/Public/Tendering/OpportunityDetail/Index?noticeUID=CO1.NTC.2595420&isFromPublicArea=True&isModal=true&asPopupView=true | E15: Contratos de prestación de servicios profesionales y de apoyo a la gestión | F15: Contratación directa | G15: Prestación de servicios profesionales y de apoyo a la gestión, o para la ejecución de trabajos artísticos que sólo puedan encomendarse a determinadas personas naturales | H15: Prestar sevicios profesionales especializados para apoyar la organización y estructuracion de la gestión precontractual, contractual y postcontractual que adelante el Fondo de Desarrollo Local de Chapinero. | I15: Inversión | J15: Un nuevo contrato social y ambiental para la Bogotá del Siglo XXI | K15: 57 | L15: =IF(ISERROR(VLOOKUP(K15,[2]Proposito_programa!$C$2:$E$59,2,FALSE))," ",VLOOKUP(K15,[2]Proposito_programa!$C$2:$E$59,2,FALSE)) -> Gestión pública local | M15: =IF(ISERROR(VLOOKUP(K15,[2]Proposito_programa!$C$2:$E$59,3,FALSE))," ",VLOOKUP(K15,[2]Proposito_programa!$C$2:$E$59,3,FALSE)) -> Propósito 5: Construir Bogotá - Región con gobierno abierto, transparente y ciudadanía consciente | N15: 1741 | P15: 79580307 | Q15: CESAR FRUTO CORREDOR GOMEZ | R15: Persona Natural | W15: 60000000 | X15: 0 | Y15: 1 | Z15: 28750000 | AA15: =+W15+X15+Z15 -> 88750000 | AB15: 78000000 | AC15: 2022-01-18 | AD15: 2022-01-19 | AE15: 2023-01-13 | AF15: 240 | AG15: 1 | AH15: 115 | AM15: En ejecución | AN15: 0.9
A16: 2 | B16: 2022 | C16: FDLCH-CPS-002-2022 | D16: https://community.secop.gov.co/Public/Tendering/OpportunityDetail/Index?noticeUID=CO1.NTC.2601263&isFromPublicArea=True&isModal=true&asPopupView=true | E16: Contratos de prestación de servicios profesionales y de apoyo a la gestión | F16: Contratación directa | G16: Prestación de servicios profesionales y de apoyo a la gestión, o para la ejecución de trabajos artísticos que sólo puedan encomendarse a determinadas personas naturales | H16: Prestar servicios profesionales para el apoyo al área de gestión del desarrollo local de la Alcaldía Local de Chapinero en la formulación gestión ejecución desarrollo y seguimiento de los procesos de formación y transformación ambiental en la Localidad, así como el apoyo a la supervisión de los contratos que le sean asignados por el Alcalde Local. | I16: Inversión | J16: Un nuevo contrato social y ambiental para la Bogotá del Siglo XXI | K16: 27 | L16: =IF(ISERROR(VLOOKUP(K16,[2]Proposito_programa!$C$2:$E$59,2,FALSE))," ",VLOOKUP(K16,[2]Proposito_programa!$C$2:$E$59,2,FALSE)) -> Cambio cultural para la gestión de la crisis climática | M16: =IF(ISERROR(VLOOKUP(K16,[2]Proposito_programa!$C$2:$E$59,3,FALSE))," ",VLOOKUP(K16,[2]Proposito_programa!$C$2:$E$59,3,FALSE)) -> Propósito 2 : Cambiar Nuestros Hábitos de Vida para Reverdecer a Bogotá y Adaptarnos y Mitigar la Crisis Climática | N16: 1712 | P16: 13925122 | Q16: RAUL MESA MESA | R16: Persona Natural | W16: 36000000 | Y16: 1 | Z16: 18000000 | AA16: 54000000 | AB16: 38400000 | AC16: 2022-01-19 | AD16: 2022-01-19 | AE16: 2022-08-01 | AF16: 180 | AG16: 1 | AH16: 90 | AM16: Terminado | AN16: 1
A17: 3 | B17: 2022 | C17: FDLCH-CPS-003-2022 | D17: https://community.secop.gov.co/Public/Tendering/OpportunityDetail/Index?noticeUID=CO1.NTC.2602911&isFromPublicArea=True&isModal=true&asPopupView=true | E17: Contratos de prestación de servicios profesionales y de apoyo a la gestión | F17: Contratación directa | G17: Prestación de servicios profesionales y de apoyo a la gestión, o para la ejecución de trabajos artísticos que sólo puedan encomendarse a determinadas personas naturales | H17: Prestar los servicios profesionales para apoyar el área de gestión del desarrollo local de la alcaldía local de chapinero, en la formulación, gestión, ejecución y apoyo a la supervisión de los proyectos relacionados con la prevención, atención de la violencia intrafamiliar y sexual y la eliminación de las violencias basadas en género en el marco del programa sistema distrital de cuidado. | I17: Inversión | J17: Un nuevo contrato social y ambiental para la Bogotá del Siglo XXI | K17: 6 | L17: =IF(ISERROR(VLOOKUP(K17,[2]Proposito_programa!$C$2:$E$59,2,FALSE))," ",VLOOKUP(K17,[2]Proposito_programa!$C$2:$E$59,2,FALSE)) -> Sistema Distrital de Cuidado | M17: =IF(ISERROR(VLOOKUP(K17,[2]Proposito_programa!$C$2:$E$59,3,FALSE))," ",VLOOKUP(K17,[2]Proposito_programa!$C$2:$E$59,3,FALSE)) -> Propósito 1: Hacer un nuevo contrato social para incrementar la inclusión social, productiva y política | N17: 1710 | P17: 52559313 | Q17: ALICIA CUJABAN ZAZA | R17: Persona Natural | W17: 41600000 | X17: 0 | Y17: 3 | Z17: 19066666 | AA17: =+W17+X17+Z17 -> 60666666 | AB17: =41600000+5200000+9706667 -> 56506667 | AC17: 2022-01-18 | AD17: 2022-01-20 | AE17: 2023-01-07 | AF17: 240 | AG17: 3 | AH17: 109 | AM17: En ejecución | AN17: 0.9
A18: 4 | B18: 2022 | C18: FDLCH-CPS-004-2022 | D18: https://community.secop.gov.co/Public/Tendering/OpportunityDetail/Index?noticeUID=CO1.NTC.2600599&isFromPublicArea=True&isModal=true&asPopupView=true | E18: Contratos de prestación de servicios profesionales y de apoyo a la gestión | F18: Contratación directa | G18: Prestación de servicios profesionales y de apoyo a la gestión, o para la ejecución de trabajos artísticos que sólo puedan encomendarse a determinadas personas naturales | H18: Prestar los servicios de apoyo necesarios para la conducción de los vehículos que conforman el parque automotor en propiedad o custodia del fondo de desarrollo local de chapinero, y el transporte de servidores públicos para la realización de las actividades misionales de la alcaldía local de chapinero. | I18: Inversión | J18: Un nuevo contrato social y ambiental para la Bogotá del Siglo XXI | K18: 57 | L18: =IF(ISERROR(VLOOKUP(K18,[2]Proposito_programa!$C$2:$E$59,2,FALSE))," ",VLOOKUP(K18,[2]Proposito_programa!$C$2:$E$59,2,FALSE)) -> Gestión pública local | M18: =IF(ISERROR(VLOOKUP(K18,[2]Proposito_programa!$C$2:$E$59,3,FALSE))," ",VLOOKUP(K18,[2]Proposito_programa!$C$2:$E$59,3,FALSE)) -> Propósito 5: Construir Bogotá - Región con gobierno abierto, transparente y ciudadanía consciente | N18: 1741 | P18: 1018407451 | Q18: EMERSON HERNANDO HUERTAS FONSECA | R18: Persona Natural | W18: 20800000 | X18: 0 | Y18: 2 | Z18: =1473333+8926666 -> 10399999 | AA18: 31199999 | AB18: =20800000+7540000 -> 28340000 | AC18: 2022-01-19 | AD18: 2022-01-19 | AE18: 17/01/2023 | AF18: 240 | AG18: 2 | AH18: 120 | AM18: En ejecución | AN18: 0.9
A19: 5 | B19: 2022 | C19: FDLCH-CPS-005-2022 | D19: https://community.secop.gov.co/Public/Tendering/OpportunityDetail/Index?noticeUID=CO1.NTC.2601293&isFromPublicArea=True&isModal=true&asPopupView=true | E19: Contratos de prestación de servicios profesionales y de apoyo a la gestión | F19: Contratación directa | G19: Prestación de servicios profesionales y de apoyo a la gestión, o para la ejecución de trabajos artísticos que sólo puedan encomendarse a determinadas personas naturales | H19: Prestar servicios técnicos de apoyo a la gestión al área de Gestión del Desarrollo Local en las actividades administrativas requeridas en el proceso de planeación, así como en el seguimiento, uso y soporte de herramientas y aplicativos en cumplimiento de los objetivos del Plan de Desarrollo Local. | I19: Inversión | J19: Un nuevo contrato social y ambiental para la Bogotá del Siglo XXI | K19: 57 | L19: =IF(ISERROR(VLOOKUP(K19,[2]Proposito_programa!$C$2:$E$59,2,FALSE))," ",VLOOKUP(K19,[2]Proposito_programa!$C$2:$E$59,2,FALSE)) -> Gestión pública local | M19: =IF(ISERROR(VLOOKUP(K19,[2]Proposito_programa!$C$2:$E$59,3,FALSE))," ",VLOOKUP(K19,[2]Proposito_programa!$C$2:$E$59,3,FALSE)) -> Propósito 5: Construir Bogotá - Región con gobierno abierto, transparente y ciudadanía consciente | N19: 1741 | P19: 1033699910 | Q19: JULIAN ANDRES JAIME ALARCON | R19: Persona Natural | W19: 33600000 | X19: 0 | Y19: 1 | Z19: 16240000 | AA19: 49840000 | AB19: =33600000+12180000 -> 45780000 | AC19: 2022-01-18 | AD19: 2022-01-19 | AE19: 2023-01-13 | AF19: 240 | AG19: 1 | AH19: 116 | AM19: En ejecución | AN19: 0.9
A20: 6 | B20: 2022 | C20: FDLCH-CPS-006-2022 | D20: https://community.secop.gov.co/Public/Tendering/OpportunityDetail/Index?noticeUID=CO1.NTC.2600047&isFromPublicArea=True&isModal=true&asPopupView=true | E20: Contratos de prestación de servicios profesionales y de apoyo a la gestión | F20: Contratación directa | G20: Prestación de servicios profesionales y de apoyo a la gestión, o para la ejecución de trabajos artísticos que sólo puedan encomendarse a determinadas personas naturales | H20: Prestar servicios de apoyo a la gestión en la ejecución de las actividades administrativas y documentales relacionadas con la gestión policiva en la alcaldía local de chapinero. | I20: Inversión | J20: Un nuevo contrato social y ambiental para la Bogotá del Siglo XXI | K20: 57 | L20: =IF(ISERROR(VLOOKUP(K20,[2]Proposito_programa!$C$2:$E$59,2,FALSE))," ",VLOOKUP(K20,[2]Proposito_programa!$C$2:$E$59,2,FALSE)) -> Gestión pública local | M20: =IF(ISERROR(VLOOKUP(K20,[2]Proposito_programa!$C$2:$E$59,3,FALSE))," ",VLOOKUP(K20,[2]Proposito_programa!$C$2:$E$59,3,FALSE)) -> Propósito 5: Construir Bogotá - Región con gobierno abierto, transparente y ciudadanía consciente | N20: 1841 | P20: 37626709 | Q20: LUDY MARCELA MORENO SUAREZ | R20: Persona Natural | W20: 17600000 | X20: 0 | Y20: 2 | Z20: 8799996 | AA20: 26399996 | AB20: =17600000+6306667 -> 23906667 | AC20: 2022-01-19 | AD20: 2022-01-20 | AE20: 2023-01-18 | AF20: 240 | AG20: 2 | AH20: 120 | AM20: En ejecución | AN20: 0.9
A21: 7 | B21: 2022 | C21: FDLCH-CPS-007-2022 | D21: https://community.secop.gov.co/Public/Tendering/OpportunityDetail/Index?noticeUID=CO1.NTC.2601994&isFromPublicArea=True&isModal=true&asPopupView=true | E21: Contratos de prestación de servicios profesionales y de apoyo a la gestión | F21: Contratación directa | G21: Prestación de servicios profesionales y de apoyo a la gestión, o para la ejecución de trabajos artísticos que sólo puedan encomendarse a determinadas personas naturales | H21: Prestación de servicios de apoyo necesarios para apoyar la gestión y ejecución de actividades administrativas, logísticas y operativas que se adelantan en el área de gestión del desarrollo local de la alcaldía local de chapinero | I21: Inversión | J21: Un nuevo contrato social y ambiental para la Bogotá del Siglo XXI | K21: 57 | L21: =IF(ISERROR(VLOOKUP(K21,[2]Proposito_programa!$C$2:$E$59,2,FALSE))," ",VLOOKUP(K21,[2]Proposito_programa!$C$2:$E$59,2,FALSE)) -> Gestión pública local | M21: =IF(ISERROR(VLOOKUP(K21,[2]Proposito_programa!$C$2:$E$59,3,FALSE))," ",VLOOKUP(K21,[2]Proposito_programa!$C$2:$E$59,3,FALSE)) -> Propósito 5: Construir Bogotá - Región con gobierno abierto, transparente y ciudadanía consciente | N21: 1741 | P21: 2996195 | Q21: MEYER JAIRO GACHARNA VILLALBA | R21: Persona Natural | W21: 20000000 | X21: 0 | Y21: 2 | Z21: =8200+8583333+1416667 -> 10008200 | AA21: 30008200 | AB21: 27250000 | AC21: 2022-01-19 | AD21: 2022-01-19 | AE21: 17/01/2023 | AF21: 240 | AG21: 2 | AH21: 120 | AM21: En ejecución | AN21: 0.9
A22: 8 | B22: 2022 | C22: FDLCH-CPS-008-2022 | D22: https://community.secop.gov.co/Public/Tendering/OpportunityDetail/Index?noticeUID=CO1.NTC.2598989&isFromPublicArea=True&isModal=true&asPopupView=true | E22: Contratos de prestación de servicios profesionales y de apoyo a la gestión | F22: Contratación directa | G22: Prestación de servicios profesionales y de apoyo a la gestión, o para la ejecución de trabajos artísticos que sólo puedan encomendarse a determinadas personas naturales | H22: Prestar servicios de apoyo a la gestión para desarrollar las actividades de radicación, gestión de correspondencia y de la documentación que expide, se allega y controla de la Alcaldía Local de Chapinero. | I22: Inversión | J22: Un nuevo contrato social y ambiental para la Bogotá del Siglo XXI | K22: 57 | L22: =IF(ISERROR(VLOOKUP(K22,[2]Proposito_programa!$C$2:$E$59,2,FALSE))," ",VLOOKUP(K22,[2]Proposito_programa!$C$2:$E$59,2,FALSE)) -> Gestión pública local | M22: =IF(ISERROR(VLOOKUP(K22,[2]Proposito_programa!$C$2:$E$59,3,FALSE))," ",VLOOKUP(K22,[2]Proposito_programa!$C$2:$E$59,3,FALSE)) -> Propósito 5: Construir Bogotá - Región con gobierno abierto, transparente y ciudadanía consciente | N22: 1741 | P22: 1031147236 | Q22: DEISY YINETH FRANCO PENAGOS | R22: Persona Natural | W22: 20800000 | X22: 0 | Y22: 2 | Z22: =8926667+1473333 -> 10400000 | AA22: 31200000 | AB22: 28340000 | AC22: 2022-01-19 | AD22: 2022-01-19 | AE22: 17/01/2023 | AF22: 240 | AG22: 2 | AH22: 120 | AM22: En ejecución | AN22: 0.9
A23: 9 | B23: 2022 | C23: FDLCH-CPS-009-2022 | D23: https://community.secop.gov.co/Public/Tendering/OpportunityDetail/Index?noticeUID=CO1.NTC.2595478&isFromPublicArea=True&isModal=true&asPopupView=true | E23: Contratos de prestación de servicios profesionales y de apoyo a la gestión | F23: Contratación directa | G23: Prestación de servicios profesionales y de apoyo a la gestión, o para la ejecución de trabajos artísticos que sólo puedan encomendarse a determinadas personas naturales | H23: Prestar servicios personales para apoyar actividades operativas y administrativas de la gestión precontractual, contractual y postcontractual que adelante el fondo de desarrollo local de chapinero. | I23: Inversión | J23: Un nuevo contrato social y ambiental para la Bogotá del Siglo XXI | K23: 57 | L23: =IF(ISERROR(VLOOKUP(K23,[2]Proposito_programa!$C$2:$E$59,2,FALSE))," ",VLOOKUP(K23,[2]Proposito_programa!$C$2:$E$59,2,FALSE)) -> Gestión pública local | M23: =IF(ISERROR(VLOOKUP(K23,[2]Proposito_programa!$C$2:$E$59,3,FALSE))," ",VLOOKUP(K23,[2]Proposito_programa!$C$2:$E$59,3,FALSE)) -> Propósito 5: Construir Bogotá - Región con gobierno abierto, transparente y ciudadanía consciente | N23: 1741 | P23: 52733935 | Q23: PAOLA YUREXY QUIROGA CUBILLOS | R23: Persona Natural | W23: 21600000 | X23: 0 | Y23: 1 | Z23: 10800000 | AA23: 32400000 | AB23: 28080000 | AC23: 2022-01-18 | AD23: 2022-01-19 | AE23: 2023-01-18 | AF23: 240 | AG23: 1 | AH23: 120 | AM23: En ejecución | AN23: 0.9
A24: 10 | B24: 2022 | C24: FDLCH-CPS-010-2022 | D24: https://community.secop.gov.co/Public/Tendering/OpportunityDetail/Index?noticeUID=CO1.NTC.2596643&isFromPublicArea=True&isModal=true&asPopupView=true | E24: Contratos de prestación de servicios profesionales y de apoyo a la gestión | F24: Contratación directa | G24: Prestación de servicios profesionales y de apoyo a la gestión, o para la ejecución de trabajos artísticos que sólo puedan encomendarse a determinadas personas naturales | H24: Prestar servicios personales para apoyar actividades operativas y administrativas de la gestión precontractual, contractual y postcontractual que adelante el Fondo de Desarrollo Local de Chapinero“. | I24: Inversión | J24: Un nuevo contrato social y ambiental para la Bogotá del Siglo XXI | K24: 57 | L24: =IF(ISERROR(VLOOKUP(K24,[2]Proposito_programa!$C$2:$E$59,2,FALSE))," ",VLOOKUP(K24,[2]Proposito_programa!$C$2:$E$59,2,FALSE)) -> Gestión pública local | M24: =IF(ISERROR(VLOOKUP(K24,[2]Proposito_programa!$C$2:$E$59,3,FALSE))," ",VLOOKUP(K24,[2]Proposito_programa!$C$2:$E$59,3,FALSE)) -> Propósito 5: Construir Bogotá - Región con gobierno abierto, transparente y ciudadanía consciente | N24: 1741 | P24: 52119337 | Q24: MARTHA YANETH VASQUEZ FIGUEROA | R24: Persona Natural | W24: 21600000 | X24: 0 | Y24: 1 | Z24: 10800000 | AA24: 32400000 | AB24: 29430000 | AC24: 2022-01-18 | AD24: 2022-01-19 | AE24: 2023-01-18 | AF24: 240 | AG24: 1 | AH24: 120 | AM24: En ejecución | AN24: 0.9
A25: 11 | B25: 2022 | C25: FDLCH-CPS-011-2022 | D25: https://community.secop.gov.co/Public/Tendering/OpportunityDetail/Index?noticeUID=CO1.NTC.2598440&isFromPublicArea=True&isModal=true&asPopupView=true | E25: Contratos de prestación de servicios profesionales y de apoyo a la gestión | F25: Contratación directa | G25: Prestación de servicios profesionales y de apoyo a la gestión, o para la ejecución de trabajos artísticos que sólo puedan encomendarse a determinadas personas naturales | H25: Prestar servicios profesionale spara apoyar el área de gestión del desarrollo local de la Alcaldía Local de Chapinero, en la gestión, formulación, desarrollo, seguimiento y evaluación del proyecto de inversión " Chapinero es primera infancia dle programa educación inicial: Bases sólidas para la vida. | I25: Inversión | J25: Un nuevo contrato social y ambiental para la Bogotá del Siglo XXI | K25: 12 | L25: =IF(ISERROR(VLOOKUP(K25,[2]Proposito_programa!$C$2:$E$59,2,FALSE))," ",VLOOKUP(K25,[2]Proposito_programa!$C$2:$E$59,2,FALSE)) -> Educación inicial: Bases sólidas para la vida. | M25: =IF(ISERROR(VLOOKUP(K25,[2]Proposito_programa!$C$2:$E$59,3,FALSE))," ",VLOOKUP(K25,[2]Proposito_programa!$C$2:$E$59,3,FALSE)) -> Propósito 1: Hacer un nuevo contrato social para incrementar la inclusión social, productiva y política | N25: 1830 | P25: 52312234 | Q25: CLAUDIA MARCELA LOPEZ SERRATO | R25: Persona Natural | W25: 48000000 | X25: 0 | Y25: 1 | Z25: 24000000 | AA25: 72000000 | AB25: 65400000 | AC25: 2022-01-18 | AD25: 2022-01-19 | AE25: 2023-01-18 | AF25: 240 | AG25: 1 | AH25: 120 | AM25: En ejecución | AN25: 0.9
A26: 12 | B26: 2022 | C26: FDLCH-CPS-012-2022 | D26: https://community.secop.gov.co/Public/Tendering/OpportunityDetail/Index?noticeUID=CO1.NTC.2599596&isFromPublicArea=True&isModal=true&asPopupView=true | E26: Contratos de prestación de servicios profesionales y de apoyo a la gestión | F26: Contratación directa | G26: Prestación de servicios profesionales y de apoyo a la gestión, o para la ejecución de trabajos artísticos que sólo puedan encomendarse a determinadas personas naturales | H26: Prestación de servicios de apoyo a la gestión necesarios para el apoyo en la ejecución de actividades administrativas y operativas adelantadas en la Junta Administradora Local de Chapinero. | I26: Inversión | J26: Un nuevo contrato social y ambiental para la Bogotá del Siglo XXI | K26: 57 | L26: =IF(ISERROR(VLOOKUP(K26,[2]Proposito_programa!$C$2:$E$59,2,FALSE))," ",VLOOKUP(K26,[2]Proposito_programa!$C$2:$E$59,2,FALSE)) -> Gestión pública local | M26: =IF(ISERROR(VLOOKUP(K26,[2]Proposito_programa!$C$2:$E$59,3,FALSE))," ",VLOOKUP(K26,[2]Proposito_programa!$C$2:$E$59,3,FALSE)) -> Propósito 5: Construir Bogotá - Región con gobierno abierto, transparente y ciudadanía consciente | N26: 1741 | P26: 52523548 | Q26: SANDRA MILENA GOMEZ SALAZAR | R26: Persona Natural | W26: 20000000 | X26: 0 | Y26: 2 | Z26: =8500000+1500000 -> 10000000 | AA26: 30000000 | AB26: 27250000 | AC26: 2022-01-19 | AD26: 2022-01-19 | AE26: 2023-01-18 | AF26: 240 | AG26: 2 | AH26: 120 | AM26: En ejecución | AN26: 0.9
A27: 13 | B27: 2022 | C27: FDLCH-CPS-013-2022 | D27: https://community.secop.gov.co/Public/Tendering/OpportunityDetail/Index?noticeUID=CO1.NTC.2602741&isFromPublicArea=True&isModal=true&asPopupView=true | E27: Contratos de prestación de servicios profesionales y de apoyo a la gestión | F27: Contratación directa | G27: Prestación de servicios profesionales y de apoyo a la gestión, o para la ejecución de trabajos artísticos que sólo puedan encomendarse a determinadas personas naturales | H27: Prestar los servicios profesionales de apoyo a la gestión para la planeación, gestión, formulación, desarrollo, seguimiento y evaluación del proyecto de inversión "En chapinero todas contamos", en atención al fortalecimiento de la capacidad de gestión del Fondo de Desarrollo Local. | I27: Inversión | J27: Un nuevo contrato social y ambiental para la Bogotá del Siglo XXI | K27: 40 | L27: =IF(ISERROR(VLOOKUP(K27,[2]Proposito_programa!$C$2:$E$59,2,FALSE))," ",VLOOKUP(K27,[2]Proposito_programa!$C$2:$E$59,2,FALSE)) -> Más mujeres viven una vida libre de violencias, se sienten seguras y acceden con confianza al sistema de justicia | M27: =IF(ISERROR(VLOOKUP(K27,[2]Proposito_programa!$C$2:$E$59,3,FALSE))," ",VLOOKUP(K27,[2]Proposito_programa!$C$2:$E$59,3,FALSE)) -> Propósito 3: Inspirar confianza y legitimidad para vivir sin miedo y ser epicentro de cultura ciudadana, paz y reconciliación | N27: 2035 | P27: 53108000 | Q27: LEIDY VIVIANA ORTIZ GUEVARA | R27: Persona Natural | W27: 40000000 | X27: -4833334 | AA27: 35166666 | AB27: 35166666 | AC27: 2022-01-20 | AD27: 2022-01-20 | AE27: 2022-08-20 | AF27: 240 | AM27: Terminado | AN27: 1
A28: 14 | B28: 2022 | C28: FDLCH-CPS-014-2022 | D28: https://community.secop.gov.co/Public/Tendering/OpportunityDetail/Index?noticeUID=CO1.NTC.2597195&isFromPublicArea=True&isModal=False | E28: Contratos de prestación de servicios profesionales y de apoyo a la gestión | F28: Contratación directa | G28: Prestación de servicios profesionales y de apoyo a la gestión, o para la ejecución de trabajos artísticos que sólo puedan encomendarse a determinadas personas naturales | H28: Prestar servicios profesionales para apoyar la gestión precontractual, contractual y postcontractual que adelante el Fondo de Desarrollo Local de Chapinero. | I28: Inversión | J28: Un nuevo contrato social y ambiental para la Bogotá del Siglo XXI | K28: 57 | L28: =IF(ISERROR(VLOOKUP(K28,[2]Proposito_programa!$C$2:$E$59,2,FALSE))," ",VLOOKUP(K28,[2]Proposito_programa!$C$2:$E$59,2,FALSE)) -> Gestión pública local | M28: =IF(ISERROR(VLOOKUP(K28,[2]Proposito_programa!$C$2:$E$59,3,FALSE))," ",VLOOKUP(K28,[2]Proposito_programa!$C$2:$E$59,3,FALSE)) -> Propósito 5: Construir Bogotá - Región con gobierno abierto, transparente y ciudadanía consciente | N28: 1741 | P28: 1078368894 | Q28: JENNYFER PAOLA GALVIS TORRES | R28: Persona Natural | W28: 44000000 | X28: 0 | Y28: 1 | Z28: 22000000 | AA28: 66000000 | AB28: 59950000 | AC28: 2022-01-18 | AD28: 2022-01-19 | AE28: 2023-01-18 | AF28: 240 | AG28: 1 | AH28: 120 | AM28: En ejecución | AN28: 0.9
A29: 15 | B29: 2022 | C29: FDLCH-CPS-015-2022 | D29: https://community.secop.gov.co/Public/Tendering/OpportunityDetail/Index?noticeUID=CO1.NTC.2598515&isFromPublicArea=True&isModal=true&asPopupView=true | E29: Contratos de prestación de servicios profesionales y de apoyo a la gestión | F29: Contratación directa | G29: Prestación de servicios profesionales y de apoyo a la gestión, o para la ejecución de trabajos artísticos que sólo puedan encomendarse a determinadas personas naturales | H29: Apoyar jurídicamente la ejecución de las acciones requeridas para la depuración de las actuaciones administrativas que cursan en la Alcaldía Local. | I29: Inversión | J29: Un nuevo contrato social y ambiental para la Bogotá del Siglo XXI | K29: 57 | L29: =IF(ISERROR(VLOOKUP(K29,[2]Proposito_programa!$C$2:$E$59,2,FALSE))," ",VLOOKUP(K29,[2]Proposito_programa!$C$2:$E$59,2,FALSE)) -> Gestión pública local | M29: =IF(ISERROR(VLOOKUP(K29,[2]Proposito_programa!$C$2:$E$59,3,FALSE))," ",VLOOKUP(K29,[2]Proposito_programa!$C$2:$E$59,3,FALSE)) -> Propósito 5: Construir Bogotá - Región con gobierno abierto, transparente y ciudadanía consciente | N29: 1841 | P29: 1075247785 | Q29: KATHERINE RODRIGUEZ QUINTERO | R29: Persona Natural | W29: 27600000 | X29: 0 | Y29: 1 | Z29: 13800000 | AA29: 41400000 | AB29: =13800000+27600000 -> 41400000 | AC29: 2022-01-18 | AD29: 2022-01-20 | AE29: 28/10/2022 | AF29: 180 | AG29: 1 | AH29: 90 | AM29: Terminado | AN29: 1
A30: 16 | B30: 2022 | C30: FDLCH-CPS-016-2022 | D30: https://community.secop.gov.co/Public/Tendering/OpportunityDetail/Index?noticeUID=CO1.NTC.2602010&isFromPublicArea=True&isModal=true&asPopupView=true | E30: Contratos de prestación de servicios profesionales y de apoyo a la gestión | F30: Contratación directa | G30: Prestación de servicios profesionales y de apoyo a la gestión, o para la ejecución de trabajos artísticos que sólo puedan encomendarse a determinadas personas naturales | H30: Prestación de servicios de apoyo a la gestión necesarios para el apoyo en la ejecución de actividades administrativas y operativas adelantadas en la Junta Administradora Local de Chapinero. | I30: Inversión | J30: Un nuevo contrato social y ambiental para la Bogotá del Siglo XXI | K30: 57 | L30: =IF(ISERROR(VLOOKUP(K30,[2]Proposito_programa!$C$2:$E$59,2,FALSE))," ",VLOOKUP(K30,[2]Proposito_programa!$C$2:$E$59,2,FALSE)) -> Gestión pública local | M30: =IF(ISERROR(VLOOKUP(K30,[2]Proposito_programa!$C$2:$E$59,3,FALSE))," ",VLOOKUP(K30,[2]Proposito_programa!$C$2:$E$59,3,FALSE)) -> Propósito 5: Construir Bogotá - Región con gobierno abierto, transparente y ciudadanía consciente | N30: 1741 | P30: 1018448341 | Q30: PEDRO ANGEL ZABALETA POLO | R30: Persona Natural | W30: 20000000 | X30: 0 | Y30: 2 | Z30: =8333333+1666667 -> 10000000 | AA30: 30000000 | AB30: 27083333 | AC30: 2022-01-20 | AD30: 2022-01-21 | AE30: 2023-01-20 | AF30: 240 | AG30: 2 | AH30: 120 | AM30: En ejecución | AN30: 0.9
A31: 17 | B31: 2022 | C31: FDLCH-CPS-017-2022 | D31: https://community.secop.gov.co/Public/Tendering/OpportunityDetail/Index?noticeUID=CO1.NTC.2597691&isFromPublicArea=True&isModal=true&asPopupView=true | E31: Contratos de prestación de servicios profesionales y de apoyo a la gestión | F31: Contratación directa | G31: Prestación de servicios profesionales y de apoyo a la gestión, o para la ejecución de trabajos artísticos que sólo puedan encomendarse a determinadas personas naturales | H31: Prestar servicios técnicos de apoyo a la gestión en la implementación, atención, verificación, soporte y acompañamiento de los procesos y/o actuaciones administrativas de registro y seguimiento a la propiedad horizontal y protección al consumidor en los aplicativos y/o herramientas virtuales en la Localidad de Chapinero. | I31: Inversión | J31: Un nuevo contrato social y ambiental para la Bogotá del Siglo XXI | K31: 57 | L31: =IF(ISERROR(VLOOKUP(K31,[2]Proposito_programa!$C$2:$E$59,2,FALSE))," ",VLOOKUP(K31,[2]Proposito_programa!$C$2:$E$59,2,FALSE)) -> Gestión pública local | M31: =IF(ISERROR(VLOOKUP(K31,[2]Proposito_programa!$C$2:$E$59,3,FALSE))," ",VLOOKUP(K31,[2]Proposito_programa!$C$2:$E$59,3,FALSE)) -> Propósito 5: Construir Bogotá - Región con gobierno abierto, transparente y ciudadanía consciente | N31: 1741 | P31: 1026595076 | Q31: VALENTINA SALGADO RODRIGUEZ | R31: Persona Natural | W31: 18000000 | X31: 0 | Y31: 1 | Z31: 9000000 | AA31: 27000000 | AB31: 27000000 | AC31: 2022-01-18 | AD31: 2022-01-19 | AE31: 2022-11-18 | AF31: 180 | AG31: 1 | AH31: 90 | AM31: Terminado | AN31: 1
A32: 18 | B32: 2022 | C32: FDLCH-CPS-018-2022 | D32: https://community.secop.gov.co/Public/Tendering/OpportunityDetail/Index?noticeUID=CO1.NTC.2603149&isFromPublicArea=True&isModal=true&asPopupView=true | E32: Contratos de prestación de servicios profesionales y de apoyo a la gestión | F32: Contratación directa | G32: Prestación de servicios profesionales y de apoyo a la gestión, o para la ejecución de trabajos artísticos que sólo puedan encomendarse a determinadas personas naturales | H32: Prestar servicios profesionales para apoyar técnicamente las actuaciones administrativas impulso procesal y de inspección vigilancia y control de competencia de la Alcaldía Local de Chapinero. | I32: Inversión | J32: Un nuevo contrato social y ambiental para la Bogotá del Siglo XXI | K32: 57 | L32: =IF(ISERROR(VLOOKUP(K32,[2]Proposito_programa!$C$2:$E$59,2,FALSE))," ",VLOOKUP(K32,[2]Proposito_programa!$C$2:$E$59,2,FALSE)) -> Gestión pública local | M32: =IF(ISERROR(VLOOKUP(K32,[2]Proposito_programa!$C$2:$E$59,3,FALSE))," ",VLOOKUP(K32,[2]Proposito_programa!$C$2:$E$59,3,FALSE)) -> Propósito 5: Construir Bogotá - Región con gobierno abierto, transparente y ciudadanía consciente | N32: 1841 | P32: 80825882 | Q32: CARLOS ANDRES GIL RUEDA | R32: Persona Natural | W32: 29400000 | X32: 0 | Y32: 1 | Z32: 14700000 | AA32: 44100000 | AB32: =29400000+14700000 -> 44100000 | AC32: 2022-01-20 | AD32: 2022-01-20 | AE32: 2022-10-19 | AF32: 180 | AG32: 1 | AH32: 90 | AM32: Terminado | AN32: 1
A33: 19 | B33: 2022 | C33: FDLCH-CPS-019-2022. | D33: https://community.secop.gov.co/Public/Tendering/OpportunityDetail/Index?noticeUID=CO1.NTC.2609026&isFromPublicArea=True&isModal=true&asPopupView=true | E33: Contratos de prestación de servicios profesionales y de apoyo a la gestión | F33: Contratación directa | G33: Prestación de servicios profesionales y de apoyo a la gestión, o para la ejecución de trabajos artísticos que sólo puedan encomendarse a determinadas personas naturales | H33: Prestar servicios profesionales para la atención programación desarrollo seguimiento y aseguramiento de los planes, estrategias y actividades estratégicas desarrolladas por la Alcaldía Local de Chapinero. | I33: Inversión | J33: Un nuevo contrato social y ambiental para la Bogotá del Siglo XXI | K33: 57 | L33: =IF(ISERROR(VLOOKUP(K33,[2]Proposito_programa!$C$2:$E$59,2,FALSE))," ",VLOOKUP(K33,[2]Proposito_programa!$C$2:$E$59,2,FALSE)) -> Gestión pública local | M33: =IF(ISERROR(VLOOKUP(K33,[2]Proposito_programa!$C$2:$E$59,3,FALSE))," ",VLOOKUP(K33,[2]Proposito_programa!$C$2:$E$59,3,FALSE)) -> Propósito 5: Construir Bogotá - Región con gobierno abierto, transparente y ciudadanía consciente | N33: 1741 | P33: 80192226 | Q33: OSCAR FABIAN MAESTRE OLAYA | R33: Persona Natural | W33: 27480000 | X33: 0 | Y33: 1 | Z33: 13740000 | AA33: 41220000 | AB33: =27480000+13740000 -> 41220000 | AC33: 2022-01-19 | AD33: 2022-01-19 | AE33: 2022-10-18 | AF33: 180 | AG33: 1 | AH33: 90 | AM33: Terminado | AN33: 1
A34: 20 | B34: 2022 | C34: FDLCH-CPS-020-2022 | D34: https://community.secop.gov.co/Public/Tendering/OpportunityDetail/Index?noticeUID=CO1.NTC.2603277&isFromPublicArea=True&isModal=true&asPopupView=true | E34: Contratos de prestación de servicios profesionales y de apoyo a la gestión | F34: Contratación directa | G34: Prestación de servicios profesionales y de apoyo a la gestión, o para la ejecución de trabajos artísticos que sólo puedan encomendarse a determinadas personas naturales | H34: Apoyar la formulación, gestión y seguimiento de actividades enfocadas a la gestión ambiental externa, encaminadas a la mitigación de los diferentes impactos ambientales y la conservación de los recursos naturales de la Localidad de Chapinero. | I34: Inversión | J34: Un nuevo contrato social y ambiental para la Bogotá del Siglo XXI | K34: 57 | L34: =IF(ISERROR(VLOOKUP(K34,[2]Proposito_programa!$C$2:$E$59,2,FALSE))," ",VLOOKUP(K34,[2]Proposito_programa!$C$2:$E$59,2,FALSE)) -> Gestión pública local | M34: =IF(ISERROR(VLOOKUP(K34,[2]Proposito_programa!$C$2:$E$59,3,FALSE))," ",VLOOKUP(K34,[2]Proposito_programa!$C$2:$E$59,3,FALSE)) -> Propósito 5: Construir Bogotá - Región con gobierno abierto, transparente y ciudadanía consciente | N34: 1741 | P34: 1123320414 | Q34: KAREN JOHANA CASTRO NUÑEZ | R34: Persona Natural | W34: 32400000 | X34: 0 | Y34: 1 | Z34: 16200000 | AA34: 48600000 | AB34: 48600000 | AC34: 2022-01-18 | AD34: 2022-01-19 | AE34: 2022-10-18 | AF34: 180 | AG34: 1 | AH34: 90 | AM34: Terminado | AN34: 1
A35: 21 | B35: 2022 | C35: FDLCH-CPS-021-2022 | D35: https://community.secop.gov.co/Public/Tendering/OpportunityDetail/Index?noticeUID=CO1.NTC.2603373&isFromPublicArea=True&isModal=true&asPopupView=true | E35: Contratos de prestación de servicios profesionales y de apoyo a la gestión | F35: Contratación directa | G35: Prestación de servicios profesionales y de apoyo a la gestión, o para la ejecución de trabajos artísticos que sólo puedan encomendarse a determinadas personas naturales | H35: Prestar servicios de apoyo técnico para apoyar la gestión y ejecución de las actividades administrativas y misionales que se adelantan en la Alcaldía Local de Chapinero para el cumplimiento de las metas y objetivos del Plan de Desarrollo Local. | I35: Inversión | J35: Un nuevo contrato social y ambiental para la Bogotá del Siglo XXI | K35: 57 | L35: =IF(ISERROR(VLOOKUP(K35,[2]Proposito_programa!$C$2:$E$59,2,FALSE))," ",VLOOKUP(K35,[2]Proposito_programa!$C$2:$E$59,2,FALSE)) -> Gestión pública local | M35: =IF(ISERROR(VLOOKUP(K35,[2]Proposito_programa!$C$2:$E$59,3,FALSE))," ",VLOOKUP(K35,[2]Proposito_programa!$C$2:$E$59,3,FALSE)) -> Propósito 5: Construir Bogotá - Región con gobierno abierto, transparente y ciudadanía consciente | N35: 1741 | P35: 1091663411 | Q35: JUAN PABLO SANJUAN ARIAS | R35: Persona Natural | W35: 29600000 | X35: 0 | Y35: 1 | Z35: 14800000 | AA35: 44400000 | AB35: =29600000+10606667 -> 40206667 | AC35: 2022-01-19 | AD35: 2022-01-20 | AE35: 2023-01-19 | AF35: 240 | AG35: 1 | AH35: 120 | AM35: En ejecución | AN35: 0.9
A36: 22 | B36: 2022 | C36: FDLCH-CPS-022-2022 | D36: https://community.secop.gov.co/Public/Tendering/OpportunityDetail/Index?noticeUID=CO1.NTC.2603723&isFromPublicArea=True&isModal=true&asPopupView=true | E36: Contratos de prestación de servicios profesionales y de apoyo a la gestión | F36: Contratación directa | G36: Prestación de servicios profesionales y de apoyo a la gestión, o para la ejecución de trabajos artísticos que sólo puedan encomendarse a determinadas personas naturales | H36: Prestar servicios profesionales de apoyo jurídico en la ejecución de las acciones requeridas para el trámite e impulso procesal d elas actuaciones administrativas y de cobro persuasivo de competencia de la Alcaldía Local de Chapinero. | I36: Inversión | J36: Un nuevo contrato social y ambiental para la Bogotá del Siglo XXI | K36: 57 | L36: =IF(ISERROR(VLOOKUP(K36,[2]Proposito_programa!$C$2:$E$59,2,FALSE))," ",VLOOKUP(K36,[2]Proposito_programa!$C$2:$E$59,2,FALSE)) -> Gestión pública local | M36: =IF(ISERROR(VLOOKUP(K36,[2]Proposito_programa!$C$2:$E$59,3,FALSE))," ",VLOOKUP(K36,[2]Proposito_programa!$C$2:$E$59,3,FALSE)) -> Propósito 5: Construir Bogotá - Región con gobierno abierto, transparente y ciudadanía consciente | N36: 1841 | P36: 1010190690 | Q36: ADRIANA ANDREA ARCHILA MOSCOSO | R36: Persona Natural | W36: 27600000 | X36: 0 | Y36: 1 | Z36: 13800000 | AA36: 41400000 | AB36: =27600000+13800000 -> 41400000 | AC36: 2022-01-18 | AD36: 2022-01-21 | AE36: 2022-10-20 | AF36: 240 | AG36: 1 | AH36: 90 | AM36: Terminado | AN36: 1
A37: 23 | B37: 2022 | C37: FDLCH-CPS-023-2022 | D37: https://community.secop.gov.co/Public/Tendering/OpportunityDetail/Index?noticeUID=CO1.NTC.2603683&isFromPublicArea=True&isModal=true&asPopupView=true | E37: Contratos de prestación de servicios profesionales y de apoyo a la gestión | F37: Contratación directa | G37: Prestación de servicios profesionales y de apoyo a la gestión, o para la ejecución de trabajos artísticos que sólo puedan encomendarse a determinadas personas naturales | H37: Prestar servicios de apoyo a la gestión en la ejecución de las actividades administrativas y documentales relacionadas con la gestión policiva en la Alcaldía Local de Chapinero. | I37: Inversión | J37: Un nuevo contrato social y ambiental para la Bogotá del Siglo XXI | K37: 57 | L37: =IF(ISERROR(VLOOKUP(K37,[2]Proposito_programa!$C$2:$E$59,2,FALSE))," ",VLOOKUP(K37,[2]Proposito_programa!$C$2:$E$59,2,FALSE)) -> Gestión pública local | M37: =IF(ISERROR(VLOOKUP(K37,[2]Proposito_programa!$C$2:$E$59,3,FALSE))," ",VLOOKUP(K37,[2]Proposito_programa!$C$2:$E$59,3,FALSE)) -> Propósito 5: Construir Bogotá - Región con gobierno abierto, transparente y ciudadanía consciente | N37: 1841 | P37: 52253361 | Q37: OLGA LUCIA OBANDO CHACA | R37: Persona Natural | W37: 13200000 | X37: 0 | Y37: 1 | Z37: 6600000 | AA37: 19800000 | AB37: 19800000 | AC37: 2022-01-18 | AD37: 2022-01-21 | AE37: 2022-10-20 | AF37: 180 | AG37: 1 | AH37: 90 | AM37: Terminado | AN37: 1
A38: 24 | B38: 2022 | C38: FDLCH-CPS-024-2022 | D38: https://community.secop.gov.co/Public/Tendering/OpportunityDetail/Index?noticeUID=CO1.NTC.2604040&isFromPublicArea=True&isModal=true&asPopupView=true | E38: Contratos de prestación de servicios profesionales y de apoyo a la gestión | F38: Contratación directa | G38: Prestación de servicios profesionales y de apoyo a la gestión, o para la ejecución de trabajos artísticos que sólo puedan encomendarse a determinadas personas naturales | H38: Prestar los servicios profesionales para apoyar el área gestión del desarrollo local en las actividades contables requeridas por el Fondo de Desarrollo Local de Chapinero. | I38: Inversión | J38: Un nuevo contrato social y ambiental para la Bogotá del Siglo XXI | K38: 57 | L38: =IF(ISERROR(VLOOKUP(K38,[2]Proposito_programa!$C$2:$E$59,2,FALSE))," ",VLOOKUP(K38,[2]Proposito_programa!$C$2:$E$59,2,FALSE)) -> Gestión pública local | M38: =IF(ISERROR(VLOOKUP(K38,[2]Proposito_programa!$C$2:$E$59,3,FALSE))," ",VLOOKUP(K38,[2]Proposito_programa!$C$2:$E$59,3,FALSE)) -> Propósito 5: Construir Bogotá - Región con gobierno abierto, transparente y ciudadanía consciente | N38: 1741 | P38: 7141790 | Q38: LEONARDO OROZCO MARTINEZ MARTINEZ | R38: Persona Natural | W38: 40000000 | X38: 0 | Y38: 1 | Z38: 20000000 | AA38: 60000000 | AB38: 54333333 | AC38: 2022-01-18 | AD38: 2022-01-20 | AE38: 2023-01-19 | AF38: 240 | AG38: 1 | AH38: 120 | AM38: En ejecución | AN38: 0.9
A39: 25 | B39: 2022 | C39: FDLCH-CPS-025-2022 | D39: https://community.secop.gov.co/Public/Tendering/OpportunityDetail/Index?noticeUID=CO1.NTC.2618821&isFromPublicArea=True&isModal=true&asPopupView=true | E39: Contratos de prestación de servicios profesionales y de apoyo a la gestión | F39: Contratación directa | G39: Prestación de servicios profesionales y de apoyo a la gestión, o para la ejecución de trabajos artísticos que sólo puedan encomendarse a determinadas personas naturales | H39: Prestar los servicios profesionale spara la gestión, formulación, desarrollo, seguimiento y evaluación del proyecto de inversión "Chapinero construye tejido cultural". | I39: Inversión | J39: Un nuevo contrato social y ambiental para la Bogotá del Siglo XXI | K39: 21 | L39: =IF(ISERROR(VLOOKUP(K39,[2]Proposito_programa!$C$2:$E$59,2,FALSE))," ",VLOOKUP(K39,[2]Proposito_programa!$C$2:$E$59,2,FALSE)) -> Creación y vida cotidiana: Apropiación ciudadana del arte, la cultura y el patrimonio, para la democracia cultural | M39: =IF(ISERROR(VLOOKUP(K39,[2]Proposito_programa!$C$2:$E$59,3,FALSE))," ",VLOOKUP(K39,[2]Proposito_programa!$C$2:$E$59,3,FALSE)) -> Propósito 1: Hacer un nuevo contrato social para incrementar la inclusión social, productiva y política | N39: 1848 | P39: 79728807 | Q39: HOSMAN HERNAN ARIAS GUTIERREZ | R39: Persona Natural | W39: 48000000 | X39: 0 | Y39: 1 | Z39: 21000000 | AA39: 69000000 | AB39: 65000000 | AC39: 2022-01-19 | AD39: 2022-01-21 | AE39: 2023-01-04 | AF39: 240 | AG39: 1 | AH39: 105 | AM39: Terminado | AN39: 1
A40: 26 | B40: 2022 | C40: FDLCH-CPS-026-2022 | D40: https://community.secop.gov.co/Public/Tendering/OpportunityDetail/Index?noticeUID=CO1.NTC.2619121&isFromPublicArea=True&isModal=true&asPopupView=true | E40: Contratos de prestación de servicios profesionales y de apoyo a la gestión | F40: Contratación directa | G40: Prestación de servicios profesionales y de apoyo a la gestión, o para la ejecución de trabajos artísticos que sólo puedan encomendarse a determinadas personas naturales | H40: Prestar servicios de apoyo a la gestión, para el desarrollo de estrategias que promuevan el uso adecuado del espacio público en la marco del proyecto "Chapinero es espacio público incluyente y democrático". | I40: Inversión | J40: Un nuevo contrato social y ambiental para la Bogotá del Siglo XXI | K40: 45 | L40: =IF(ISERROR(VLOOKUP(K40,[2]Proposito_programa!$C$2:$E$59,2,FALSE))," ",VLOOKUP(K40,[2]Proposito_programa!$C$2:$E$59,2,FALSE)) -> Espacio público más seguro y construido colectivamente | M40: =IF(ISERROR(VLOOKUP(K40,[2]Proposito_programa!$C$2:$E$59,3,FALSE))," ",VLOOKUP(K40,[2]Proposito_programa!$C$2:$E$59,3,FALSE)) -> Propósito 3: Inspirar confianza y legitimidad para vivir sin miedo y ser epicentro de cultura ciudadana, paz y reconciliación | N40: 1736 | P40: 79237228 | Q40: OMAR ORLANDO BARON VELASCO | R40: Persona Natural | W40: 13200000 | X40: 0 | Y40: 1 | Z40: 6600000 | AA40: 19800000 | AB40: 19800000 | AC40: 2022-01-19 | AD40: 2022-01-24 | AE40: 2022-10-23 | AF40: 180 | AG40: 1 | AH40: 90 | AM40: Terminado | AN40: 1
A41: 27 | B41: 2022 | C41: FDLCH-CPS-027-2022 | D41: https://community.secop.gov.co/Public/Tendering/OpportunityDetail/Index?noticeUID=CO1.NTC.2619268&isFromPublicArea=True&isModal=true&asPopupView=true | E41: Contratos de prestación de servicios profesionales y de apoyo a la gestión | F41: Contratación directa | G41: Prestación de servicios profesionales y de apoyo a la gestión, o para la ejecución de trabajos artísticos que sólo puedan encomendarse a determinadas personas naturales | H41: Prestar servicios técnicos de apoyo a la gestión, para el desarrollo de estrategias que promuevan el uso adecuado del espacio públigo en el marco del proyecto "Chapinero es espacio público incluyente y democrático". | I41: Inversión | J41: Un nuevo contrato social y ambiental para la Bogotá del Siglo XXI | K41: 45 | L41: =IF(ISERROR(VLOOKUP(K41,[2]Proposito_programa!$C$2:$E$59,2,FALSE))," ",VLOOKUP(K41,[2]Proposito_programa!$C$2:$E$59,2,FALSE)) -> Espacio público más seguro y construido colectivamente | M41: =IF(ISERROR(VLOOKUP(K41,[2]Proposito_programa!$C$2:$E$59,3,FALSE))," ",VLOOKUP(K41,[2]Proposito_programa!$C$2:$E$59,3,FALSE)) -> Propósito 3: Inspirar confianza y legitimidad para vivir sin miedo y ser epicentro de cultura ciudadana, paz y reconciliación | N41: 1736 | P41: 15677463 | Q41: JOSE GREGORIO BOLAÑO MARTINEZ | R41: Persona Natural | W41: 22800000 | X41: 0 | Y41: 1 | Z41: 11400000 | AA41: 34200000 | AB41: 34200000 | AC41: 2022-01-19 | AD41: 2022-01-20 | AE41: 2022-10-19 | AF41: 180 | AG41: 1 | AH41: 90 | AM41: Terminado | AN41: 1
A42: 28 | B42: 2022 | C42: FDLCH-CPS-028-2022 | D42: https://community.secop.gov.co/Public/Tendering/OpportunityDetail/Index?noticeUID=CO1.NTC.2619388&isFromPublicArea=True&isModal=true&asPopupView=true | E42: Contratos de prestación de servicios profesionales y de apoyo a la gestión | F42: Contratación directa | G42: Prestación de servicios profesionales y de apoyo a la gestión, o para la ejecución de trabajos artísticos que sólo puedan encomendarse a determinadas personas naturales | H42: Prestar servicios profesionales para apoyar la gestión de los asuntos relacionados con el adecuado uso del espacio público, medianteactuaciones que propendan por el bienestar de la comunidad en la Localidad de Chapinero, en el marco del proyecto de inversión " Chapinero es espacio público incluyente y democrático". | I42: Inversión | J42: Un nuevo contrato social y ambiental para la Bogotá del Siglo XXI | K42: 45 | L42: =IF(ISERROR(VLOOKUP(K42,[2]Proposito_programa!$C$2:$E$59,2,FALSE))," ",VLOOKUP(K42,[2]Proposito_programa!$C$2:$E$59,2,FALSE)) -> Espacio público más seguro y construido colectivamente | M42: =IF(ISERROR(VLOOKUP(K42,[2]Proposito_programa!$C$2:$E$59,3,FALSE))," ",VLOOKUP(K42,[2]Proposito_programa!$C$2:$E$59,3,FALSE)) -> Propósito 3: Inspirar confianza y legitimidad para vivir sin miedo y ser epicentro de cultura ciudadana, paz y reconciliación | N42: 1736 | P42: 11801497 | Q42: FELIPE CORDOBA MENDOZA | R42: Persona Natural | W42: 28800000 | X42: 0 | Y42: 1 | Z42: 9600000 | AA42: 38400000 | AB42: 38400000 | AC42: 2022-01-19 | AD42: 2022-01-20 | AE42: 2022-09-19 | AF42: 180 | AG42: 1 | AH42: 60 | AM42: Terminado | AN42: 1
A43: 29 | B43: 2022 | C43: FDLCH-CPS-029-2022 | D43: https://community.secop.gov.co/Public/Tendering/OpportunityDetail/Index?noticeUID=CO1.NTC.2613782&isFromPublicArea=True&isModal=true&asPopupView=true | E43: Contratos de prestación de servicios profesionales y de apoyo a la gestión | F43: Contratación directa | G43: Prestación de servicios profesionales y de apoyo a la gestión, o para la ejecución de trabajos artísticos que sólo puedan encomendarse a determinadas personas naturales | H43: Prestar servicios profesionales para apoyar el área de Gestión del Desarrollo Local de la Alcaldía Local de Chapinero, en la formulación, gestión, ejecución y apoyo a la supervisión de los proyectos relacionados con las estrategias y metas relacionadas con el programa Sistema Distrital de Cuidado y el proyecto Chapinero te cuida, en el marco de la política de fortalecimiento de las organizaciones de mujeres y de género. | I43: Inversión | J43: Un nuevo contrato social y ambiental para la Bogotá del Siglo XXI | K43: 6 | L43: =IF(ISERROR(VLOOKUP(K43,[2]Proposito_programa!$C$2:$E$59,2,FALSE))," ",VLOOKUP(K43,[2]Proposito_programa!$C$2:$E$59,2,FALSE)) -> Sistema Distrital de Cuidado | M43: =IF(ISERROR(VLOOKUP(K43,[2]Proposito_programa!$C$2:$E$59,3,FALSE))," ",VLOOKUP(K43,[2]Proposito_programa!$C$2:$E$59,3,FALSE)) -> Propósito 1: Hacer un nuevo contrato social para incrementar la inclusión social, productiva y política | N43: 1855 | P43: 1110505182 | Q43: MONICA LILIANA TOLEDO CHAVARRO | R43: Persona Natural | W43: 30000000 | X43: 0 | Y43: 1 | Z43: 15000000 | AA43: 45000000 | AB43: 45000000 | AC43: 2022-01-20 | AD43: 2022-01-21 | AE43: 2022-10-20 | AF43: 180 | AG43: 1 | AH43: 90 | AM43: Terminado | AN43: 1
A44: 30 | B44: 2022 | C44: FDLCH-CPS-030-2022 | D44: https://community.secop.gov.co/Public/Tendering/OpportunityDetail/Index?noticeUID=CO1.NTC.2619101&isFromPublicArea=True&isModal=true&asPopupView=true | E44: Contratos de prestación de servicios profesionales y de apoyo a la gestión | F44: Contratación directa | G44: Prestación de servicios profesionales y de apoyo a la gestión, o para la ejecución de trabajos artísticos que sólo puedan encomendarse a determinadas personas naturales | H44: Prestar servicios profesionales para apoyar la gestión, formulación, desarrollo, seguimiento y evaluación del proyecto de inversión chapinero promueve y genera confianza ciudadana y realizar los apoyos a la supervisión de los contratos que de él se deriven. | I44: Inversión | J44: Un nuevo contrato social y ambiental para la Bogotá del Siglo XXI | K44: 43 | L44: =IF(ISERROR(VLOOKUP(K44,[2]Proposito_programa!$C$2:$E$59,2,FALSE))," ",VLOOKUP(K44,[2]Proposito_programa!$C$2:$E$59,2,FALSE)) -> Cultura ciudadana para la confianza, la convivencia y la participación desde la vida cotidiana | M44: =IF(ISERROR(VLOOKUP(K44,[2]Proposito_programa!$C$2:$E$59,3,FALSE))," ",VLOOKUP(K44,[2]Proposito_programa!$C$2:$E$59,3,FALSE)) -> Propósito 3: Inspirar confianza y legitimidad para vivir sin miedo y ser epicentro de cultura ciudadana, paz y reconciliación | N44: 1735 | P44: 1026568660 | Q44: CRISTIAN ANDRES MONROY CARANTON | R44: Persona Natural | W44: 27600000 | X44: 0 | Y44: 1 | Z44: 13800000 | AA44: 41400000 | AB44: 41400000 | AC44: 2022-01-21 | AD44: 2022-01-24 | AE44: 2022-10-23 | AF44: 180 | AG44: 1 | AH44: 90 | AM44: Terminado | AN44: 1
A45: 31 | B45: 2022 | C45: FDLCH-CPS-031-2022 | D45: https://community.secop.gov.co/Public/Tendering/OpportunityDetail/Index?noticeUID=CO1.NTC.2604430&isFromPublicArea=True&isModal=true&asPopupView=true | E45: Contratos de prestación de servicios profesionales y de apoyo a la gestión | F45: Contratación directa | G45: Prestación de servicios profesionales y de apoyo a la gestión, o para la ejecución de trabajos artísticos que sólo puedan encomendarse a determinadas personas naturales | H45: Prestar servicios profesionales para la administración, soporte técnico y correcto funcionamiento de la infraestructura tecnológica en propiedad o custodia de la Alcaldía Local de Chapinero, así como la formulación de proyectos relacionados. | I45: Inversión | J45: Un nuevo contrato social y ambiental para la Bogotá del Siglo XXI | K45: 57 | L45: =IF(ISERROR(VLOOKUP(K45,[2]Proposito_programa!$C$2:$E$59,2,FALSE))," ",VLOOKUP(K45,[2]Proposito_programa!$C$2:$E$59,2,FALSE)) -> Gestión pública local | M45: =IF(ISERROR(VLOOKUP(K45,[2]Proposito_programa!$C$2:$E$59,3,FALSE))," ",VLOOKUP(K45,[2]Proposito_programa!$C$2:$E$59,3,FALSE)) -> Propósito 5: Construir Bogotá - Región con gobierno abierto, transparente y ciudadanía consciente | N45: 1741 | P45: 1032386167 | Q45: ESTEBAN GONZALEZ PORTILLA | R45: Persona Natural | W45: 27480000 | X45: 0 | Y45: 2 | Z45: =4580000+9160000 -> 13740000 | AA45: 41220000 | AB45: 41220000 | AC45: 2022-01-19 | AD45: 2022-01-21 | AE45: 2022-10-20 | AF45: 180 | AG45: 2 | AH45: 90 | AM45: Terminado | AN45: 1
A46: 32 | B46: 2022 | C46: FDLCH-CPS-032-2022 | D46: https://community.secop.gov.co/Public/Tendering/OpportunityDetail/Index?noticeUID=CO1.NTC.2609517&isFromPublicArea=True&isModal=true&asPopupView=true | E46: Contratos de prestación de servicios profesionales y de apoyo a la gestión | F46: Contratación directa | G46: Prestación de servicios profesionales y de apoyo a la gestión, o para la ejecución de trabajos artísticos que sólo puedan encomendarse a determinadas personas naturales | H46: Prestar servicios de apoyo a la gestión en la ejecución de las actividades administrativas y documentales relacionadas con la gestión policiva en la alcaldía local de chapinero. | I46: Inversión | J46: Un nuevo contrato social y ambiental para la Bogotá del Siglo XXI | K46: 57 | L46: =IF(ISERROR(VLOOKUP(K46,[2]Proposito_programa!$C$2:$E$59,2,FALSE))," ",VLOOKUP(K46,[2]Proposito_programa!$C$2:$E$59,2,FALSE)) -> Gestión pública local | M46: =IF(ISERROR(VLOOKUP(K46,[2]Proposito_programa!$C$2:$E$59,3,FALSE))," ",VLOOKUP(K46,[2]Proposito_programa!$C$2:$E$59,3,FALSE)) -> Propósito 5: Construir Bogotá - Región con gobierno abierto, transparente y ciudadanía consciente | N46: 1841 | P46: 51765934 | Q46: MARIA DIACLIN RODRIGUEZ PULECIO | R46: Persona Natural | W46: 17600000 | X46: 0 | Y46: 1 | Z46: 7333333 | AA46: 24933333 | AB46: 18333333 | AC46: 2022-01-20 | AD46: 2022-01-21 | AE46: 26/10/2022 | AF46: 240 | AG46: 1 | AH46: 100 | AM46: Terminado | AN46: 1
A47: 33 | B47: 2022 | C47: FDLCH-CPS-033-2022 | D47: https://community.secop.gov.co/Public/Tendering/OpportunityDetail/Index?noticeUID=CO1.NTC.2603621&isFromPublicArea=True&isModal=true&asPopupView=true | E47: Contratos de prestación de servicios profesionales y de apoyo a la gestión | F47: Contratación directa | G47: Prestación de servicios profesionales y de apoyo a la gestión, o para la ejecución de trabajos artísticos que sólo puedan encomendarse a determinadas personas naturales | H47: Prestar servicios profesionales para apoyar tecnicamente las actuaciones administrativas, impulso procesar y de inspección, vigilancia y control de competencia de la Alcaldía Local de Chapinero. | I47: Inversión | J47: Un nuevo contrato social y ambiental para la Bogotá del Siglo XXI | K47: 57 | L47: =IF(ISERROR(VLOOKUP(K47,[2]Proposito_programa!$C$2:$E$59,2,FALSE))," ",VLOOKUP(K47,[2]Proposito_programa!$C$2:$E$59,2,FALSE)) -> Gestión pública local | M47: =IF(ISERROR(VLOOKUP(K47,[2]Proposito_programa!$C$2:$E$59,3,FALSE))," ",VLOOKUP(K47,[2]Proposito_programa!$C$2:$E$59,3,FALSE)) -> Propósito 5: Construir Bogotá - Región con gobierno abierto, transparente y ciudadanía consciente | N47: 1841 | P47: 52308262 | Q47: IRISAYDEE NOVOA MEDELLIN | R47: Persona Natural | W47: 29400000 | X47: 0 | Y47: 1 | Z47: 14700000 | AA47: 44100000 | AB47: 44100000 | AC47: 2022-01-20 | AD47: 2022-01-21 | AE47: 2022-10-20 | AF47: 180 | AG47: 1 | AH47: 90 | AM47: Terminado | AN47: 1
A48: 34 | B48: 2022 | C48: FDLCH-CPS-034-2022 | D48: https://community.secop.gov.co/Public/Tendering/OpportunityDetail/Index?noticeUID=CO1.NTC.2602410&isFromPublicArea=True&isModal=true&asPopupView=true | E48: Contratos de prestación de servicios profesionales y de apoyo a la gestión | F48: Contratación directa | G48: Prestación de servicios profesionales y de apoyo a la gestión, o para la ejecución de trabajos artísticos que sólo puedan encomendarse a determinadas personas naturales | H48: Prestar servicios de apoyo a la gestión para desarrollar las actividades de radicación, gestión de correspondencia y de la documentación que expide, se allega y controla de la Alcaldía Local de Chapinero. | I48: Inversión | J48: Un nuevo contrato social y ambiental para la Bogotá del Siglo XXI | K48: 57 | L48: =IF(ISERROR(VLOOKUP(K48,[2]Proposito_programa!$C$2:$E$59,2,FALSE))," ",VLOOKUP(K48,[2]Proposito_programa!$C$2:$E$59,2,FALSE)) -> Gestión pública local | M48: =IF(ISERROR(VLOOKUP(K48,[2]Proposito_programa!$C$2:$E$59,3,FALSE))," ",VLOOKUP(K48,[2]Proposito_programa!$C$2:$E$59,3,FALSE)) -> Propósito 5: Construir Bogotá - Región con gobierno abierto, transparente y ciudadanía consciente | N48: 1741 | P48: 1023007285 | Q48: JENNYFER MARIA SAUCEDO FUENTES | R48: Persona Natural | W48: 11850000 | X48: 0 | Y48: 1 | Z48: 5925000 | AA48: 17775000 | AB48: 17775000 | AC48: 2022-01-20 | AD48: 2022-01-20 | AE48: 2022-10-19 | AF48: 180 | AG48: 1 | AH48: 90 | AM48: Terminado | AN48: 1
A49: 35 | B49: 2022 | C49: FDLCH-CPS-035-2022 | D49: https://community.secop.gov.co/Public/Tendering/OpportunityDetail/Index?noticeUID=CO1.NTC.2615466&isFromPublicArea=True&isModal=true&asPopupView=true | E49: Contratos de prestación de servicios profesionales y de apoyo a la gestión | F49: Contratación directa | G49: Prestación de servicios profesionales y de apoyo a la gestión, o para la ejecución de trabajos artísticos que sólo puedan encomendarse a determinadas personas naturales | H49: Prestar servicios profesionales para apoyar técnicamente las actuaciones administrativas impulso procesal y de inspección vigilancia y control en las zonas de especial protección de cerros orientales de competencia de la Alcaldía Local de Chapinero". | I49: Inversión | J49: Un nuevo contrato social y ambiental para la Bogotá del Siglo XXI | K49: 57 | L49: =IF(ISERROR(VLOOKUP(K49,[2]Proposito_programa!$C$2:$E$59,2,FALSE))," ",VLOOKUP(K49,[2]Proposito_programa!$C$2:$E$59,2,FALSE)) -> Gestión pública local | M49: =IF(ISERROR(VLOOKUP(K49,[2]Proposito_programa!$C$2:$E$59,3,FALSE))," ",VLOOKUP(K49,[2]Proposito_programa!$C$2:$E$59,3,FALSE)) -> Propósito 5: Construir Bogotá - Región con gobierno abierto, transparente y ciudadanía consciente | N49: 1841 | P49: 1000145771 | Q49: DIANA CAROLINA ERAZO FLOREZ | R49: Persona Natural | W49: 29400000 | X49: 0 | Y49: 1 | Z49: 14700000 | AA49: 44100000 | AB49: 44100000 | AC49: 2022-01-21 | AD49: 2022-01-24 | AE49: 2022-10-23 | AF49: 180 | AG49: 1 | AM49: Terminado | AN49: 1
A50: 36 | B50: 2022 | C50: FDLCH-CPS-036-2022 | D50: https://community.secop.gov.co/Public/Tendering/OpportunityDetail/Index?noticeUID=CO1.NTC.2650941&isFromPublicArea=True&isModal=true&asPopupView=true | E50: Contratos de prestación de servicios profesionales y de apoyo a la gestión | F50: Contratación directa | G50: Prestación de servicios profesionales y de apoyo a la gestión, o para la ejecución de trabajos artísticos que sólo puedan encomendarse a determinadas personas naturales | H50: Prestacion de servicios profesionales para la atencion integral del manejo de las comisiones judiciales ordenadas por las autoridades jurisdiccionales y prestar apoyo al cobro persuasivo actuaciones administrativas y policivas de competencia de la Alcaldía Local de Chapinero | I50: Inversión | J50: Un nuevo contrato social y ambiental para la Bogotá del Siglo XXI | K50: 57 | L50: =IF(ISERROR(VLOOKUP(K50,[2]Proposito_programa!$C$2:$E$59,2,FALSE))," ",VLOOKUP(K50,[2]Proposito_programa!$C$2:$E$59,2,FALSE)) -> Gestión pública local | M50: =IF(ISERROR(VLOOKUP(K50,[2]Proposito_programa!$C$2:$E$59,3,FALSE))," ",VLOOKUP(K50,[2]Proposito_programa!$C$2:$E$59,3,FALSE)) -> Propósito 5: Construir Bogotá - Región con gobierno abierto, transparente y ciudadanía consciente | N50: 1841 | P50: 79729789 | Q50: ALFREDO ENRIQUE CACERES MENDOZA | R50: Persona Natural | W50: 46400000 | X50: -12373333 | Y50: 1 | Z50: 17400000 | AA50: 51426667 | AB50: 51426667 | AC50: 2022-01-21 | AD50: 2022-01-25 | AE50: 2022-10-20 | AF50: 240 | AG50: 1 | AH50: 90 | AM50: Terminado | AN50: 1
A51: 37 | B51: 2022 | C51: FDLCH-CPS-037-2022 | D51: https://community.secop.gov.co/Public/Tendering/OpportunityDetail/Index?noticeUID=CO1.NTC.2612087&isFromPublicArea=True&isModal=true&asPopupView=true | E51: Contratos de prestación de servicios profesionales y de apoyo a la gestión | F51: Contratación directa | G51: Prestación de servicios profesionales y de apoyo a la gestión, o para la ejecución de trabajos artísticos que sólo puedan encomendarse a determinadas personas naturales | H51: Prestar servicios profesionales especializados de apoyo al área de Gestión del Desarrollo Local, en la articulación, estructuración y seguimiento del proceso de planeación estratégica local, desarrollando actividades relacionadas con la formulación, seguimiento, terminación y cierre de proyectos de inversión, así como la estructuración, ejecución y cierre de los Planes de Desarrollo Local. | I51: Inversión | J51: Un nuevo contrato social y ambiental para la Bogotá del Siglo XXI | K51: 57 | L51: =IF(ISERROR(VLOOKUP(K51,[2]Proposito_programa!$C$2:$E$59,2,FALSE))," ",VLOOKUP(K51,[2]Proposito_programa!$C$2:$E$59,2,FALSE)) -> Gestión pública local | M51: =IF(ISERROR(VLOOKUP(K51,[2]Proposito_programa!$C$2:$E$59,3,FALSE))," ",VLOOKUP(K51,[2]Proposito_programa!$C$2:$E$59,3,FALSE)) -> Propósito 5: Construir Bogotá - Región con gobierno abierto, transparente y ciudadanía consciente | N51: 1741 | P51: 1022331685 | Q51: NELSON MAURICIO REY PEÑA | R51: Persona Natural | W51: =64618400+30693740 -> 95312140 | X51: -15885357 | AA51: 79426783 | AB51: 79426783 | AC51: 2022-01-20 | AD51: 2022-01-21 | AE51: 2022-11-15 | AF51: 240 | AG51: 1 | AH51: 114 | AM51: Terminado | AN51: 1
A52: 38 | B52: 2022 | C52: FDLCH-CPS-038-2022 | D52: https://community.secop.gov.co/Public/Tendering/OpportunityDetail/Index?noticeUID=CO1.NTC.2617499&isFromPublicArea=True&isModal=true&asPopupView=true | E52: Contratos de prestación de servicios profesionales y de apoyo a la gestión | F52: Contratación directa | G52: Prestación de servicios profesionales y de apoyo a la gestión, o para la ejecución de trabajos artísticos que sólo puedan encomendarse a determinadas personas naturales | H52: Prestar servicios profesionales para apoyar técnicamente las actuaciones administrativas, impulso procesal y de inspección, vigilancia y control de competencia de la Alcaldía Local de Chapinero. | I52: Inversión | J52: Un nuevo contrato social y ambiental para la Bogotá del Siglo XXI | K52: 57 | L52: =IF(ISERROR(VLOOKUP(K52,[2]Proposito_programa!$C$2:$E$59,2,FALSE))," ",VLOOKUP(K52,[2]Proposito_programa!$C$2:$E$59,2,FALSE)) -> Gestión pública local | M52: =IF(ISERROR(VLOOKUP(K52,[2]Proposito_programa!$C$2:$E$59,3,FALSE))," ",VLOOKUP(K52,[2]Proposito_programa!$C$2:$E$59,3,FALSE)) -> Propósito 5: Construir Bogotá - Región con gobierno abierto, transparente y ciudadanía consciente | N52: 1841 | P52: 80799927 | Q52: SALOMON RODRIGUEZ LAGUNA | R52: Persona Natural | W52: 29400000 | X52: 0 | Y52: 1 | Z52: 14700000 | AA52: 44100000 | AB52: 44100000 | AC52: 2022-01-20 | AD52: 2022-01-20 | AE52: 2022-10-19 | AF52: 180 | AG52: 1 | AH52: 90 | AM52: Terminado | AN52: 1
A53: 39 | B53: 2022 | C53: FDLCH-CPS-039-2022 | D53: https://community.secop.gov.co/Public/Tendering/OpportunityDetail/Index?noticeUID=CO1.NTC.2602649&isFromPublicArea=True&isModal=true&asPopupView=true | E53: Contratos de prestación de servicios profesionales y de apoyo a la gestión | F53: Contratación directa | G53: Prestación de servicios profesionales y de apoyo a la gestión, o para la ejecución de trabajos artísticos que sólo puedan encomendarse a determinadas personas naturales | H53: Prestar servicios profesionales para apoyar la gestión precontractual, contractual y postcontractual que adelante el Fondo de Desarrollo Local de Chapinero. | I53: Inversión | J53: Un nuevo contrato social y ambiental para la Bogotá del Siglo XXI | K53: 57 | L53: =IF(ISERROR(VLOOKUP(K53,[2]Proposito_programa!$C$2:$E$59,2,FALSE))," ",VLOOKUP(K53,[2]Proposito_programa!$C$2:$E$59,2,FALSE)) -> Gestión pública local | M53: =IF(ISERROR(VLOOKUP(K53,[2]Proposito_programa!$C$2:$E$59,3,FALSE))," ",VLOOKUP(K53,[2]Proposito_programa!$C$2:$E$59,3,FALSE)) -> Propósito 5: Construir Bogotá - Región con gobierno abierto, transparente y ciudadanía consciente | N53: 1741 | P53: 1094248111 | Q53: YEINI RAQUEL BLANCO MENDOZA | R53: Persona Natural | W53: 33000000 | X53: 0 | Y53: 1 | Z53: 16500000 | AA53: 49500000 | AB53: 49500000 | AC53: 2022-01-18 | AD53: 2022-01-20 | AE53: 2022-10-19 | AF53: 180 | AG53: 1 | AH53: 90 | AM53: Terminado | AN53: 1
A54: 40 | B54: 2022 | C54: FDLCH-CPS-040-2022 | D54: https://community.secop.gov.co/Public/Tendering/OpportunityDetail/Index?noticeUID=CO1.NTC.2617800&isFromPublicArea=True&isModal=true&asPopupView=true | E54: Contratos de prestación de servicios profesionales y de apoyo a la gestión | F54: Contratación directa | G54: Prestación de servicios profesionales y de apoyo a la gestión, o para la ejecución de trabajos artísticos que sólo puedan encomendarse a determinadas personas naturales | H54: Apoyar jurídicamente la ejecución de las acciones requeridas para la depuración de las actuaciones administrativas que cursan en la Alcaldía Local. | I54: Inversión | J54: Un nuevo contrato social y ambiental para la Bogotá del Siglo XXI | K54: 57 | L54: =IF(ISERROR(VLOOKUP(K54,[2]Proposito_programa!$C$2:$E$59,2,FALSE))," ",VLOOKUP(K54,[2]Proposito_programa!$C$2:$E$59,2,FALSE)) -> Gestión pública local | M54: =IF(ISERROR(VLOOKUP(K54,[2]Proposito_programa!$C$2:$E$59,3,FALSE))," ",VLOOKUP(K54,[2]Proposito_programa!$C$2:$E$59,3,FALSE)) -> Propósito 5: Construir Bogotá - Región con gobierno abierto, transparente y ciudadanía consciente | N54: 1841 | P54: 1073502781 | Q54: DIEGO ARMANDO PARRA CASTRO | R54: Persona Natural | W54: =27600000+24073333 -> 51673333 | X54: -33120000 | AA54: 18553333 | AB54: 15026666 | AC54: 2022-01-19 | AD54: 2022-01-24 | AE54: 2022-08-22 | AF54: 180 | AI54: 1073502781 | AJ54: FABIAN MAURICIO CHIBCHA ROMERO | AK54: 2022-05-16 | AL54: 24073333 | AM54: Terminado | AN54: 1
A55: 41 | B55: 2022 | C55: FDLCH-CPS-041-2022 | D55: https://community.secop.gov.co/Public/Tendering/OpportunityDetail/Index?noticeUID=CO1.NTC.2623344&isFromPublicArea=True&isModal=true&asPopupView=true | E55: Contratos de prestación de servicios profesionales y de apoyo a la gestión | F55: Contratación directa | G55: Prestación de servicios profesionales y de apoyo a la gestión, o para la ejecución de trabajos artísticos que sólo puedan encomendarse a determinadas personas naturales | H55: Brindar apoyo en la implementación de acciones del plan local de convivencia, seguridad y justicia y el desarrollo de estrategias de dialogo, mediación, convivencia y prevención de conflictividades, violencias y delitos en la localidad de chapinero, para mejorar la seguridad y convivencia. | I55: Inversión | J55: Un nuevo contrato social y ambiental para la Bogotá del Siglo XXI | K55: 45 | L55: =IF(ISERROR(VLOOKUP(K55,[2]Proposito_programa!$C$2:$E$59,2,FALSE))," ",VLOOKUP(K55,[2]Proposito_programa!$C$2:$E$59,2,FALSE)) -> Espacio público más seguro y construido colectivamente | M55: =IF(ISERROR(VLOOKUP(K55,[2]Proposito_programa!$C$2:$E$59,3,FALSE))," ",VLOOKUP(K55,[2]Proposito_programa!$C$2:$E$59,3,FALSE)) -> Propósito 3: Inspirar confianza y legitimidad para vivir sin miedo y ser epicentro de cultura ciudadana, paz y reconciliación | N55: 1736 | P55: 1022364268 | Q55: LUIS ALEJANDRO MARTINEZ MARTINEZ | R55: Persona Natural | W55: 15000000 | X55: 0 | Y55: 1 | Z55: 7500000 | AA55: 22500000 | AB55: 22500000 | AC55: 2022-01-20 | AD55: 2022-01-21 | AE55: 2022-10-20 | AF55: 180 | AG55: 1 | AH55: 90 | AM55: Terminado | AN55: 1
A56: 42 | B56: 2022 | C56: FDLCH-CPS-042-2022 | D56: https://community.secop.gov.co/Public/Tendering/OpportunityDetail/Index?noticeUID=CO1.NTC.2623729&isFromPublicArea=True&isModal=true&asPopupView=true | E56: Contratos de prestación de servicios profesionales y de apoyo a la gestión | F56: Contratación directa | G56: Prestación de servicios profesionales y de apoyo a la gestión, o para la ejecución de trabajos artísticos que sólo puedan encomendarse a determinadas personas naturales | H56: Prestar servicios profesionales para apoyar jurídicamente las respuestas a distintas instancias relaconadas con solicitudes allegadas a la Alcaldía Local de Chapinero. | I56: Inversión | J56: Un nuevo contrato social y ambiental para la Bogotá del Siglo XXI | K56: 57 | L56: =IF(ISERROR(VLOOKUP(K56,[2]Proposito_programa!$C$2:$E$59,2,FALSE))," ",VLOOKUP(K56,[2]Proposito_programa!$C$2:$E$59,2,FALSE)) -> Gestión pública local | M56: =IF(ISERROR(VLOOKUP(K56,[2]Proposito_programa!$C$2:$E$59,3,FALSE))," ",VLOOKUP(K56,[2]Proposito_programa!$C$2:$E$59,3,FALSE)) -> Propósito 5: Construir Bogotá - Región con gobierno abierto, transparente y ciudadanía consciente | N56: 1741 | P56: 1012402727 | Q56: NATHALY TORRES TORRES | R56: Persona Natural | W56: 38400000 | X56: 0 | Y56: 2 | Z56: =16160000+3040000 -> 19200000 | AA56: 57600000 | AB56: 52000000 | AC56: 2022-01-20 | AD56: 2022-01-21 | AE56: 2023-01-19 | AF56: 240 | AG56: 2 | AH56: 120 | AM56: En ejecución | AN56: 0.9
A57: 43 | B57: 2022 | C57: FDLCH-CPS-043-2022 | D57: https://community.secop.gov.co/Public/Tendering/OpportunityDetail/Index?noticeUID=CO1.NTC.2623060&isFromPublicArea=True&isModal=true&asPopupView=true | E57: Contratos de prestación de servicios profesionales y de apoyo a la gestión | F57: Contratación directa | G57: Prestación de servicios profesionales y de apoyo a la gestión, o para la ejecución de trabajos artísticos que sólo puedan encomendarse a determinadas personas naturales | H57: Prestar servicios profesionales para coordinar liderar y asesora los planes y estrategias de comunicación interna y externa para la divualgación de los programas proyectos y actividades de la Alcaldía Local. | I57: Inversión | J57: Un nuevo contrato social y ambiental para la Bogotá del Siglo XXI | K57: 57 | L57: =IF(ISERROR(VLOOKUP(K57,[2]Proposito_programa!$C$2:$E$59,2,FALSE))," ",VLOOKUP(K57,[2]Proposito_programa!$C$2:$E$59,2,FALSE)) -> Gestión pública local | M57: =IF(ISERROR(VLOOKUP(K57,[2]Proposito_programa!$C$2:$E$59,3,FALSE))," ",VLOOKUP(K57,[2]Proposito_programa!$C$2:$E$59,3,FALSE)) -> Propósito 5: Construir Bogotá - Región con gobierno abierto, transparente y ciudadanía consciente | N57: 1741 | P57: 1026259433 | Q57: HAYDIBERS ARREDONDO BAUTISTA | R57: Persona Natural | W57: 57600000 | X57: 0 | Y57: 1 | Z57: 28800000 | AA57: 86400000 | AB57: 78240000 | AC57: 2022-01-20 | AD57: 2022-01-20 | AE57: 2023-01-19 | AF57: 240 | AG57: 1 | AH57: 120 | AM57: En ejecución | AN57: 0.9
A58: 44 | B58: 2022 | C58: FDLCH-CPS-044-2022 | D58: https://community.secop.gov.co/Public/Tendering/OpportunityDetail/Index?noticeUID=CO1.NTC.2623463&isFromPublicArea=True&isModal=true&asPopupView=true | E58: Contratos de prestación de servicios profesionales y de apoyo a la gestión | F58: Contratación directa | G58: Prestación de servicios profesionales y de apoyo a la gestión, o para la ejecución de trabajos artísticos que sólo puedan encomendarse a determinadas personas naturales | H58: Prestar servicios profesionales para la gestion formulacion desarrollo seguimiento y evaluación del Proyecto Justicia accesible y oportuna para Chapinero. | I58: Inversión | J58: Un nuevo contrato social y ambiental para la Bogotá del Siglo XXI | K58: 48 | L58: =IF(ISERROR(VLOOKUP(K58,[2]Proposito_programa!$C$2:$E$59,2,FALSE))," ",VLOOKUP(K58,[2]Proposito_programa!$C$2:$E$59,2,FALSE)) -> Plataforma institucional para la seguridad y justicia | M58: =IF(ISERROR(VLOOKUP(K58,[2]Proposito_programa!$C$2:$E$59,3,FALSE))," ",VLOOKUP(K58,[2]Proposito_programa!$C$2:$E$59,3,FALSE)) -> Propósito 3: Inspirar confianza y legitimidad para vivir sin miedo y ser epicentro de cultura ciudadana, paz y reconciliación | N58: 1738 | P58: 1010219432 | Q58: SANTIAGO ALEJANDRO CARDENAS CABALLERO | R58: Persona Natural | W58: 27600000 | X58: 0 | Y58: 1 | Z58: 13800000 | AA58: 41400000 | AB58: 41400000 | AC58: 2022-01-21 | AD58: 2022-01-24 | AE58: 2022-10-23 | AF58: 180 | AG58: 1 | AH58: 90 | AM58: Terminado | AN58: 1
A59: 45 | B59: 2022 | C59: FDLCH-CPS-045-2022 | D59: https://community.secop.gov.co/Public/Tendering/OpportunityDetail/Index?noticeUID=CO1.NTC.2623094&isFromPublicArea=True&isModal=true&asPopupView=true | E59: Contratos de prestación de servicios profesionales y de apoyo a la gestión | F59: Contratación directa | G59: Prestación de servicios profesionales y de apoyo a la gestión, o para la ejecución de trabajos artísticos que sólo puedan encomendarse a determinadas personas naturales | H59: Prestar servicios profesionales para apoyar a los responsables integrantes de los procesos en la implementación de herramientas de gestión, siguiendo los lineamientos metodológicos establecidos por la oficina asesora de planeación de la Secretaria Distrital de Gobierno. | I59: Inversión | J59: Un nuevo contrato social y ambiental para la Bogotá del Siglo XXI | K59: 57 | L59: =IF(ISERROR(VLOOKUP(K59,[2]Proposito_programa!$C$2:$E$59,2,FALSE))," ",VLOOKUP(K59,[2]Proposito_programa!$C$2:$E$59,2,FALSE)) -> Gestión pública local | M59: =IF(ISERROR(VLOOKUP(K59,[2]Proposito_programa!$C$2:$E$59,3,FALSE))," ",VLOOKUP(K59,[2]Proposito_programa!$C$2:$E$59,3,FALSE)) -> Propósito 5: Construir Bogotá - Región con gobierno abierto, transparente y ciudadanía consciente | N59: 1741 | P59: 1030525081 | Q59: BLANCA LEIDY NAVARRO DOMINGUEZ | R59: Persona Natural | W59: 44000000 | X59: 0 | Y59: 1 | Z59: 22000000 | AA59: 66000000 | AB59: 59583333 | AC59: 2022-01-20 | AD59: 2022-01-21 | AE59: 2023-01-20 | AF59: 240 | AG59: 1 | AH59: 120 | AM59: En ejecución | AN59: 0.9
A60: 46 | B60: 2022 | C60: FDLCH-CPS-046-2022 | D60: https://community.secop.gov.co/Public/Tendering/OpportunityDetail/Index?noticeUID=CO1.NTC.2623041&isFromPublicArea=True&isModal=true&asPopupView=true | E60: Contratos de prestación de servicios profesionales y de apoyo a la gestión | F60: Contratación directa | G60: Prestación de servicios profesionales y de apoyo a la gestión, o para la ejecución de trabajos artísticos que sólo puedan encomendarse a determinadas personas naturales | H60: Prestar servicios profesionales para apoyar la gestión precontractual, contractual y postcontractual que adelante el Fondo de Desarrollo Local de Chapinero. | I60: Inversión | J60: Un nuevo contrato social y ambiental para la Bogotá del Siglo XXI | K60: 57 | L60: =IF(ISERROR(VLOOKUP(K60,[2]Proposito_programa!$C$2:$E$59,2,FALSE))," ",VLOOKUP(K60,[2]Proposito_programa!$C$2:$E$59,2,FALSE)) -> Gestión pública local | M60: =IF(ISERROR(VLOOKUP(K60,[2]Proposito_programa!$C$2:$E$59,3,FALSE))," ",VLOOKUP(K60,[2]Proposito_programa!$C$2:$E$59,3,FALSE)) -> Propósito 5: Construir Bogotá - Región con gobierno abierto, transparente y ciudadanía consciente | N60: 1741 | P60: 1144193027 | Q60: JUAN FERNANDO VILLEGAS MOTOA | R60: Persona Natural | W60: 27480000 | X60: 0 | Y60: 1 | Z60: 13740000 | AA60: 41220000 | AB60: 41220000 | AC60: 2022-01-20 | AD60: 2022-01-20 | AE60: 2022-10-19 | AF60: 180 | AG60: 1 | AH60: 90 | AM60: Terminado | AN60: 1
A61: 47 | B61: 2022 | C61: FDLCH-CPS-047-2022 | D61: https://community.secop.gov.co/Public/Tendering/OpportunityDetail/Index?noticeUID=CO1.NTC.2632013&isFromPublicArea=True&isModal=true&asPopupView=true | E61: Contratos de prestación de servicios profesionales y de apoyo a la gestión | F61: Contratación directa | G61: Prestación de servicios profesionales y de apoyo a la gestión, o para la ejecución de trabajos artísticos que sólo puedan encomendarse a determinadas personas naturales | H61: Prestación de servicios profesionales para la gestión, formulación, desarrollo, seguimiento y evaluación del proyecto de inversión local “Jóvenes comprometidos por Chapinero”, así como el apoyo a la supervisión de los contrataos que le sean asignados por el Alcalde Local. | I61: Inversión | J61: Un nuevo contrato social y ambiental para la Bogotá del Siglo XXI | K61: 34 | L61: =IF(ISERROR(VLOOKUP(K61,[2]Proposito_programa!$C$2:$E$59,2,FALSE))," ",VLOOKUP(K61,[2]Proposito_programa!$C$2:$E$59,2,FALSE)) -> Bogotá protectora de los animales | M61: =IF(ISERROR(VLOOKUP(K61,[2]Proposito_programa!$C$2:$E$59,3,FALSE))," ",VLOOKUP(K61,[2]Proposito_programa!$C$2:$E$59,3,FALSE)) -> Propósito 2 : Cambiar Nuestros Hábitos de Vida para Reverdecer a Bogotá y Adaptarnos y Mitigar la Crisis Climática | N61: 1731 | P61: 33366680 | Q61: FRANCY PAOLA MONROY ALVAREZ | R61: Persona Natural | W61: 30972000 | X61: 0 | Y61: 1 | Z61: 15486000 | AA61: 46458000 | AB61: 46458000 | AC61: 2022-01-20 | AD61: 2022-01-24 | AE61: 2022-10-23 | AF61: 180 | AG61: 1 | AH61: 90 | AM61: Terminado | AN61: 1
A62: 48 | B62: 2022 | C62: FDLCH-CPS-048-2022 | D62: https://community.secop.gov.co/Public/Tendering/OpportunityDetail/Index?noticeUID=CO1.NTC.2632297&isFromPublicArea=True&isModal=true&asPopupView=true | E62: Contratos de prestación de servicios profesionales y de apoyo a la gestión | F62: Contratación directa | G62: Prestación de servicios profesionales y de apoyo a la gestión, o para la ejecución de trabajos artísticos que sólo puedan encomendarse a determinadas personas naturales | H62: Prestar servicios profesionales para la gestión, formulación, desarrollo y seguimiento del proyecto de inversión proyecto chapinero sostenible y consciente. | I62: Inversión | J62: Un nuevo contrato social y ambiental para la Bogotá del Siglo XXI | K62: 38 | L62: =IF(ISERROR(VLOOKUP(K62,[2]Proposito_programa!$C$2:$E$59,2,FALSE))," ",VLOOKUP(K62,[2]Proposito_programa!$C$2:$E$59,2,FALSE)) -> Ecoeficiencia, reciclaje, manejo de residuos e inclusión de la población recicladora | M62: =IF(ISERROR(VLOOKUP(K62,[2]Proposito_programa!$C$2:$E$59,3,FALSE))," ",VLOOKUP(K62,[2]Proposito_programa!$C$2:$E$59,3,FALSE)) -> Propósito 2 : Cambiar Nuestros Hábitos de Vida para Reverdecer a Bogotá y Adaptarnos y Mitigar la Crisis Climática | N62: 1728 | P62: 1019031184 | Q62: RAYMOND ALEXANDER JIMENEZ ARTEAGA | R62: Persona Natural | W62: 30000000 | X62: 0 | Y62: 2 | Z62: 15000000 | AA62: 45000000 | AB62: 45000000 | AC62: 2022-01-20 | AD62: 2022-01-24 | AE62: 2022-11-02 | AF62: 180 | AG62: 2 | AH62: 90 | AM62: Terminado | AN62: 1
A63: 49 | B63: 2022 | C63: FDLCH-CPS-049-2022 | D63: https://community.secop.gov.co/Public/Tendering/OpportunityDetail/Index?noticeUID=CO1.NTC.2632900&isFromPublicArea=True&isModal=true&asPopupView=true | E63: Contratos de prestación de servicios profesionales y de apoyo a la gestión | F63: Contratación directa | G63: Prestación de servicios profesionales y de apoyo a la gestión, o para la ejecución de trabajos artísticos que sólo puedan encomendarse a determinadas personas naturales | H63: Prestar los servicios profesionales para apoyar el área de Gestión del Desarrollo local de la Alcaldía Local de Chapinero, en la formulación, gestión, ejecución y apoyo a la supervisión de los proyectos relacionados con los temas de salud, en cumplimiento de las metas y objetivos del Plan de Desarrollo Local. | I63: Inversión | J63: Un nuevo contrato social y ambiental para la Bogotá del Siglo XXI | K63: 6 | L63: =IF(ISERROR(VLOOKUP(K63,[2]Proposito_programa!$C$2:$E$59,2,FALSE))," ",VLOOKUP(K63,[2]Proposito_programa!$C$2:$E$59,2,FALSE)) -> Sistema Distrital de Cuidado | M63: =IF(ISERROR(VLOOKUP(K63,[2]Proposito_programa!$C$2:$E$59,3,FALSE))," ",VLOOKUP(K63,[2]Proposito_programa!$C$2:$E$59,3,FALSE)) -> Propósito 1: Hacer un nuevo contrato social para incrementar la inclusión social, productiva y política | N63: 2024 | P63: 53037864 | Q63: DIANA CAROLINA MORENO RINCON | R63: Persona Natural | W63: 30000000 | X63: 0 | Y63: 2 | Z63: 15000000 | AA63: 45000000 | AB63: 45000000 | AC63: 2022-01-20 | AD63: 2022-01-24 | AE63: 2022-10-23 | AF63: 180 | AG63: 2 | AH63: 90 | AM63: Terminado | AN63: 1
A64: 50 | B64: 2022 | C64: FDLCH-CPS-050-2022 | D64: https://community.secop.gov.co/Public/Tendering/OpportunityDetail/Index?noticeUID=CO1.NTC.2649478&isFromPublicArea=True&isModal=true&asPopupView=true | E64: Contratos de prestación de servicios profesionales y de apoyo a la gestión | F64: Contratación directa | G64: Prestación de servicios profesionales y de apoyo a la gestión, o para la ejecución de trabajos artísticos que sólo puedan encomendarse a determinadas personas naturales | H64: Prestar servicios de apoyo a las labores de entrega y recibo de las comunicaciones emitidas o recibidas por la Alcaldía Local de Chapinero. | I64: Inversión | J64: Un nuevo contrato social y ambiental para la Bogotá del Siglo XXI | K64: 57 | L64: =IF(ISERROR(VLOOKUP(K64,[2]Proposito_programa!$C$2:$E$59,2,FALSE))," ",VLOOKUP(K64,[2]Proposito_programa!$C$2:$E$59,2,FALSE)) -> Gestión pública local | M64: =IF(ISERROR(VLOOKUP(K64,[2]Proposito_programa!$C$2:$E$59,3,FALSE))," ",VLOOKUP(K64,[2]Proposito_programa!$C$2:$E$59,3,FALSE)) -> Propósito 5: Construir Bogotá - Región con gobierno abierto, transparente y ciudadanía consciente | N64: 1741 | P64: 1019024025 | Q64: EFRAIN ANDRES MONROY CEPEDA | R64: Persona Natural | W64: 20000000 | X64: 0 | Y64: 2 | Z64: =8166666+1833333 -> 9999999 | AA64: 29999999 | AB64: 26833333 | AC64: 2022-01-21 | AD64: 2022-01-24 | AE64: 22/01/2023 | AF64: 240 | AG64: 2 | AH64: 120 | AM64: En ejecución | AN64: 0.9
A65: 51 | B65: 2022 | C65: FDLCH-CPS-051-2022 | D65: https://community.secop.gov.co/Public/Tendering/OpportunityDetail/Index?noticeUID=CO1.NTC.2630550&isFromPublicArea=True&isModal=true&asPopupView=true | E65: Contratos de prestación de servicios profesionales y de apoyo a la gestión | F65: Contratación directa | G65: Prestación de servicios profesionales y de apoyo a la gestión, o para la ejecución de trabajos artísticos que sólo puedan encomendarse a determinadas personas naturales | H65: Prestar servicios profesionales para apoyar las liquidaciones de contratos, la gestión precontractual, contractual y postcontractual, que adelante el Fondo de Desarrollo Local de Chapinero. | I65: Inversión | J65: Un nuevo contrato social y ambiental para la Bogotá del Siglo XXI | K65: 57 | L65: =IF(ISERROR(VLOOKUP(K65,[2]Proposito_programa!$C$2:$E$59,2,FALSE))," ",VLOOKUP(K65,[2]Proposito_programa!$C$2:$E$59,2,FALSE)) -> Gestión pública local | M65: =IF(ISERROR(VLOOKUP(K65,[2]Proposito_programa!$C$2:$E$59,3,FALSE))," ",VLOOKUP(K65,[2]Proposito_programa!$C$2:$E$59,3,FALSE)) -> Propósito 5: Construir Bogotá - Región con gobierno abierto, transparente y ciudadanía consciente | N65: 1741 | P65: 52900762 | Q65: JENNY CAROLINA GIRON CUERVO | R65: Persona Natural | W65: 36000000 | X65: 0 | Y65: 1 | Z65: 18000000 | AA65: 54000000 | AB65: 54000000 | AC65: 2022-01-21 | AD65: 2022-01-24 | AE65: 2022-10-23 | AF65: 180 | AG65: 1 | AH65: 90 | AM65: Terminado | AN65: 1
A66: 52 | B66: 2022 | C66: FDLCH-CPS-052-2022 | D66: https://community.secop.gov.co/Public/Tendering/OpportunityDetail/Index?noticeUID=CO1.NTC.2649478&isFromPublicArea=True&isModal=true&asPopupView=true | E66: Contratos de prestación de servicios profesionales y de apoyo a la gestión | F66: Contratación directa | G66: Prestación de servicios profesionales y de apoyo a la gestión, o para la ejecución de trabajos artísticos que sólo puedan encomendarse a determinadas personas naturales | H66: Prestar los servicios profesionales de apoyo a la gestión, formulación, desarrollo, seguimiento y evaluación del proyecto de inversión chapinero epicentro del deporte y la recreación. | I66: Inversión | J66: Un nuevo contrato social y ambiental para la Bogotá del Siglo XXI | K66: 20 | L66: =IF(ISERROR(VLOOKUP(K66,[2]Proposito_programa!$C$2:$E$59,2,FALSE))," ",VLOOKUP(K66,[2]Proposito_programa!$C$2:$E$59,2,FALSE)) -> Bogotá, referente en cultura, deporte, recreación y actividad física, con parques para el desarrollo y la salud | M66: =IF(ISERROR(VLOOKUP(K66,[2]Proposito_programa!$C$2:$E$59,3,FALSE))," ",VLOOKUP(K66,[2]Proposito_programa!$C$2:$E$59,3,FALSE)) -> Propósito 1: Hacer un nuevo contrato social para incrementar la inclusión social, productiva y política | N66: 1845 | P66: 1030592221 | Q66: MIGUEL ANGEL DELGADO BARRERA | R66: Persona Natural | W66: 40000000 | X66: -1 | Y66: 2 | Z66: 20000000 | AA66: 59999999 | AB66: 53166667 | AC66: 2022-01-21 | AD66: 2022-01-24 | AE66: 22/01/2023 | AF66: 240 | AG66: 1 | AH66: 120 | AI66: 1033802617 | AJ66: LAURA CAMILA RAMIREZ | AK66: 2022-11-04 | AL66: 11333333 | AM66: En ejecución | AN66: 0.9
A67: 53 | B67: 2022 | C67: FDLCH-CPS-053-2022 | D67: https://community.secop.gov.co/Public/Tendering/OpportunityDetail/Index?noticeUID=CO1.NTC.2641186&isFromPublicArea=True&isModal=true&asPopupView=true | E67: Contratos de prestación de servicios profesionales y de apoyo a la gestión | F67: Contratación directa | G67: Prestación de servicios profesionales y de apoyo a la gestión, o para la ejecución de trabajos artísticos que sólo puedan encomendarse a determinadas personas naturales | H67: Prestar servicios profesionales para apoyar al area de Gestion del Desarrollo Local de la Alcaldía Local de Chapinero en la formulacion gestion ejecucion y seguimiento de los contratos derivados del proyecto de inversión Chapinero cultural y creativa y la supervision de contratos que le sean asignados. | I67: Inversión | J67: Un nuevo contrato social y ambiental para la Bogotá del Siglo XXI | K67: 21 | L67: =IF(ISERROR(VLOOKUP(K67,[2]Proposito_programa!$C$2:$E$59,2,FALSE))," ",VLOOKUP(K67,[2]Proposito_programa!$C$2:$E$59,2,FALSE)) -> Creación y vida cotidiana: Apropiación ciudadana del arte, la cultura y el patrimonio, para la democracia cultural | M67: =IF(ISERROR(VLOOKUP(K67,[2]Proposito_programa!$C$2:$E$59,3,FALSE))," ",VLOOKUP(K67,[2]Proposito_programa!$C$2:$E$59,3,FALSE)) -> Propósito 1: Hacer un nuevo contrato social para incrementar la inclusión social, productiva y política | N67: 1848 | P67: 55061809 | Q67: CLAUDIA YANETH FERRO DUCUARA | R67: Persona Natural | W67: 30000000 | X67: 0 | Y67: 1 | Z67: 15000000 | AA67: 45000000 | AB67: 45000000 | AC67: 2022-01-21 | AD67: 2022-01-24 | AE67: 2022-10-23 | AF67: 180 | AG67: 1 | AH67: 90 | AM67: Terminado | AN67: 1
A68: 54 | B68: 2022 | C68: FDLCH-CPS-054-2022 | D68: https://community.secop.gov.co/Public/Tendering/OpportunityDetail/Index?noticeUID=CO1.NTC.2641319&isFromPublicArea=True&isModal=true&asPopupView=true | E68: Contratos de prestación de servicios profesionales y de apoyo a la gestión | F68: Contratación directa | G68: Prestación de servicios profesionales y de apoyo a la gestión, o para la ejecución de trabajos artísticos que sólo puedan encomendarse a determinadas personas naturales | H68: Prestar servicios profesionales para apoyar el area Gestion del Desarrollo Local de la Alcaldia Local de Chapinero en los aspectos económicos y financieros de las etapas pre contractuales contractuales y post contractuales de los proyectos de inversion así como la produccion consolidación y analisis de datos estadísticas e informes de impacto del Plan de Desarrollo Local. | I68: Inversión | J68: Un nuevo contrato social y ambiental para la Bogotá del Siglo XXI | K68: 57 | L68: =IF(ISERROR(VLOOKUP(K68,[2]Proposito_programa!$C$2:$E$59,2,FALSE))," ",VLOOKUP(K68,[2]Proposito_programa!$C$2:$E$59,2,FALSE)) -> Gestión pública local | M68: =IF(ISERROR(VLOOKUP(K68,[2]Proposito_programa!$C$2:$E$59,3,FALSE))," ",VLOOKUP(K68,[2]Proposito_programa!$C$2:$E$59,3,FALSE)) -> Propósito 5: Construir Bogotá - Región con gobierno abierto, transparente y ciudadanía consciente | N68: 1741 | P68: 1016059999 | Q68: CRISTIAN DANIEL VILLARREAL PARROQUIANO | R68: Persona Natural | W68: 36800000 | X68: 0 | Y68: 1 | Z68: 17020000 | AA68: 53820000 | AB68: 49373333 | AC68: 2022-01-21 | AD68: 2022-01-24 | AE68: 2023-01-13 | AF68: 240 | AG68: 1 | AH68: 111 | AM68: En ejecución | AN68: 0.9
A69: 55 | B69: 2022 | C69: FDLCH-CPS-055-2022 | D69: https://community.secop.gov.co/Public/Tendering/OpportunityDetail/Index?noticeUID=CO1.NTC.2649357&isFromPublicArea=True&isModal=true&asPopupView=true | E69: Contratos de prestación de servicios profesionales y de apoyo a la gestión | F69: Contratación directa | G69: Prestación de servicios profesionales y de apoyo a la gestión, o para la ejecución de trabajos artísticos que sólo puedan encomendarse a determinadas personas naturales | H69: Prestar los servicios profesionales para coordinar la articulación, asistencia y acompañamiento de los procesos de planeación local, para la promoción de la participación de las mujeres y de la equidad de genero, para materializar en la localidad las estrategias de territorialización y transversalización de la politica de mujeres y equidad de genero. PPMYEG. | I69: Inversión | J69: Un nuevo contrato social y ambiental para la Bogotá del Siglo XXI | K69: 40 | L69: =IF(ISERROR(VLOOKUP(K69,[2]Proposito_programa!$C$2:$E$59,2,FALSE))," ",VLOOKUP(K69,[2]Proposito_programa!$C$2:$E$59,2,FALSE)) -> Más mujeres viven una vida libre de violencias, se sienten seguras y acceden con confianza al sistema de justicia | M69: =IF(ISERROR(VLOOKUP(K69,[2]Proposito_programa!$C$2:$E$59,3,FALSE))," ",VLOOKUP(K69,[2]Proposito_programa!$C$2:$E$59,3,FALSE)) -> Propósito 3: Inspirar confianza y legitimidad para vivir sin miedo y ser epicentro de cultura ciudadana, paz y reconciliación | N69: 2035 | P69: 1110174525 | Q69: VIVIANA LOZANO DUCUARA | R69: Persona Natural | W69: 49600000 | X69: -7853333 | AA69: 41746667 | AB69: 41746667 | AC69: 2022-01-21 | AD69: 2022-01-24 | AE69: 2022-08-16 | AF69: 240 | AM69: Terminado | AN69: 1
A70: 56 | B70: 2022 | C70: FDLCH-CPS-056-2022 | D70: https://community.secop.gov.co/Public/Tendering/OpportunityDetail/Index?noticeUID=CO1.NTC.2632824&isFromPublicArea=True&isModal=true&asPopupView=true | E70: Contratos de prestación de servicios profesionales y de apoyo a la gestión | F70: Contratación directa | G70: Prestación de servicios profesionales y de apoyo a la gestión, o para la ejecución de trabajos artísticos que sólo puedan encomendarse a determinadas personas naturales | H70: Prestar los servicios de apoyo necesarios para la conducción de los vehículos que conforman el parque automotor en propiedad o custodia del fondo de desarrollo local de chapinero, y el transporte de servidores públicos para la realización de las actividades misionales de la Alcaldía Local de Chapinero. | I70: Inversión | J70: Un nuevo contrato social y ambiental para la Bogotá del Siglo XXI | K70: 57 | L70: =IF(ISERROR(VLOOKUP(K70,[2]Proposito_programa!$C$2:$E$59,2,FALSE))," ",VLOOKUP(K70,[2]Proposito_programa!$C$2:$E$59,2,FALSE)) -> Gestión pública local | M70: =IF(ISERROR(VLOOKUP(K70,[2]Proposito_programa!$C$2:$E$59,3,FALSE))," ",VLOOKUP(K70,[2]Proposito_programa!$C$2:$E$59,3,FALSE)) -> Propósito 5: Construir Bogotá - Región con gobierno abierto, transparente y ciudadanía consciente | N70: 1741 | P70: 3220879 | Q70: BENEDICTO VANEGAS CASTELLANOS | R70: Persona Natural | W70: =20800000+20280000 -> 41080000 | X70: -20280000 | Y70: 2 | Z70: =8753333+1646666 -> 10399999 | AA70: 31199999 | AB70: 28166667 | AC70: 2022-01-20 | AD70: 2022-01-21 | AE70: 19/01/2023 | AF70: 240 | AG70: 2 | AH70: 120 | AI70: 79910420 | AJ70: HAMILTON ARREDONDO BAUTISTA | AK70: 2022-01-27 | AL70: 20280000 | AM70: En ejecución | AN70: 0.9
A71: 57 | B71: 2022 | C71: FDLCH-CPS-057-2022 | D71: https://community.secop.gov.co/Public/Tendering/OpportunityDetail/Index?noticeUID=CO1.NTC.2641910&isFromPublicArea=True&isModal=true&asPopupView=true | E71: Contratos de prestación de servicios profesionales y de apoyo a la gestión | F71: Contratación directa | G71: Prestación de servicios profesionales y de apoyo a la gestión, o para la ejecución de trabajos artísticos que sólo puedan encomendarse a determinadas personas naturales | H71: Prestar servicios profesionales de apoyo para la gestión formulación, desarrollo y seguimiento del proyecto de inversión no. 1715 chapinero restaurador y cuidador del territorio. | I71: Inversión | J71: Un nuevo contrato social y ambiental para la Bogotá del Siglo XXI | K71: 28 | L71: =IF(ISERROR(VLOOKUP(K71,[2]Proposito_programa!$C$2:$E$59,2,FALSE))," ",VLOOKUP(K71,[2]Proposito_programa!$C$2:$E$59,2,FALSE)) -> Bogotá protectora de sus recursos naturales | M71: =IF(ISERROR(VLOOKUP(K71,[2]Proposito_programa!$C$2:$E$59,3,FALSE))," ",VLOOKUP(K71,[2]Proposito_programa!$C$2:$E$59,3,FALSE)) -> Propósito 2 : Cambiar Nuestros Hábitos de Vida para Reverdecer a Bogotá y Adaptarnos y Mitigar la Crisis Climática | N71: 1715 | P71: 11442710 | Q71: TITO FABIAN RUIZ BARAJAS | R71: Persona Natural | W71: 30000000 | X71: 0 | Y71: 1 | Z71: 15000000 | AA71: 45000000 | AB71: 45000000 | AC71: 2022-01-21 | AD71: 2022-01-24 | AE71: 2022-10-23 | AF71: 180 | AG71: 1 | AH71: 90 | AM71: Terminado | AN71: 1
A72: 58 | B72: 2022 | C72: FDLCH-CPS-058-2022 | D72: https://community.secop.gov.co/Public/Tendering/OpportunityDetail/Index?noticeUID=CO1.NTC.2633579&isFromPublicArea=True&isModal=true&asPopupView=true | E72: Contratos de prestación de servicios profesionales y de apoyo a la gestión | F72: Contratación directa | G72: Prestación de servicios profesionales y de apoyo a la gestión, o para la ejecución de trabajos artísticos que sólo puedan encomendarse a determinadas personas naturales | H72: Apoyar jurídicamente la ejecución de las acciones requeridas para la depuración de las actuaciones administrativas que cursan en la Alcaldía Local. | I72: Inversión | J72: Un nuevo contrato social y ambiental para la Bogotá del Siglo XXI | K72: 57 | L72: =IF(ISERROR(VLOOKUP(K72,[2]Proposito_programa!$C$2:$E$59,2,FALSE))," ",VLOOKUP(K72,[2]Proposito_programa!$C$2:$E$59,2,FALSE)) -> Gestión pública local | M72: =IF(ISERROR(VLOOKUP(K72,[2]Proposito_programa!$C$2:$E$59,3,FALSE))," ",VLOOKUP(K72,[2]Proposito_programa!$C$2:$E$59,3,FALSE)) -> Propósito 5: Construir Bogotá - Región con gobierno abierto, transparente y ciudadanía consciente | N72: 1841 | P72: 1022327851 | Q72: JUAN CAMILO RAMIREZ PINTO | R72: Persona Natural | W72: 36800000 | X72: 0 | Y72: 1 | Z72: 13800000 | AA72: 50600000 | AB72: 47073333 | AC72: 2022-01-20 | AD72: 2022-01-24 | AE72: 2022-12-23 | AF72: 240 | AG72: 1 | AH72: 90 | AM72: Terminado | AN72: 1
A73: 59 | B73: 2022 | C73: FDLCH-CPS-059-2022 | D73: https://community.secop.gov.co/Public/Tendering/OpportunityDetail/Index?noticeUID=CO1.NTC.2651889&isFromPublicArea=True&isModal=true&asPopupView=true | E73: Contratos de prestación de servicios profesionales y de apoyo a la gestión | F73: Contratación directa | G73: Prestación de servicios profesionales y de apoyo a la gestión, o para la ejecución de trabajos artísticos que sólo puedan encomendarse a determinadas personas naturales | H73: Prestar los servicios de apoyo necesarios para la conducción de los vehículos que conforman el parque automotor en propiedad o custodia del fondo de desarrollo local de chapinero, y el transporte de servidores públicos para la realización de las actividades misionales de la alcaldía local de chapinero | I73: Inversión | J73: Un nuevo contrato social y ambiental para la Bogotá del Siglo XXI | K73: 57 | L73: =IF(ISERROR(VLOOKUP(K73,[2]Proposito_programa!$C$2:$E$59,2,FALSE))," ",VLOOKUP(K73,[2]Proposito_programa!$C$2:$E$59,2,FALSE)) -> Gestión pública local | M73: =IF(ISERROR(VLOOKUP(K73,[2]Proposito_programa!$C$2:$E$59,3,FALSE))," ",VLOOKUP(K73,[2]Proposito_programa!$C$2:$E$59,3,FALSE)) -> Propósito 5: Construir Bogotá - Región con gobierno abierto, transparente y ciudadanía consciente | N73: 1741 | P73: 80012471 | Q73: LUIS GIOVANNY LOPEZ SIMIJACA | R73: Persona Natural | W73: 15600000 | X73: 0 | Y73: 1 | Z73: 7800000 | AA73: 23400000 | AB73: 23400000 | AC73: 2022-01-21 | AD73: 2022-01-24 | AE73: 2022-10-23 | AF73: 180 | AG73: 1 | AH73: 90 | AM73: Terminado | AN73: 1
A74: 60 | B74: 2022 | C74: FDLCH-CPS-060-2022 | D74: https://community.secop.gov.co/Public/Tendering/OpportunityDetail/Index?noticeUID=CO1.NTC.2649934&isFromPublicArea=True&isModal=true&asPopupView=true | E74: Contratos de prestación de servicios profesionales y de apoyo a la gestión | F74: Contratación directa | G74: Prestación de servicios profesionales y de apoyo a la gestión, o para la ejecución de trabajos artísticos que sólo puedan encomendarse a determinadas personas naturales | H74: Prestar servicios profesionales para el apoyo al área de gestión del desarrollo local de la Alcaldía Local de Chapinero en la formulación, gestión, ejecución, desarrollo y seguimiento de los contratos derivados del proyecto. Chapinero Liderado por la Ciudadanía así como el apoyo a la supervisión de los contratos que le sean asignados por el Alcalde Local. | I74: Inversión | J74: Un nuevo contrato social y ambiental para la Bogotá del Siglo XXI | K74: 55 | L74: =IF(ISERROR(VLOOKUP(K74,[2]Proposito_programa!$C$2:$E$59,2,FALSE))," ",VLOOKUP(K74,[2]Proposito_programa!$C$2:$E$59,2,FALSE)) -> Fortalecimiento de cultura ciudadana y su institucionalidad | M74: =IF(ISERROR(VLOOKUP(K74,[2]Proposito_programa!$C$2:$E$59,3,FALSE))," ",VLOOKUP(K74,[2]Proposito_programa!$C$2:$E$59,3,FALSE)) -> Propósito 5: Construir Bogotá - Región con gobierno abierto, transparente y ciudadanía consciente | N74: 1739 | P74: 1090489409 | Q74: CARLOS ARTURO BARBOSA PEREZ | R74: Persona Natural | W74: 30000000 | X74: -15166666 | AA74: 14833334 | AB74: 14833334 | AC74: 2022-01-21 | AD74: 2022-01-24 | AE74: 2022-08-12 | AF74: 180 | AM74: Terminado | AN74: 1
A75: 61 | B75: 2022 | C75: FDLCH-CPS-061-2022 | D75: https://community.secop.gov.co/Public/Tendering/OpportunityDetail/Index?noticeUID=CO1.NTC.2651372&isFromPublicArea=True&isModal=true&asPopupView=true | E75: Contratos de prestación de servicios profesionales y de apoyo a la gestión | F75: Contratación directa | G75: Prestación de servicios profesionales y de apoyo a la gestión, o para la ejecución de trabajos artísticos que sólo puedan encomendarse a determinadas personas naturales | H75: Prestar servicios técnicos para apoyo a la gestión, formulación, desarrollo y seguimieno del proyecto de inversión No. 1731 "CHAPINERO DEJANDO HUELLA POR LOS ANIMALES" | I75: Inversión | J75: Un nuevo contrato social y ambiental para la Bogotá del Siglo XXI | K75: 34 | L75: =IF(ISERROR(VLOOKUP(K75,[2]Proposito_programa!$C$2:$E$59,2,FALSE))," ",VLOOKUP(K75,[2]Proposito_programa!$C$2:$E$59,2,FALSE)) -> Bogotá protectora de los animales | M75: =IF(ISERROR(VLOOKUP(K75,[2]Proposito_programa!$C$2:$E$59,3,FALSE))," ",VLOOKUP(K75,[2]Proposito_programa!$C$2:$E$59,3,FALSE)) -> Propósito 2 : Cambiar Nuestros Hábitos de Vida para Reverdecer a Bogotá y Adaptarnos y Mitigar la Crisis Climática | N75: 1731 | P75: 1022411110 | Q75: VERONICA SIMONA MARTINEZ AREVALO | R75: Persona Natural | W75: 16800000 | X75: 0 | AA75: 16800000 | AB75: 16800000 | AC75: 2022-01-21 | AD75: 2022-01-24 | AE75: 2022-07-23 | AF75: 180 | AM75: Terminado | AN75: 1
A76: 62 | B76: 2022 | C76: FDLCH-CPS-062-2022 | D76: https://community.secop.gov.co/Public/Tendering/OpportunityDetail/Index?noticeUID=CO1.NTC.2651867&isFromPublicArea=True&isModal=true&asPopupView=true | E76: Contratos de prestación de servicios profesionales y de apoyo a la gestión | F76: Contratación directa | G76: Prestación de servicios profesionales y de apoyo a la gestión, o para la ejecución de trabajos artísticos que sólo puedan encomendarse a determinadas personas naturales | H76: Prestar servicios profesionales para apoyar el área de gestión de desarrollo local de la Alcaldía Local de Chapinero,en formulación, gestión, ejecución y apoyo a la supervisión de los proyectos relacionados con las estrategias y metas relacionadas con el programa sistema distrital de cuidado y fortalecimiento de organizaciones sociales, comunitarias y comunales locales. | I76: Inversión | J76: Un nuevo contrato social y ambiental para la Bogotá del Siglo XXI | K76: 6 | L76: =IF(ISERROR(VLOOKUP(K76,[2]Proposito_programa!$C$2:$E$59,2,FALSE))," ",VLOOKUP(K76,[2]Proposito_programa!$C$2:$E$59,2,FALSE)) -> Sistema Distrital de Cuidado | M76: =IF(ISERROR(VLOOKUP(K76,[2]Proposito_programa!$C$2:$E$59,3,FALSE))," ",VLOOKUP(K76,[2]Proposito_programa!$C$2:$E$59,3,FALSE)) -> Propósito 1: Hacer un nuevo contrato social para incrementar la inclusión social, productiva y política | N76: 1710 | P76: 80092921 | Q76: FEDERICO SANTIAGO BALLESTEROS | R76: Persona Natural | W76: 27600000 | X76: 0 | Y76: 1 | Z76: 13800000 | AA76: 41400000 | AB76: 41400000 | AC76: 2022-01-21 | AD76: 2022-01-24 | AE76: 2022-10-23 | AF76: 180 | AG76: 1 | AH76: 90 | AM76: Terminado | AN76: 1
A77: 63 | B77: 2022 | C77: FDLCH-CPS-063-2022 | D77: https://community.secop.gov.co/Public/Tendering/OpportunityDetail/Index?noticeUID=CO1.NTC.2651516&isFromPublicArea=True&isModal=true&asPopupView=true | E77: Contratos de prestación de servicios profesionales y de apoyo a la gestión | F77: Contratación directa | G77: Prestación de servicios profesionales y de apoyo a la gestión, o para la ejecución de trabajos artísticos que sólo puedan encomendarse a determinadas personas naturales | H77: Apoyar al Alcalde Local en la promoción, acompañamiento, coordinación y atención de las instancias de coordinación interinstitucionales y las instancias de participación locales, así como los procesos comunitarios en la localidad | I77: Inversión | J77: Un nuevo contrato social y ambiental para la Bogotá del Siglo XXI | K77: 57 | L77: =IF(ISERROR(VLOOKUP(K77,[2]Proposito_programa!$C$2:$E$59,2,FALSE))," ",VLOOKUP(K77,[2]Proposito_programa!$C$2:$E$59,2,FALSE)) -> Gestión pública local | M77: =IF(ISERROR(VLOOKUP(K77,[2]Proposito_programa!$C$2:$E$59,3,FALSE))," ",VLOOKUP(K77,[2]Proposito_programa!$C$2:$E$59,3,FALSE)) -> Propósito 5: Construir Bogotá - Región con gobierno abierto, transparente y ciudadanía consciente | N77: 1741 | P77: 1026276743 | Q77: LAURA MALAGIGI GOMEZ | R77: Persona Natural | W77: 31032000 | X77: 0 | Y77: 1 | Z77: 15516000 | AA77: 46548000 | AB77: 42582800 | AC77: 2022-01-21 | AD77: 2022-01-24 | AE77: 2022-10-23 | AF77: 180 | AG77: 1 | AH77: 90 | AM77: Terminado | AN77: 1
A78: 64 | B78: 2022 | C78: FDLCH-CPS-064-2022 | D78: https://community.secop.gov.co/Public/Tendering/OpportunityDetail/Index?noticeUID=CO1.NTC.2649747&isFromPublicArea=True&isModal=true&asPopupView=true | E78: Contratos de prestación de servicios profesionales y de apoyo a la gestión | F78: Contratación directa | G78: Prestación de servicios profesionales y de apoyo a la gestión, o para la ejecución de trabajos artísticos que sólo puedan encomendarse a determinadas personas naturales | H78: Prestar servicios profesionales de apoyo a la gestión para el desarrollo de actividades relacionads con la formulación, seguimiento, terminación y ciere de proyectos de inversión relacionados con la gestión del riesgo y elcambio climático en laLocalidad de Chapinero. | I78: Inversión | J78: Un nuevo contrato social y ambiental para la Bogotá del Siglo XXI | K78: 30 | L78: =IF(ISERROR(VLOOKUP(K78,[2]Proposito_programa!$C$2:$E$59,2,FALSE))," ",VLOOKUP(K78,[2]Proposito_programa!$C$2:$E$59,2,FALSE)) -> Eficiencia en la atención de emergencias | M78: =IF(ISERROR(VLOOKUP(K78,[2]Proposito_programa!$C$2:$E$59,3,FALSE))," ",VLOOKUP(K78,[2]Proposito_programa!$C$2:$E$59,3,FALSE)) -> Propósito 2 : Cambiar Nuestros Hábitos de Vida para Reverdecer a Bogotá y Adaptarnos y Mitigar la Crisis Climática | N78: 1719 | P78: 1032460215 | Q78: EDWARD STIVEN BARRERA GONZALEZ | R78: Persona Natural | W78: 27600000 | X78: 0 | Y78: 1 | Z78: 13800000 | AA78: 41400000 | AB78: 41400000 | AC78: 2022-01-21 | AD78: 2022-01-24 | AE78: 2022-10-23 | AF78: 180 | AG78: 1 | AH78: 90 | AM78: Terminado | AN78: 1
A79: 65 | B79: 2022 | C79: FDLCH-CPS-065-2022 | D79: https://community.secop.gov.co/Public/Tendering/OpportunityDetail/Index?noticeUID=CO1.NTC.2650909&isFromPublicArea=True&isModal=true&asPopupView=true | E79: Contratos de prestación de servicios profesionales y de apoyo a la gestión | F79: Contratación directa | G79: Prestación de servicios profesionales y de apoyo a la gestión, o para la ejecución de trabajos artísticos que sólo puedan encomendarse a determinadas personas naturales | H79: Prestar los servicios de apoyo para la operación, seguimiento y cumplimiento de los procesos y procedimientos del Servicio de salud, que contribuyan a la garantía de los derechos de los diferentes grupos poblacionales en el marco de las Políticas Públicas de los proyectos relacionados con los temas de salud, en cumplimiento de las metas y objetivos del Plan de Desarrollo Local. | I79: Inversión | J79: Un nuevo contrato social y ambiental para la Bogotá del Siglo XXI | K79: 6 | L79: =IF(ISERROR(VLOOKUP(K79,[2]Proposito_programa!$C$2:$E$59,2,FALSE))," ",VLOOKUP(K79,[2]Proposito_programa!$C$2:$E$59,2,FALSE)) -> Sistema Distrital de Cuidado | M79: =IF(ISERROR(VLOOKUP(K79,[2]Proposito_programa!$C$2:$E$59,3,FALSE))," ",VLOOKUP(K79,[2]Proposito_programa!$C$2:$E$59,3,FALSE)) -> Propósito 1: Hacer un nuevo contrato social para incrementar la inclusión social, productiva y política | N79: 2024 | P79: 52428639 | Q79: LILIANA RUIZ JIMENEZ | R79: Persona Natural | W79: 19420000 | X79: 0 | Y79: 2 | Z79: 9630000 | AA79: 29050000 | AB79: 28890000 | AC79: 2022-01-21 | AD79: 2022-01-24 | AE79: 2022-10-23 | AF79: 180 | AG79: 1 | AH79: 90 | AM79: Terminado | AN79: 1
A80: 66 | B80: 2022 | C80: FDLCH-CPS-066-2022 | D80: https://community.secop.gov.co/Public/Tendering/OpportunityDetail/Index?noticeUID=CO1.NTC.2650888&isFromPublicArea=True&isModal=true&asPopupView=true | E80: Contratos de prestación de servicios profesionales y de apoyo a la gestión | F80: Contratación directa | G80: Prestación de servicios profesionales y de apoyo a la gestión, o para la ejecución de trabajos artísticos que sólo puedan encomendarse a determinadas personas naturales | H80: Prestar servicios técnicos de apoyo a la gestión al área de gestión policiva local en las actividades administrativas requeridas en el proceso de planeación, asi como en el seguimiento, uso y soporte de herramientas y aplicativos en el cumplimiento de los objetivos del plan de desarrollo local y el plan institucional de gestión. | I80: Inversión | J80: Un nuevo contrato social y ambiental para la Bogotá del Siglo XXI | K80: 57 | L80: =IF(ISERROR(VLOOKUP(K80,[2]Proposito_programa!$C$2:$E$59,2,FALSE))," ",VLOOKUP(K80,[2]Proposito_programa!$C$2:$E$59,2,FALSE)) -> Gestión pública local | M80: =IF(ISERROR(VLOOKUP(K80,[2]Proposito_programa!$C$2:$E$59,3,FALSE))," ",VLOOKUP(K80,[2]Proposito_programa!$C$2:$E$59,3,FALSE)) -> Propósito 5: Construir Bogotá - Región con gobierno abierto, transparente y ciudadanía consciente | N80: 1841 | P80: 1033727990 | Q80: CAROL JINETH VARGAS CLAROS | R80: Persona Natural | W80: 21000000 | X80: 0 | Y80: 1 | Z80: 10500000 | AA80: =+W80+X80+Z80 -> 31500000 | AB80: 31500000 | AC80: 2022-01-21 | AD80: 2022-01-26 | AE80: 2022-10-25 | AF80: 180 | AG80: 1 | AH80: 90 | AM80: Terminado | AN80: 1
A81: 67 | B81: 2022 | C81: FDLCH-CPS-067-2022 | D81: https://community.secop.gov.co/Public/Tendering/OpportunityDetail/Index?noticeUID=CO1.NTC.2651491&isFromPublicArea=True&isModal=true&asPopupView=true | E81: Contratos de prestación de servicios profesionales y de apoyo a la gestión | F81: Contratación directa | G81: Prestación de servicios profesionales y de apoyo a la gestión, o para la ejecución de trabajos artísticos que sólo puedan encomendarse a determinadas personas naturales | H81: Prestar servicios profesionales para apoyar la gestión jurídica en la ejecución de las acciones requeridas para el trámite e impulso procesal de las actuaciones administrativas y de inspección, vigilancia y control de competencia de la alcaldía local de chapinero en cerros orientales, zona de reserva forestal protectora, polígonos de monitoreo, áreas de ocupación publica prioritaria, franja de adecuación y zonas de especial protección ambiental | I81: Inversión | J81: Un nuevo contrato social y ambiental para la Bogotá del Siglo XXI | K81: 57 | L81: =IF(ISERROR(VLOOKUP(K81,[2]Proposito_programa!$C$2:$E$59,2,FALSE))," ",VLOOKUP(K81,[2]Proposito_programa!$C$2:$E$59,2,FALSE)) -> Gestión pública local | M81: =IF(ISERROR(VLOOKUP(K81,[2]Proposito_programa!$C$2:$E$59,3,FALSE))," ",VLOOKUP(K81,[2]Proposito_programa!$C$2:$E$59,3,FALSE)) -> Propósito 5: Construir Bogotá - Región con gobierno abierto, transparente y ciudadanía consciente | N81: 1841 | P81: 80881353 | Q81: DIEGO FERNANDO LEON LEON | R81: Persona Natural | W81: 29400000 | X81: 0 | Y81: 1 | Z81: 14700000 | AA81: 44100000 | AB81: 44100000 | AC81: 2022-01-21 | AD81: 2022-01-24 | AE81: 2022-10-23 | AF81: 180 | AG81: 1 | AH81: 90 | AM81: Terminado | AN81: 1
A82: 68 | B82: 2022 | C82: FDLCH-CPS-068-2022 | D82: https://community.secop.gov.co/Public/Tendering/OpportunityDetail/Index?noticeUID=CO1.NTC.2646013&isFromPublicArea=True&isModal=true&asPopupView=true | E82: Contratos de prestación de servicios profesionales y de apoyo a la gestión | F82: Contratación directa | G82: Prestación de servicios profesionales y de apoyo a la gestión, o para la ejecución de trabajos artísticos que sólo puedan encomendarse a determinadas personas naturales | H82: Prestar los sevicios profesionales para la gestión, formulación, desarrollo, seguimiento y evaluación de inversión "Chapinero modelo de movilidad inteligente" y apoyo a la supervisión de contratos que le sean asignados. | I82: Inversión | J82: Un nuevo contrato social y ambiental para la Bogotá del Siglo XXI | K82: 49 | L82: =IF(ISERROR(VLOOKUP(K82,[2]Proposito_programa!$C$2:$E$59,2,FALSE))," ",VLOOKUP(K82,[2]Proposito_programa!$C$2:$E$59,2,FALSE)) -> Movilidad segura, sostenible y accesible | M82: =IF(ISERROR(VLOOKUP(K82,[2]Proposito_programa!$C$2:$E$59,3,FALSE))," ",VLOOKUP(K82,[2]Proposito_programa!$C$2:$E$59,3,FALSE)) -> Propósito 4: Hacer de Bogotá Región un modelo de movilidad multimodal, incluyente y sostenible | N82: 1734 | P82: 1073535479 | Q82: JAIME HERNANDO PRIETO ALVAREZ | R82: Persona Natural | W82: 56000000 | X82: 0 | Y82: 1 | Z82: 28000000 | AA82: 84000000 | AB82: 75133333 | AC82: 2022-01-21 | AD82: 2022-01-24 | AE82: 2023-01-23 | AF82: 240 | AG82: 1 | AH82: 120 | AM82: En ejecución | AN82: 0.9
A83: 69 | B83: 2022 | C83: FDLCH-CPS-069-2022 | D83: https://community.secop.gov.co/Public/Tendering/OpportunityDetail/Index?noticeUID=CO1.NTC.2646488&isFromPublicArea=True&isModal=true&asPopupView=true | E83: Contratos de prestación de servicios profesionales y de apoyo a la gestión | F83: Contratación directa | G83: Prestación de servicios profesionales y de apoyo a la gestión, o para la ejecución de trabajos artísticos que sólo puedan encomendarse a determinadas personas naturales | H83: Prestar los sevicios profesionales para la gestión, formulación, desarrollo, seguimiento y evaluación de inversión "Chapinero modelo de movilidad inteligente" y apoyo a la supervisión de contratos que le sean asignados. | I83: Inversión | J83: Un nuevo contrato social y ambiental para la Bogotá del Siglo XXI | K83: 49 | L83: =IF(ISERROR(VLOOKUP(K83,[2]Proposito_programa!$C$2:$E$59,2,FALSE))," ",VLOOKUP(K83,[2]Proposito_programa!$C$2:$E$59,2,FALSE)) -> Movilidad segura, sostenible y accesible | M83: =IF(ISERROR(VLOOKUP(K83,[2]Proposito_programa!$C$2:$E$59,3,FALSE))," ",VLOOKUP(K83,[2]Proposito_programa!$C$2:$E$59,3,FALSE)) -> Propósito 4: Hacer de Bogotá Región un modelo de movilidad multimodal, incluyente y sostenible | N83: 1734 | P83: 1090435721 | Q83: JORGE ENRIQUE ABREO REYES | R83: Persona Natural | W83: 52000000 | X83: 0 | Y83: 1 | Z83: 26000000 | AA83: 78000000 | AB83: 68250000 | AC83: 2022-01-21 | AD83: 2022-01-24 | AE83: 2023-01-30 | AF83: 240 | AG83: 1 | AH83: 120 | AM83: En ejecución | AN83: 0.9
A84: 70 | B84: 2022 | C84: FDLCH-CPS-070-2022 | D84: https://community.secop.gov.co/Public/Tendering/OpportunityDetail/Index?noticeUID=CO1.NTC.2647206&isFromPublicArea=True&isModal=true&asPopupView=true | E84: Contratos de prestación de servicios profesionales y de apoyo a la gestión | F84: Contratación directa | G84: Prestación de servicios profesionales y de apoyo a la gestión, o para la ejecución de trabajos artísticos que sólo puedan encomendarse a determinadas personas naturales | H84: Prestar los servicios profesionales de apoyo a la gestión para la formulación, desarrollo y seguimiento de las actividades derivadas del proyecto de inversión chapinero modelo de movilidad inteligente | I84: Inversión | J84: Un nuevo contrato social y ambiental para la Bogotá del Siglo XXI | K84: 49 | L84: =IF(ISERROR(VLOOKUP(K84,[2]Proposito_programa!$C$2:$E$59,2,FALSE))," ",VLOOKUP(K84,[2]Proposito_programa!$C$2:$E$59,2,FALSE)) -> Movilidad segura, sostenible y accesible | M84: =IF(ISERROR(VLOOKUP(K84,[2]Proposito_programa!$C$2:$E$59,3,FALSE))," ",VLOOKUP(K84,[2]Proposito_programa!$C$2:$E$59,3,FALSE)) -> Propósito 4: Hacer de Bogotá Región un modelo de movilidad multimodal, incluyente y sostenible | N84: 1734 | P84: 1015470441 | Q84: RICARDO ANDRES SANCHEZ VARGAS | R84: Persona Natural | W84: 27600000 | X84: 0 | Y84: 1 | Z84: 13800000 | AA84: 41400000 | AB84: 41400000 | AC84: 2022-01-21 | AD84: 2022-01-24 | AE84: 2022-10-23 | AF84: 180 | AG84: 1 | AH84: 90 | AM84: Terminado | AN84: 1
A85: 71 | B85: 2022 | C85: FDLCH-CPS-071-2022 | D85: https://community.secop.gov.co/Public/Tendering/OpportunityDetail/Index?noticeUID=CO1.NTC.2651970&isFromPublicArea=True&isModal=true&asPopupView=true | E85: Contratos de prestación de servicios profesionales y de apoyo a la gestión | F85: Contratación directa | G85: Prestación de servicios profesionales y de apoyo a la gestión, o para la ejecución de trabajos artísticos que sólo puedan encomendarse a determinadas personas naturales | H85: Prestar servicios profesionales para apoyar al equipo de prensa y comunicaciones de la Alcaldía Local en la realización de productos y piezas digitales, impresas y publicitarias de gran formato y de animación gráfica, así como apoyar la producción y montaje de eventos | I85: Inversión | J85: Un nuevo contrato social y ambiental para la Bogotá del Siglo XXI | K85: 57 | L85: =IF(ISERROR(VLOOKUP(K85,[2]Proposito_programa!$C$2:$E$59,2,FALSE))," ",VLOOKUP(K85,[2]Proposito_programa!$C$2:$E$59,2,FALSE)) -> Gestión pública local | M85: =IF(ISERROR(VLOOKUP(K85,[2]Proposito_programa!$C$2:$E$59,3,FALSE))," ",VLOOKUP(K85,[2]Proposito_programa!$C$2:$E$59,3,FALSE)) -> Propósito 5: Construir Bogotá - Región con gobierno abierto, transparente y ciudadanía consciente | N85: 1741 | P85: 1026269094 | Q85: EIDER EMIR HERNANDEZ POLANCO | R85: Persona Natural | W85: 27480000 | X85: 0 | Y85: 1 | Z85: 13740000 | AA85: 41220000 | AB85: 41220000 | AC85: 2022-01-21 | AD85: 2022-01-24 | AE85: 2022-10-23 | AF85: 180 | AG85: 1 | AH85: 90 | AM85: Terminado | AN85: 1
A86: 72 | B86: 2022 | C86: FDLCH-CPS-072-2022 | D86: https://community.secop.gov.co/Public/Tendering/OpportunityDetail/Index?noticeUID=CO1.NTC.2650530&isFromPublicArea=True&isModal=true&asPopupView=true | E86: Contratos de prestación de servicios profesionales y de apoyo a la gestión | F86: Contratación directa | G86: Prestación de servicios profesionales y de apoyo a la gestión, o para la ejecución de trabajos artísticos que sólo puedan encomendarse a determinadas personas naturales | H86: Brindar apoyo en la implementación de acciones del plan local de convivencia seguridad y justicia y el desarrollo de estrategias de dialogo mediación convivencia y prevención de conflictividades violencias y delitos en la Localidad de Chapinero para mejorar la seguridad y convivencia. | I86: Inversión | J86: Un nuevo contrato social y ambiental para la Bogotá del Siglo XXI | K86: 45 | L86: =IF(ISERROR(VLOOKUP(K86,[2]Proposito_programa!$C$2:$E$59,2,FALSE))," ",VLOOKUP(K86,[2]Proposito_programa!$C$2:$E$59,2,FALSE)) -> Espacio público más seguro y construido colectivamente | M86: =IF(ISERROR(VLOOKUP(K86,[2]Proposito_programa!$C$2:$E$59,3,FALSE))," ",VLOOKUP(K86,[2]Proposito_programa!$C$2:$E$59,3,FALSE)) -> Propósito 3: Inspirar confianza y legitimidad para vivir sin miedo y ser epicentro de cultura ciudadana, paz y reconciliación | N86: 1736 | P86: 1024535007 | Q86: JEAN MICHEL ALBARRACIN MERCADO | R86: Persona Natural | W86: 15000000 | Y86: 1 | Z86: 7500000 | AA86: 22500000 | AB86: 22500000 | AC86: 2022-01-21 | AD86: 2022-01-24 | AE86: 2022-12-11 | AF86: 180 | AG86: 1 | AH86: 90 | AI86: 1024535007 | AJ86: JOAQUIN ANDRES MURILLO RAMIREZ | AK86: 2022-05-23 | AL86: 9000000 | AM86: Terminado | AN86: 1
A87: 73 | B87: 2022 | C87: FDLCH-CPS-073-2022 | D87: https://community.secop.gov.co/Public/Tendering/OpportunityDetail/Index?noticeUID=CO1.NTC.2650142&isFromPublicArea=True&isModal=true&asPopupView=true | E87: Contratos de prestación de servicios profesionales y de apoyo a la gestión | F87: Contratación directa | G87: Prestación de servicios profesionales y de apoyo a la gestión, o para la ejecución de trabajos artísticos que sólo puedan encomendarse a determinadas personas naturales | H87: Brindar apoyo en la implementación de acciones del plan local de convivencia seguridad y justicia y el desarrollo de estrategias de dialogo, mediación convivencia y prevención de conflictividades violencias y delitos en la localidad de chapinero, para mejorar la seguridad y convivencia | I87: Inversión | J87: Un nuevo contrato social y ambiental para la Bogotá del Siglo XXI | K87: 48 | L87: =IF(ISERROR(VLOOKUP(K87,[2]Proposito_programa!$C$2:$E$59,2,FALSE))," ",VLOOKUP(K87,[2]Proposito_programa!$C$2:$E$59,2,FALSE)) -> Plataforma institucional para la seguridad y justicia | M87: =IF(ISERROR(VLOOKUP(K87,[2]Proposito_programa!$C$2:$E$59,3,FALSE))," ",VLOOKUP(K87,[2]Proposito_programa!$C$2:$E$59,3,FALSE)) -> Propósito 3: Inspirar confianza y legitimidad para vivir sin miedo y ser epicentro de cultura ciudadana, paz y reconciliación | N87: 1738 | P87: 1000251989 | Q87: PAULA ANDREA BERNAL SALDAÑA | R87: Persona Natural | W87: 15000000 | X87: 0 | Y87: 1 | Z87: 7500000 | AA87: 22500000 | AB87: 22500000 | AC87: 2022-01-21 | AD87: 2022-01-24 | AE87: 2022-10-23 | AF87: 180 | AG87: 1 | AH87: 90 | AM87: Terminado | AN87: 1
A88: 74 | B88: 2022 | C88: FDLCH-CPS-074-2022 | D88: https://community.secop.gov.co/Public/Tendering/OpportunityDetail/Index?noticeUID=CO1.NTC.2695113&isFromPublicArea=True&isModal=true&asPopupView=true | E88: Contratos de prestación de servicios profesionales y de apoyo a la gestión | F88: Contratación directa | G88: Prestación de servicios profesionales y de apoyo a la gestión, o para la ejecución de trabajos artísticos que sólo puedan encomendarse a determinadas personas naturales | H88: Apoya el cubrmiiento de las actividades, cronogramas y agenda de la Alcaldía Local a nivel interno y externo, así como la genración de contenido speriodísticos. | I88: Inversión | J88: Un nuevo contrato social y ambiental para la Bogotá del Siglo XXI | K88: 57 | L88: =IF(ISERROR(VLOOKUP(K88,[2]Proposito_programa!$C$2:$E$59,2,FALSE))," ",VLOOKUP(K88,[2]Proposito_programa!$C$2:$E$59,2,FALSE)) -> Gestión pública local | M88: =IF(ISERROR(VLOOKUP(K88,[2]Proposito_programa!$C$2:$E$59,3,FALSE))," ",VLOOKUP(K88,[2]Proposito_programa!$C$2:$E$59,3,FALSE)) -> Propósito 5: Construir Bogotá - Región con gobierno abierto, transparente y ciudadanía consciente | N88: 1741 | P88: 1013589145 | Q88: JENNIFER AGUDELO SANCHEZ | R88: Persona Natural | W88: 31032000 | X88: 0 | Y88: 1 | Z88: 15516000 | AA88: 46548000 | AB88: 46548000 | AC88: 2022-01-25 | AD88: 2022-01-26 | AE88: 2022-10-25 | AF88: 180 | AG88: 1 | AH88: 90 | AM88: Terminado | AN88: 1
A89: 75 | B89: 2022 | C89: FDLCH-CPS-075-2022 | D89: https://community.secop.gov.co/Public/Tendering/OpportunityDetail/Index?noticeUID=CO1.NTC.2651413&isFromPublicArea=True&isModal=true&asPopupView=true | E89: Contratos de prestación de servicios profesionales y de apoyo a la gestión | F89: Contratación directa | G89: Prestación de servicios profesionales y de apoyo a la gestión, o para la ejecución de trabajos artísticos que sólo puedan encomendarse a determinadas personas naturales | H89: Prestar servicios profesionales de apoyo y jurídicamente el seguimiento, supervisión estrategica y sustanciaciónd e procesos de competnencia de la Alcaldía Local de Chapinero, anteriores a la entrada en vigencia de la Ley 1801 DE 2016 | I89: Inversión | J89: Un nuevo contrato social y ambiental para la Bogotá del Siglo XXI | K89: 57 | L89: =IF(ISERROR(VLOOKUP(K89,[2]Proposito_programa!$C$2:$E$59,2,FALSE))," ",VLOOKUP(K89,[2]Proposito_programa!$C$2:$E$59,2,FALSE)) -> Gestión pública local | M89: =IF(ISERROR(VLOOKUP(K89,[2]Proposito_programa!$C$2:$E$59,3,FALSE))," ",VLOOKUP(K89,[2]Proposito_programa!$C$2:$E$59,3,FALSE)) -> Propósito 5: Construir Bogotá - Región con gobierno abierto, transparente y ciudadanía consciente | N89: 1841 | P89: 1032492446 | Q89: ALVARO CUBILLOS RUIZ | R89: Persona Natural | W89: 27600000 | X89: 0 | Y89: 1 | Z89: 13800000 | AA89: 41400000 | AB89: 41400000 | AC89: 2022-01-21 | AD89: 2022-01-25 | AE89: 2022-10-24 | AF89: 180 | AG89: 1 | AH89: 90 | AM89: Terminado | AN89: 1
A90: 76 | B90: 2022 | C90: FDLCH-CPS-076-2022 | D90: https://community.secop.gov.co/Public/Tendering/OpportunityDetail/Index?noticeUID=CO1.NTC.2650773&isFromPublicArea=True&isModal=true&asPopupView=true | E90: Contratos de prestación de servicios profesionales y de apoyo a la gestión | F90: Contratación directa | G90: Prestación de servicios profesionales y de apoyo a la gestión, o para la ejecución de trabajos artísticos que sólo puedan encomendarse a determinadas personas naturales | H90: Apoyar jurídicamente la ejecución de las acciones reuqeridas para la depuración de las actuaciones administrativas que cursan en la Alcaldía Local. | I90: Inversión | J90: Un nuevo contrato social y ambiental para la Bogotá del Siglo XXI | K90: 57 | L90: =IF(ISERROR(VLOOKUP(K90,[2]Proposito_programa!$C$2:$E$59,2,FALSE))," ",VLOOKUP(K90,[2]Proposito_programa!$C$2:$E$59,2,FALSE)) -> Gestión pública local | M90: =IF(ISERROR(VLOOKUP(K90,[2]Proposito_programa!$C$2:$E$59,3,FALSE))," ",VLOOKUP(K90,[2]Proposito_programa!$C$2:$E$59,3,FALSE)) -> Propósito 5: Construir Bogotá - Región con gobierno abierto, transparente y ciudadanía consciente | N90: 1841 | P90: 1070021566 | Q90: MAUREN DARLINE FORERO RONCANCIO | R90: Persona Natural | W90: 27600000 | X90: 0 | Y90: 1 | Z90: 13800000 | AA90: 41400000 | AB90: 41400000 | AC90: 2022-01-21 | AD90: 2022-01-24 | AE90: 2022-10-23 | AF90: 180 | AG90: 1 | AH90: 90 | AM90: Terminado | AN90: 1
A91: 77 | B91: 2022 | C91: FDLCH-CPS-077-2022 | D91: https://community.secop.gov.co/Public/Tendering/OpportunityDetail/Index?noticeUID=CO1.NTC.2651569&isFromPublicArea=True&isModal=true&asPopupView=true | E91: Contratos de prestación de servicios profesionales y de apoyo a la gestión | F91: Contratación directa | G91: Prestación de servicios profesionales y de apoyo a la gestión, o para la ejecución de trabajos artísticos que sólo puedan encomendarse a determinadas personas naturales | H91: Prestar servicios profesionales para apoyar técnicamente las actuaciones administrativas, impulso procesal y de inspección, vigilancia y control de competencia de la alcaldía local de chapinero | I91: Inversión | J91: Un nuevo contrato social y ambiental para la Bogotá del Siglo XXI | K91: 57 | L91: =IF(ISERROR(VLOOKUP(K91,[2]Proposito_programa!$C$2:$E$59,2,FALSE))," ",VLOOKUP(K91,[2]Proposito_programa!$C$2:$E$59,2,FALSE)) -> Gestión pública local | M91: =IF(ISERROR(VLOOKUP(K91,[2]Proposito_programa!$C$2:$E$59,3,FALSE))," ",VLOOKUP(K91,[2]Proposito_programa!$C$2:$E$59,3,FALSE)) -> Propósito 5: Construir Bogotá - Región con gobierno abierto, transparente y ciudadanía consciente | N91: 1841 | P91: 52533394 | Q91: MARICELA PALACIO RODRIGUEZ | R91: Persona Natural | W91: 29400000 | X91: 0 | Y91: 1 | Z91: 4900000 | AA91: 34300000 | AB91: 34300000 | AC91: 2022-01-21 | AD91: 2022-01-24 | AE91: 2022-08-23 | AF91: 180 | AG91: 1 | AH91: 30 | AM91: Terminado | AN91: 1
A92: 78 | B92: 2022 | C92: FDLCH-CPS-078-2022 | D92: https://community.secop.gov.co/Public/Tendering/OpportunityDetail/Index?noticeUID=CO1.NTC.2649418&isFromPublicArea=True&isModal=true&asPopupView=true | E92: Contratos de prestación de servicios profesionales y de apoyo a la gestión | F92: Contratación directa | G92: Prestación de servicios profesionales y de apoyo a la gestión, o para la ejecución de trabajos artísticos que sólo puedan encomendarse a determinadas personas naturales | H92: Prestar servicios profesionales de apoyo a la gestión para el desarrollo de actividades relacionadas con la formulación, seguimiento, terminación y cierre de proyectos de inversión relacionados con el desarrollo de la productividad rural en el marco del proyecto de inversión Chapinero rural y productivo. | I92: Inversión | J92: Un nuevo contrato social y ambiental para la Bogotá del Siglo XXI | K92: 23 | L92: =IF(ISERROR(VLOOKUP(K92,[2]Proposito_programa!$C$2:$E$59,2,FALSE))," ",VLOOKUP(K92,[2]Proposito_programa!$C$2:$E$59,2,FALSE)) -> Bogotá rural | M92: =IF(ISERROR(VLOOKUP(K92,[2]Proposito_programa!$C$2:$E$59,3,FALSE))," ",VLOOKUP(K92,[2]Proposito_programa!$C$2:$E$59,3,FALSE)) -> Propósito 1: Hacer un nuevo contrato social para incrementar la inclusión social, productiva y política | N92: 1827 | P92: 1024531062 | Q92: LIBARDO FERNANDEZ ALMANZA | R92: Persona Natural | W92: 28800000 | X92: 0 | Y92: 1 | Z92: 14400000 | AA92: 43200000 | AB92: 43200000 | AC92: 2022-01-21 | AD92: 2022-01-24 | AE92: 2022-10-23 | AF92: 180 | AG92: 1 | AH92: 90 | AM92: Terminado | AN92: 1
A93: 79 | B93: 2022 | C93: FDLCH-CPS-079-2022 | D93: https://community.secop.gov.co/Public/Tendering/OpportunityDetail/Index?noticeUID=CO1.NTC.2721340&isFromPublicArea=True&isModal=true&asPopupView=true | E93: Contratos de prestación de servicios profesionales y de apoyo a la gestión | F93: Contratación directa | G93: Prestación de servicios profesionales y de apoyo a la gestión, o para la ejecución de trabajos artísticos que sólo puedan encomendarse a determinadas personas naturales | H93: Prestar servicios técnicos para apoyar la jestión jurídica en la ejecución de las actividades administrativas y documentales con contenido jurídico relacionadas con los procesos de inspección, vigilancia y control que adelanta la Alcaldía Local de Chapinero. | I93: Inversión | J93: Un nuevo contrato social y ambiental para la Bogotá del Siglo XXI | K93: 57 | L93: =IF(ISERROR(VLOOKUP(K93,[2]Proposito_programa!$C$2:$E$59,2,FALSE))," ",VLOOKUP(K93,[2]Proposito_programa!$C$2:$E$59,2,FALSE)) -> Gestión pública local | M93: =IF(ISERROR(VLOOKUP(K93,[2]Proposito_programa!$C$2:$E$59,3,FALSE))," ",VLOOKUP(K93,[2]Proposito_programa!$C$2:$E$59,3,FALSE)) -> Propósito 5: Construir Bogotá - Región con gobierno abierto, transparente y ciudadanía consciente | N93: 1841 | P93: 81717613 | Q93: JUAN LIDER TORRES ERAZO | R93: Persona Natural | W93: 21000000 | X93: 0 | AA93: 21000000 | AB93: 6883333 | AC93: 2022-01-27 | AD93: 2022-02-02 | AE93: 2022-08-01 | AF93: 180 | AH93: 90 | AM93: Terminado | AN93: 1
A94: 80 | B94: 2022 | C94: FDLCH-CPS-080-2022 | D94: https://community.secop.gov.co/Public/Tendering/OpportunityDetail/Index?noticeUID=CO1.NTC.2695993&isFromPublicArea=True&isModal=true&asPopupView=true | E94: Contratos de prestación de servicios profesionales y de apoyo a la gestión | F94: Contratación directa | G94: Prestación de servicios profesionales y de apoyo a la gestión, o para la ejecución de trabajos artísticos que sólo puedan encomendarse a determinadas personas naturales | H94: Prestar servicios profesionaes para apoyar técnicamente las distintas etapas de los procesos de competencia de las inspecciones de policia de la localidad de chapinero según reparto. | I94: Inversión | J94: Un nuevo contrato social y ambiental para la Bogotá del Siglo XXI | K94: 57 | L94: =IF(ISERROR(VLOOKUP(K94,[2]Proposito_programa!$C$2:$E$59,2,FALSE))," ",VLOOKUP(K94,[2]Proposito_programa!$C$2:$E$59,2,FALSE)) -> Gestión pública local | M94: =IF(ISERROR(VLOOKUP(K94,[2]Proposito_programa!$C$2:$E$59,3,FALSE))," ",VLOOKUP(K94,[2]Proposito_programa!$C$2:$E$59,3,FALSE)) -> Propósito 5: Construir Bogotá - Región con gobierno abierto, transparente y ciudadanía consciente | N94: 1841 | P94: 80926066 | Q94: OMAR DAVID LAVERDE CABRERA | R94: Persona Natural | W94: 31080000 | X94: 0 | Y94: 1 | Z94: 15540000 | AA94: 46620000 | AB94: 46620000 | AC94: 2022-01-25 | AD94: 2022-02-02 | AE94: 2022-11-01 | AF94: 180 | AG94: 1 | AH94: 90 | AM94: Terminado | AN94: 1
A95: 81 | B95: 2022 | C95: FDLCH-CPS-081-2022 | D95: https://community.secop.gov.co/Public/Tendering/OpportunityDetail/Index?noticeUID=CO1.NTC.2694018&isFromPublicArea=True&isModal=true&asPopupView=true | E95: Contratos de prestación de servicios profesionales y de apoyo a la gestión | F95: Contratación directa | G95: Prestación de servicios profesionales y de apoyo a la gestión, o para la ejecución de trabajos artísticos que sólo puedan encomendarse a determinadas personas naturales | H95: Prestar los servicios profesionaes de apoyo jurídico en la ejecución de las acciones requeridas para el trámite e impulso procesal de las actuaciones, contravenciones y/o querellas que cursen en las inspecciones de policia de la localidad. | I95: Inversión | J95: Un nuevo contrato social y ambiental para la Bogotá del Siglo XXI | K95: 57 | L95: =IF(ISERROR(VLOOKUP(K95,[2]Proposito_programa!$C$2:$E$59,2,FALSE))," ",VLOOKUP(K95,[2]Proposito_programa!$C$2:$E$59,2,FALSE)) -> Gestión pública local | M95: =IF(ISERROR(VLOOKUP(K95,[2]Proposito_programa!$C$2:$E$59,3,FALSE))," ",VLOOKUP(K95,[2]Proposito_programa!$C$2:$E$59,3,FALSE)) -> Propósito 5: Construir Bogotá - Región con gobierno abierto, transparente y ciudadanía consciente | N95: 1841 | P95: 1026275441 | Q95: INGRID SORAIDA CLAVIJO CRUZ | R95: Persona Natural | W95: 27600000 | X95: 0 | Y95: 1 | Z95: 13800000 | AA95: 41400000 | AB95: 41400000 | AC95: 2022-01-25 | AD95: 2022-02-01 | AE95: 2022-10-31 | AF95: 180 | AG95: 1 | AH95: 90 | AM95: Terminado | AN95: 1
A96: 82 | B96: 2022 | C96: FDLCH-CPS-082-2022 | D96: https://community.secop.gov.co/Public/Tendering/OpportunityDetail/Index?noticeUID=CO1.NTC.2702730&isFromPublicArea=True&isModal=true&asPopupView=true | E96: Contratos de prestación de servicios profesionales y de apoyo a la gestión | F96: Contratación directa | G96: Prestación de servicios profesionales y de apoyo a la gestión, o para la ejecución de trabajos artísticos que sólo puedan encomendarse a determinadas personas naturales | H96: Prestar los servicios de apoyo a la gestión administrativa y asistencial a las Inspecciones de Policía de la Localidad | I96: Inversión | J96: Un nuevo contrato social y ambiental para la Bogotá del Siglo XXI | K96: 57 | L96: =IF(ISERROR(VLOOKUP(K96,[2]Proposito_programa!$C$2:$E$59,2,FALSE))," ",VLOOKUP(K96,[2]Proposito_programa!$C$2:$E$59,2,FALSE)) -> Gestión pública local | M96: =IF(ISERROR(VLOOKUP(K96,[2]Proposito_programa!$C$2:$E$59,3,FALSE))," ",VLOOKUP(K96,[2]Proposito_programa!$C$2:$E$59,3,FALSE)) -> Propósito 5: Construir Bogotá - Región con gobierno abierto, transparente y ciudadanía consciente | N96: 1841 | P96: 1032462820 | Q96: JENNIFER VANNESA NIÑO DIAZ | R96: Persona Natural | W96: 13200000 | X96: 0 | Y96: 1 | Z96: 6600000 | AA96: 19800000 | AB96: 19800000 | AC96: 2022-01-25 | AD96: 2022-01-26 | AE96: 2022-10-25 | AF96: 180 | AG96: 1 | AH96: 60 | AM96: Terminado | AN96: 1
A97: 83 | B97: 2022 | C97: FDLCH-CPS-083-2022 | D97: https://community.secop.gov.co/Public/Tendering/OpportunityDetail/Index?noticeUID=CO1.NTC.2696911&isFromPublicArea=True&isModal=true&asPopupView=true | E97: Contratos de prestación de servicios profesionales y de apoyo a la gestión | F97: Contratación directa | G97: Prestación de servicios profesionales y de apoyo a la gestión, o para la ejecución de trabajos artísticos que sólo puedan encomendarse a determinadas personas naturales | H97: Prestación de servicios de apoyo en la gestión de los asuntos relacionados con la comunicación ciudadana para la seguridad ciudadana, la convivencia y la prevención de conflictividades, violencias y delitos en la localidad de Chapinero, en el marco del proyecto "Chapinero promueve y genera confianza ciudadana". | I97: Inversión | J97: Un nuevo contrato social y ambiental para la Bogotá del Siglo XXI | K97: 43 | L97: =IF(ISERROR(VLOOKUP(K97,[2]Proposito_programa!$C$2:$E$59,2,FALSE))," ",VLOOKUP(K97,[2]Proposito_programa!$C$2:$E$59,2,FALSE)) -> Cultura ciudadana para la confianza, la convivencia y la participación desde la vida cotidiana | M97: =IF(ISERROR(VLOOKUP(K97,[2]Proposito_programa!$C$2:$E$59,3,FALSE))," ",VLOOKUP(K97,[2]Proposito_programa!$C$2:$E$59,3,FALSE)) -> Propósito 3: Inspirar confianza y legitimidad para vivir sin miedo y ser epicentro de cultura ciudadana, paz y reconciliación | N97: 1735 | P97: 51646432 | Q97: MARTHA PATRICIA MUÑOZ RUIZ | R97: Persona Natural | W97: 10904000 | X97: 0 | Y97: 1 | Z97: 5452000 | AA97: 16356000 | AB97: 16356000 | AC97: 2022-01-25 | AD97: 2022-02-01 | AE97: 2022-07-31 | AF97: 120 | AG97: 1 | AM97: Terminado | AN97: 1
A98: 84 | B98: 2022 | C98: FDLCH-CPS-084-2022 | D98: https://community.secop.gov.co/Public/Tendering/OpportunityDetail/Index?noticeUID=CO1.NTC.2703301&isFromPublicArea=True&isModal=true&asPopupView=true | E98: Contratos de prestación de servicios profesionales y de apoyo a la gestión | F98: Contratación directa | G98: Prestación de servicios profesionales y de apoyo a la gestión, o para la ejecución de trabajos artísticos que sólo puedan encomendarse a determinadas personas naturales | H98: Prestar los servicios profesionales de apoyo jurídico en la ejecución de las acciones requeridas pra el trámite e impulso procesal de las actuaciones, contravenciones y o querellas que cursen en las inspecciones de policia de la localidad. | I98: Inversión | J98: Un nuevo contrato social y ambiental para la Bogotá del Siglo XXI | K98: 57 | L98: =IF(ISERROR(VLOOKUP(K98,[2]Proposito_programa!$C$2:$E$59,2,FALSE))," ",VLOOKUP(K98,[2]Proposito_programa!$C$2:$E$59,2,FALSE)) -> Gestión pública local | M98: =IF(ISERROR(VLOOKUP(K98,[2]Proposito_programa!$C$2:$E$59,3,FALSE))," ",VLOOKUP(K98,[2]Proposito_programa!$C$2:$E$59,3,FALSE)) -> Propósito 5: Construir Bogotá - Región con gobierno abierto, transparente y ciudadanía consciente | N98: 1841 | P98: 1010161720 | Q98: LIZETH NOHELIA BALLESTEROS TORRES | R98: Persona Natural | W98: 27600000 | X98: 0 | Y98: 3 | Z98: 13799999 | AA98: 41399999 | AB98: 41399999 | AC98: 2022-01-27 | AD98: 2022-02-01 | AE98: 2022-10-30 | AF98: 180 | AG98: 2 | AH98: 60 | AM98: Terminado | AN98: 1
A99: 85 | B99: 2022 | C99: FDLCH-CPS-085-2022 | D99: https://community.secop.gov.co/Public/Tendering/OpportunityDetail/Index?noticeUID=CO1.NTC.2702869&isFromPublicArea=True&isModal=true&asPopupView=true | E99: Contratos de prestación de servicios profesionales y de apoyo a la gestión | F99: Contratación directa | G99: Prestación de servicios profesionales y de apoyo a la gestión, o para la ejecución de trabajos artísticos que sólo puedan encomendarse a determinadas personas naturales | H99: Prestar servicios profesionales para apoyar técnicamente las actuaciones administrativas, impulso procesal y de inspección, vigilancia y control de competencia de la Alcaldía Local de Chapinero. | I99: Inversión | J99: Un nuevo contrato social y ambiental para la Bogotá del Siglo XXI | K99: 57 | L99: =IF(ISERROR(VLOOKUP(K99,[2]Proposito_programa!$C$2:$E$59,2,FALSE))," ",VLOOKUP(K99,[2]Proposito_programa!$C$2:$E$59,2,FALSE)) -> Gestión pública local | M99: =IF(ISERROR(VLOOKUP(K99,[2]Proposito_programa!$C$2:$E$59,3,FALSE))," ",VLOOKUP(K99,[2]Proposito_programa!$C$2:$E$59,3,FALSE)) -> Propósito 5: Construir Bogotá - Región con gobierno abierto, transparente y ciudadanía consciente | N99: 1841 | P99: 1030625256 | Q99: ANDRES FELIPE RAMOS ARENAS | R99: Persona Natural | W99: 29400000 | X99: 0 | Y99: 1 | Z99: 14700000 | AA99: 44100000 | AB99: 44100000 | AC99: 2022-01-25 | AD99: 2022-01-26 | AE99: 2022-10-25 | AF99: 180 | AG99: 1 | AH99: 90 | AM99: Terminado | AN99: 1
A100: 86 | B100: 2022 | C100: FDLCH-CPS-086-2022 | D100: https://community.secop.gov.co/Public/Tendering/OpportunityDetail/Index?noticeUID=CO1.NTC.2695841&isFromPublicArea=True&isModal=true&asPopupView=true | E100: Contratos de prestación de servicios profesionales y de apoyo a la gestión | F100: Contratación directa | G100: Prestación de servicios profesionales y de apoyo a la gestión, o para la ejecución de trabajos artísticos que sólo puedan encomendarse a determinadas personas naturales | H100: Prestar servicios de apoyo a la gestión, para el desarrollo de estrategias que promuevan la prevención, atención de la violencia intrafamiliar y sexual y la eliminación de las violencias basadas en género en el marco del programa sistema distrital de cuidado | I100: Inversión | J100: Un nuevo contrato social y ambiental para la Bogotá del Siglo XXI | K100: 6 | L100: =IF(ISERROR(VLOOKUP(K100,[2]Proposito_programa!$C$2:$E$59,2,FALSE))," ",VLOOKUP(K100,[2]Proposito_programa!$C$2:$E$59,2,FALSE)) -> Sistema Distrital de Cuidado | M100: =IF(ISERROR(VLOOKUP(K100,[2]Proposito_programa!$C$2:$E$59,3,FALSE))," ",VLOOKUP(K100,[2]Proposito_programa!$C$2:$E$59,3,FALSE)) -> Propósito 1: Hacer un nuevo contrato social para incrementar la inclusión social, productiva y política | N100: 1710 | P100: 80204671 | Q100: MILTON CESAR DIAZ HERNANDEZ | R100: Persona Natural | W100: 13200000 | X100: 0 | AA100: 13200000 | AB100: 13200000 | AC100: 2022-01-26 | AD100: 2022-02-01 | AE100: 2022-07-31 | AF100: 180 | AM100: Terminado | AN100: 1
A101: 87 | B101: 2022 | C101: FDLCH-CPS-087-2022 | D101: https://community.secop.gov.co/Public/Tendering/OpportunityDetail/Index?noticeUID=CO1.NTC.2721480&isFromPublicArea=True&isModal=true&asPopupView=true | E101: Contratos de prestación de servicios profesionales y de apoyo a la gestión | F101: Contratación directa | G101: Prestación de servicios profesionales y de apoyo a la gestión, o para la ejecución de trabajos artísticos que sólo puedan encomendarse a determinadas personas naturales | H101: Prestar servicios profesionales para apoyar al equipo de prensa y comunicaciones de la Alcaldía Local en la realización y publicación de contenidos de redes sociales y canales de divulgación digital (sitio web) de la Alcaldía Local. | I101: Inversión | J101: Un nuevo contrato social y ambiental para la Bogotá del Siglo XXI | K101: 57 | L101: =IF(ISERROR(VLOOKUP(K101,[2]Proposito_programa!$C$2:$E$59,2,FALSE))," ",VLOOKUP(K101,[2]Proposito_programa!$C$2:$E$59,2,FALSE)) -> Gestión pública local | M101: =IF(ISERROR(VLOOKUP(K101,[2]Proposito_programa!$C$2:$E$59,3,FALSE))," ",VLOOKUP(K101,[2]Proposito_programa!$C$2:$E$59,3,FALSE)) -> Propósito 5: Construir Bogotá - Región con gobierno abierto, transparente y ciudadanía consciente | N101: 1741 | P101: 1070016439 | Q101: DANIEL ANTONIO RODRIGUEZ VENEGAS | R101: Persona Natural | W101: 31032000 | X101: 0 | Y101: 1 | Z101: 15516000 | AA101: 46548000 | AB101: 46548000 | AC101: 2022-01-27 | AD101: 2022-01-27 | AE101: 2022-10-26 | AF101: 180 | AG101: 1 | AH101: 90 | AM101: Terminado | AN101: 1
A102: 88 | B102: 2022 | C102: FDLCH-CPS-088-2022 | D102: https://community.secop.gov.co/Public/Tendering/OpportunityDetail/Index?noticeUID=CO1.NTC.2722368&isFromPublicArea=True&isModal=true&asPopupView=true | E102: Contratos de prestación de servicios profesionales y de apoyo a la gestión | F102: Contratación directa | G102: Prestación de servicios profesionales y de apoyo a la gestión, o para la ejecución de trabajos artísticos que sólo puedan encomendarse a determinadas personas naturales | H102: Prestar servicios profesionales para la gestión, formulación, desarrollo, seguimiento y evaluación del proyecto de inversión chapinero productivo y emprendedor la estrategia de mitigación y reactivación económica EMRE local y la supervisión de ocntratos que le sean asignados. | I102: Inversión | J102: Un nuevo contrato social y ambiental para la Bogotá del Siglo XXI | K102: 6 | L102: =IF(ISERROR(VLOOKUP(K102,[2]Proposito_programa!$C$2:$E$59,2,FALSE))," ",VLOOKUP(K102,[2]Proposito_programa!$C$2:$E$59,2,FALSE)) -> Sistema Distrital de Cuidado | M102: =IF(ISERROR(VLOOKUP(K102,[2]Proposito_programa!$C$2:$E$59,3,FALSE))," ",VLOOKUP(K102,[2]Proposito_programa!$C$2:$E$59,3,FALSE)) -> Propósito 1: Hacer un nuevo contrato social para incrementar la inclusión social, productiva y política | N102: 1671 | P102: 1013615672 | Q102: SERGIO ANDRES VARGAS CRUZ | R102: Persona Natural | W102: 28200000 | X102: 0 | Y102: 1 | Z102: 14100000 | AA102: 42300000 | AB102: 42300000 | AC102: 2022-01-27 | AD102: 2022-02-01 | AE102: 2022-10-31 | AF102: 180 | AG102: 1 | AH102: 90 | AM102: Terminado | AN102: 1
A103: 89 | B103: 2022 | C103: FDLCH-CPS-089-2022 | D103: https://community.secop.gov.co/Public/Tendering/OpportunityDetail/Index?noticeUID=CO1.NTC.2693626&isFromPublicArea=True&isModal=true&asPopupView=true | E103: Contratos de prestación de servicios profesionales y de apoyo a la gestión | F103: Contratación directa | G103: Prestación de servicios profesionales y de apoyo a la gestión, o para la ejecución de trabajos artísticos que sólo puedan encomendarse a determinadas personas naturales | H103: Prestar servicios de apoyo a la gestión en la ejecuciónd e las actividades administrativas y documentales relacionadas con la gestión policiva en la Alcaldía Local de Chapinero. | I103: Inversión | J103: Un nuevo contrato social y ambiental para la Bogotá del Siglo XXI | K103: 57 | L103: =IF(ISERROR(VLOOKUP(K103,[2]Proposito_programa!$C$2:$E$59,2,FALSE))," ",VLOOKUP(K103,[2]Proposito_programa!$C$2:$E$59,2,FALSE)) -> Gestión pública local | M103: =IF(ISERROR(VLOOKUP(K103,[2]Proposito_programa!$C$2:$E$59,3,FALSE))," ",VLOOKUP(K103,[2]Proposito_programa!$C$2:$E$59,3,FALSE)) -> Propósito 5: Construir Bogotá - Región con gobierno abierto, transparente y ciudadanía consciente | N103: 1841 | P103: 1016043505 | Q103: CRISTIAN OSWALDO LAITON VARGAS | R103: Persona Natural | W103: 11000000 | X103: -1173333 | Y103: 1 | Z103: 5500000 | AA103: 15326667 | AB103: 15326667 | AC103: 2022-01-25 | AD103: 2022-02-02 | AE103: 2022-09-16 | AF103: 150 | AG103: 1 | AH103: 75 | AM103: Terminado | AN103: 1
A104: 90 | B104: 2022 | C104: FDLCH-CPS-090-2022 | D104: https://community.secop.gov.co/Public/Tendering/OpportunityDetail/Index?noticeUID=CO1.NTC.2694491&isFromPublicArea=True&isModal=true&asPopupView=true | E104: Contratos de prestación de servicios profesionales y de apoyo a la gestión | F104: Contratación directa | G104: Prestación de servicios profesionales y de apoyo a la gestión, o para la ejecución de trabajos artísticos que sólo puedan encomendarse a determinadas personas naturales | H104: Prestar servicios de apoyo a la gestión al área de gestión del desarrollo local en las actividades y estrategias de fomento y promoción de la reactivación económica local, el fortalecimiento de los emprendimientos y de las pequeñas y medianas empresas locales. | I104: Inversión | J104: Un nuevo contrato social y ambiental para la Bogotá del Siglo XXI | K104: 6 | L104: =IF(ISERROR(VLOOKUP(K104,[2]Proposito_programa!$C$2:$E$59,2,FALSE))," ",VLOOKUP(K104,[2]Proposito_programa!$C$2:$E$59,2,FALSE)) -> Sistema Distrital de Cuidado | M104: =IF(ISERROR(VLOOKUP(K104,[2]Proposito_programa!$C$2:$E$59,3,FALSE))," ",VLOOKUP(K104,[2]Proposito_programa!$C$2:$E$59,3,FALSE)) -> Propósito 1: Hacer un nuevo contrato social para incrementar la inclusión social, productiva y política | N104: 1671 | P104: 1070704250 | Q104: WILMER ANDRES MALDONADO RAMIREZ | R104: Persona Natural | W104: 18000000 | X104: 0 | Y104: 1 | Z104: 9000000 | AA104: 27000000 | AB104: 27000000 | AC104: 2022-01-25 | AD104: 2022-01-26 | AE104: 2022-10-25 | AF104: 180 | AG104: 1 | AH104: 90 | AM104: Terminado | AN104: 1
A105: 91 | B105: 2022 | C105: FDLCH-CPS-091-2022 | D105: https://community.secop.gov.co/Public/Tendering/OpportunityDetail/Index?noticeUID=CO1.NTC.2694322&isFromPublicArea=True&isModal=true&asPopupView=true | E105: Contratos de prestación de servicios profesionales y de apoyo a la gestión | F105: Contratación directa | G105: Prestación de servicios profesionales y de apoyo a la gestión, o para la ejecución de trabajos artísticos que sólo puedan encomendarse a determinadas personas naturales | H105: Prestar servicios técnicos para apoyar el área de gestión del desarrollo local en las actividades presupuestales requeridas por la Alcaldía Local de Chapinero. | I105: Inversión | J105: Un nuevo contrato social y ambiental para la Bogotá del Siglo XXI | K105: 57 | L105: =IF(ISERROR(VLOOKUP(K105,[2]Proposito_programa!$C$2:$E$59,2,FALSE))," ",VLOOKUP(K105,[2]Proposito_programa!$C$2:$E$59,2,FALSE)) -> Gestión pública local | M105: =IF(ISERROR(VLOOKUP(K105,[2]Proposito_programa!$C$2:$E$59,3,FALSE))," ",VLOOKUP(K105,[2]Proposito_programa!$C$2:$E$59,3,FALSE)) -> Propósito 5: Construir Bogotá - Región con gobierno abierto, transparente y ciudadanía consciente | N105: 1741 | P105: 1023945934 | Q105: GISELLE MARIANA FONSECA CRISTANCHO | R105: Persona Natural | W105: 12000000 | X105: 0 | Y105: 1 | Z105: 6000000 | AA105: 18000000 | AB105: 18000000 | AC105: 2022-01-24 | AD105: 2022-01-26 | AE105: 2022-07-25 | AF105: 120 | AG105: 1 | AH105: 60 | AM105: Terminado | AN105: 1
A106: 92 | B106: 2022 | C106: FDLCH-CPS-092-2022 | D106: https://community.secop.gov.co/Public/Tendering/OpportunityDetail/Index?noticeUID=CO1.NTC.2688253&isFromPublicArea=True&isModal=true&asPopupView=true | E106: Contratos de prestación de servicios profesionales y de apoyo a la gestión | F106: Contratación directa | G106: Prestación de servicios profesionales y de apoyo a la gestión, o para la ejecución de trabajos artísticos que sólo puedan encomendarse a determinadas personas naturales | H106: Prestar servicios de apoyo a la gestión para asistir organizacional y administrativamente el desarrollo de las actividades estratégicas desarrolladas por la Alcaldía Local de Chapinero. | I106: Inversión | J106: Un nuevo contrato social y ambiental para la Bogotá del Siglo XXI | K106: 57 | L106: =IF(ISERROR(VLOOKUP(K106,[2]Proposito_programa!$C$2:$E$59,2,FALSE))," ",VLOOKUP(K106,[2]Proposito_programa!$C$2:$E$59,2,FALSE)) -> Gestión pública local | M106: =IF(ISERROR(VLOOKUP(K106,[2]Proposito_programa!$C$2:$E$59,3,FALSE))," ",VLOOKUP(K106,[2]Proposito_programa!$C$2:$E$59,3,FALSE)) -> Propósito 5: Construir Bogotá - Región con gobierno abierto, transparente y ciudadanía consciente | N106: 1741 | P106: 73159185 | Q106: GERMAN ENRIQUE CASTILLO CORREA | R106: Persona Natural | W106: 13200000 | X106: 0 | Y106: 1 | Z106: 6600000 | AA106: 19800000 | AB106: 18846667 | AC106: 2022-01-24 | AD106: 2022-01-25 | AE106: 2022-10-12 | AF106: 180 | AG106: 1 | AH106: 90 | AM106: Terminado | AN106: 1
A107: 93 | B107: 2022 | C107: FDLCH-CPS-093-2022 | D107: https://community.secop.gov.co/Public/Tendering/OpportunityDetail/Index?noticeUID=CO1.NTC.2694053&isFromPublicArea=True&isModal=true&asPopupView=true | E107: Contratos de prestación de servicios profesionales y de apoyo a la gestión | F107: Contratación directa | G107: Prestación de servicios profesionales y de apoyo a la gestión, o para la ejecución de trabajos artísticos que sólo puedan encomendarse a determinadas personas naturales | H107: Prestar servicios técnicos para apoyar el área Gestión del Desarrollo Local en las actividades presupuestales requeridas por la Alcaldía Local de Chapinero | I107: Inversión | J107: Un nuevo contrato social y ambiental para la Bogotá del Siglo XXI | K107: 57 | L107: =IF(ISERROR(VLOOKUP(K107,[2]Proposito_programa!$C$2:$E$59,2,FALSE))," ",VLOOKUP(K107,[2]Proposito_programa!$C$2:$E$59,2,FALSE)) -> Gestión pública local | M107: =IF(ISERROR(VLOOKUP(K107,[2]Proposito_programa!$C$2:$E$59,3,FALSE))," ",VLOOKUP(K107,[2]Proposito_programa!$C$2:$E$59,3,FALSE)) -> Propósito 5: Construir Bogotá - Región con gobierno abierto, transparente y ciudadanía consciente | N107: 1741 | P107: 1023893986 | Q107: EILIN NATALY VILLABON PARDO | R107: Persona Natural | W107: 24000000 | X107: 0 | Y107: 1 | Z107: 6000000 | AA107: 30000000 | AB107: 20000000 | AC107: 2022-01-25 | AD107: 2022-01-26 | AE107: 28/03/2023 | AF107: 240 | AG107: 1 | AH107: 60 | AM107: En ejecución | AN107: 0.65
A108: 94 | B108: 2022 | C108: FDLCH-CPS-094-2022 | D108: https://community.secop.gov.co/Public/Tendering/OpportunityDetail/Index?noticeUID=CO1.NTC.2695245&isFromPublicArea=True&isModal=true&asPopupView=true | E108: Contratos de prestación de servicios profesionales y de apoyo a la gestión | F108: Contratación directa | G108: Prestación de servicios profesionales y de apoyo a la gestión, o para la ejecución de trabajos artísticos que sólo puedan encomendarse a determinadas personas naturales | H108: Prestar servicios profesionales de apoyo y jurídicamente el seguimiento, supervisión estratégica y sustanciación de procesos de competencia de la alcaldía local de chapinero anteriores a la entrada en vigencia de la ley 1801 de 2016 | I108: Inversión | J108: Un nuevo contrato social y ambiental para la Bogotá del Siglo XXI | K108: 57 | L108: =IF(ISERROR(VLOOKUP(K108,[2]Proposito_programa!$C$2:$E$59,2,FALSE))," ",VLOOKUP(K108,[2]Proposito_programa!$C$2:$E$59,2,FALSE)) -> Gestión pública local | M108: =IF(ISERROR(VLOOKUP(K108,[2]Proposito_programa!$C$2:$E$59,3,FALSE))," ",VLOOKUP(K108,[2]Proposito_programa!$C$2:$E$59,3,FALSE)) -> Propósito 5: Construir Bogotá - Región con gobierno abierto, transparente y ciudadanía consciente | N108: 1841 | P108: 19271830 | Q108: MANUEL FALLA BUSTOS | R108: Persona Natural | W108: 42400000 | X108: 0 | Y108: 1 | Z108: 2120000 | AA108: 44520000 | AB108: 44520000 | AC108: 2022-01-25 | AD108: 2022-01-26 | AE108: 2022-10-07 | AF108: 240 | AG108: 1 | AH108: 12 | AM108: Terminado | AN108: 1
A109: 95 | B109: 2022 | C109: FDLCH-CPS-095-2022 | D109: https://community.secop.gov.co/Public/Tendering/OpportunityDetail/Index?noticeUID=CO1.NTC.2705442&isFromPublicArea=True&isModal=true&asPopupView=true | E109: Contratos de prestación de servicios profesionales y de apoyo a la gestión | F109: Contratación directa | G109: Prestación de servicios profesionales y de apoyo a la gestión, o para la ejecución de trabajos artísticos que sólo puedan encomendarse a determinadas personas naturales | H109: Prestar los servicios profesionales para la operación, prestación, seguimiento y cumplimiento de los procedimientos administrativos, operativos y programáticos del servicio apoyo económico tipo c, que contribuyan a la garantía de los derechos de la población mayor en el marco de la política pública social para el envejecimiento y la vejez en el distrito capital a cargo de la alcaldía local de chapinero | I109: Inversión | J109: Un nuevo contrato social y ambiental para la Bogotá del Siglo XXI | K109: 1 | L109: =IF(ISERROR(VLOOKUP(K109,[2]Proposito_programa!$C$2:$E$59,2,FALSE))," ",VLOOKUP(K109,[2]Proposito_programa!$C$2:$E$59,2,FALSE)) -> Subsidios y transferencias para la equidad | M109: =IF(ISERROR(VLOOKUP(K109,[2]Proposito_programa!$C$2:$E$59,3,FALSE))," ",VLOOKUP(K109,[2]Proposito_programa!$C$2:$E$59,3,FALSE)) -> Propósito 1: Hacer un nuevo contrato social para incrementar la inclusión social, productiva y política | N109: 1815 | P109: 34984062 | Q109: ENITH DEL ROSARIO RUIZ PORRAS | R109: Persona Natural | W109: 18400000 | X109: 0 | Y109: 1 | Z109: 9200000 | AA109: 27600000 | AB109: 27600000 | AC109: 2022-01-25 | AD109: 2022-02-02 | AE109: 2022-08-01 | AF109: 120 | AG109: 1 | AH109: 60 | AM109: Terminado | AN109: 1
A110: 96 | B110: 2022 | C110: FDLCH-CPS-096-2022 | D110: https://community.secop.gov.co/Public/Tendering/OpportunityDetail/Index?noticeUID=CO1.NTC.2705323&isFromPublicArea=True&isModal=true&asPopupView=true | E110: Contratos de prestación de servicios profesionales y de apoyo a la gestión | F110: Contratación directa | G110: Prestación de servicios profesionales y de apoyo a la gestión, o para la ejecución de trabajos artísticos que sólo puedan encomendarse a determinadas personas naturales | H110: Prestar servicios de apoyo a la gestión para desarrollar las actividades de radicación, gestión de correspondencia y de la documentación que expide, se allega y controlan las Inspecciones de Policía de la Alcaldía Local de Chapinero. | I110: Inversión | J110: Un nuevo contrato social y ambiental para la Bogotá del Siglo XXI | K110: 57 | L110: =IF(ISERROR(VLOOKUP(K110,[2]Proposito_programa!$C$2:$E$59,2,FALSE))," ",VLOOKUP(K110,[2]Proposito_programa!$C$2:$E$59,2,FALSE)) -> Gestión pública local | M110: =IF(ISERROR(VLOOKUP(K110,[2]Proposito_programa!$C$2:$E$59,3,FALSE))," ",VLOOKUP(K110,[2]Proposito_programa!$C$2:$E$59,3,FALSE)) -> Propósito 5: Construir Bogotá - Región con gobierno abierto, transparente y ciudadanía consciente | N110: 1741 | P110: 1063134906 | Q110: VANESA ALEXANDRA JIMENEZ ARTEAGA | R110: Persona Natural | W110: 13200000 | X110: 0 | Y110: 1 | Z110: 6600000 | AA110: 19800000 | AB110: 18993333 | AC110: 2022-01-25 | AD110: 2022-01-26 | AE110: 2022-12-26 | AF110: 180 | AG110: 1 | AH110: 90 | AM110: Terminado | AN110: 1
A111: 97 | B111: 2022 | C111: FDLCH-CPS-097-2022 | D111: https://community.secop.gov.co/Public/Tendering/OpportunityDetail/Index?noticeUID=CO1.NTC.2695769&isFromPublicArea=True&isModal=true&asPopupView=true | E111: Contratos de prestación de servicios profesionales y de apoyo a la gestión | F111: Contratación directa | G111: Prestación de servicios profesionales y de apoyo a la gestión, o para la ejecución de trabajos artísticos que sólo puedan encomendarse a determinadas personas naturales | H111: Prestar los servicios de apoyo necesarios para la conducción de los vehículos que conforman el parque automotor en propiedad o custodia del fondo de desarrollo local de chapinero, y el transporte de servidores públicos para la realización de las actividades misionales de la alcaldía local de chapinero | I111: Inversión | J111: Un nuevo contrato social y ambiental para la Bogotá del Siglo XXI | K111: 57 | L111: =IF(ISERROR(VLOOKUP(K111,[2]Proposito_programa!$C$2:$E$59,2,FALSE))," ",VLOOKUP(K111,[2]Proposito_programa!$C$2:$E$59,2,FALSE)) -> Gestión pública local | M111: =IF(ISERROR(VLOOKUP(K111,[2]Proposito_programa!$C$2:$E$59,3,FALSE))," ",VLOOKUP(K111,[2]Proposito_programa!$C$2:$E$59,3,FALSE)) -> Propósito 5: Construir Bogotá - Región con gobierno abierto, transparente y ciudadanía consciente | N111: 1741 | P111: 1018445848 | Q111: JUAN DAVID CHICACAUSA SALAS | R111: Persona Natural | W111: 20800000 | X111: 0 | Y111: 2 | Z111: =8320000+2080000 -> 10400000 | AA111: 31200000 | AB111: 27733333 | AC111: 2022-01-25 | AD111: 2022-01-26 | AE111: 24/01/2023 | AF111: 240 | AG111: 2 | AH111: 120 | AM111: En ejecución | AN111: 0.9
A112: 98 | B112: 2022 | C112: FDLCH-CPS-098-2022 | D112: https://community.secop.gov.co/Public/Tendering/OpportunityDetail/Index?noticeUID=CO1.NTC.2695493&isFromPublicArea=True&isModal=true&asPopupView=true | E112: Contratos de prestación de servicios profesionales y de apoyo a la gestión | F112: Contratación directa | G112: Prestación de servicios profesionales y de apoyo a la gestión, o para la ejecución de trabajos artísticos que sólo puedan encomendarse a determinadas personas naturales | H112: Prestar los servicios profesionales para la gestión, formulación, desarrollo, seguimiento y evaluación del proyecto de inversión“Chapinero espacio para hábitos saludablesen el componente construcción y/o conservación de los parques vecinales y/o de bolsillo" | I112: Inversión | J112: Un nuevo contrato social y ambiental para la Bogotá del Siglo XXI | K112: 33 | L112: =IF(ISERROR(VLOOKUP(K112,[2]Proposito_programa!$C$2:$E$59,2,FALSE))," ",VLOOKUP(K112,[2]Proposito_programa!$C$2:$E$59,2,FALSE)) -> Más árboles y más y mejor espacio público | M112: =IF(ISERROR(VLOOKUP(K112,[2]Proposito_programa!$C$2:$E$59,3,FALSE))," ",VLOOKUP(K112,[2]Proposito_programa!$C$2:$E$59,3,FALSE)) -> Propósito 2 : Cambiar Nuestros Hábitos de Vida para Reverdecer a Bogotá y Adaptarnos y Mitigar la Crisis Climática | N112: 1723 | P112: 79268761 | Q112: MAURICIO BOHORQUEZ ESCOBAR | R112: Persona Natural | W112: 33000000 | X112: -10083333 | AA112: 22916667 | AB112: 22916667 | AC112: 2022-01-25 | AD112: 2022-01-26 | AE112: 2022-06-01 | AF112: 180 | AM112: Terminado | AN112: 1
A113: 99 | B113: 2022 | C113: FDLCH-CPS-099-2022 | D113: https://community.secop.gov.co/Public/Tendering/OpportunityDetail/Index?noticeUID=CO1.NTC.2696353&isFromPublicArea=True&isModal=true&asPopupView=true | E113: Contratos de prestación de servicios profesionales y de apoyo a la gestión | F113: Contratación directa | G113: Prestación de servicios profesionales y de apoyo a la gestión, o para la ejecución de trabajos artísticos que sólo puedan encomendarse a determinadas personas naturales | H113: Prestar los servicios técnicos de apoyo a la gestión, acciones administrativas y seguimiento de las actividades derIvadas del proyecto de inversión Chapinero Modelo de Movilidad Inteligente | I113: Inversión | J113: Un nuevo contrato social y ambiental para la Bogotá del Siglo XXI | K113: 49 | L113: =IF(ISERROR(VLOOKUP(K113,[2]Proposito_programa!$C$2:$E$59,2,FALSE))," ",VLOOKUP(K113,[2]Proposito_programa!$C$2:$E$59,2,FALSE)) -> Movilidad segura, sostenible y accesible | M113: =IF(ISERROR(VLOOKUP(K113,[2]Proposito_programa!$C$2:$E$59,3,FALSE))," ",VLOOKUP(K113,[2]Proposito_programa!$C$2:$E$59,3,FALSE)) -> Propósito 4: Hacer de Bogotá Región un modelo de movilidad multimodal, incluyente y sostenible | N113: 1734 | P113: 1018486888 | Q113: DAVID ALEXANDER ALVARADO CASTRILLON | R113: Persona Natural | W113: 17400000 | X113: 0 | Y113: 1 | Z113: 8700000 | AA113: 26100000 | AB113: 26100000 | AC113: 2022-01-25 | AD113: 2022-02-01 | AE113: 2022-10-31 | AF113: 180 | AG113: 1 | AH113: 90 | AM113: Terminado | AN113: 1
A114: 100 | B114: 2022 | C114: FDLCH-CPS-100-2022 | D114: https://community.secop.gov.co/Public/Tendering/OpportunityDetail/Index?noticeUID=CO1.NTC.2712599&isFromPublicArea=True&isModal=true&asPopupView=true | E114: Contratos de prestación de servicios profesionales y de apoyo a la gestión | F114: Contratación directa | G114: Prestación de servicios profesionales y de apoyo a la gestión, o para la ejecución de trabajos artísticos que sólo puedan encomendarse a determinadas personas naturales | H114: Prestar servicios profesionales especializdos para apoyar la organización y estructuración de la getión jurídica del despacho de la Alcaldía Local de Chapinero y la de las dependencias que la conforman. | I114: Inversión | J114: Un nuevo contrato social y ambiental para la Bogotá del Siglo XXI | K114: 57 | L114: =IF(ISERROR(VLOOKUP(K114,[2]Proposito_programa!$C$2:$E$59,2,FALSE))," ",VLOOKUP(K114,[2]Proposito_programa!$C$2:$E$59,2,FALSE)) -> Gestión pública local | M114: =IF(ISERROR(VLOOKUP(K114,[2]Proposito_programa!$C$2:$E$59,3,FALSE))," ",VLOOKUP(K114,[2]Proposito_programa!$C$2:$E$59,3,FALSE)) -> Propósito 5: Construir Bogotá - Región con gobierno abierto, transparente y ciudadanía consciente | N114: 1741 | P114: 1085933782 | Q114: KAREN DANIELA ROSERO NARVAEZ | R114: Persona Natural | W114: 60000000 | X114: 0 | Y114: 1 | Z114: 4000000 | AA114: 64000000 | AB114: 61250000 | AC114: 2022-01-26 | AD114: 2022-01-26 | AE114: 2022-10-16 | AF114: 240 | AG114: 1 | AH114: 16 | AM114: Terminado | AN114: 1
A115: 101 | B115: 2022 | C115: FDLCH-CPS-101-2022 | D115: https://community.secop.gov.co/Public/Tendering/OpportunityDetail/Index?noticeUID=CO1.NTC.2710357&isFromPublicArea=True&isModal=true&asPopupView=true | E115: Contratos de prestación de servicios profesionales y de apoyo a la gestión | F115: Contratación directa | G115: Prestación de servicios profesionales y de apoyo a la gestión, o para la ejecución de trabajos artísticos que sólo puedan encomendarse a determinadas personas naturales | H115: Prestar servicios profesionales de apoyo jurídico en la ejecución de las acciones requeridas para el trámite e impulso procesal de las actuaciones administrativas y de cobro persuasivo de competencia de la alcaldía local de chapinero. | I115: Inversión | J115: Un nuevo contrato social y ambiental para la Bogotá del Siglo XXI | K115: 57 | L115: =IF(ISERROR(VLOOKUP(K115,[2]Proposito_programa!$C$2:$E$59,2,FALSE))," ",VLOOKUP(K115,[2]Proposito_programa!$C$2:$E$59,2,FALSE)) -> Gestión pública local | M115: =IF(ISERROR(VLOOKUP(K115,[2]Proposito_programa!$C$2:$E$59,3,FALSE))," ",VLOOKUP(K115,[2]Proposito_programa!$C$2:$E$59,3,FALSE)) -> Propósito 5: Construir Bogotá - Región con gobierno abierto, transparente y ciudadanía consciente | N115: 1841 | P115: 1020734444 | Q115: JUAN CAMILO MENDOZA MARTINEZ | R115: Persona Natural | W115: 27600000 | X115: 0 | Y115: 1 | Z115: 13800000 | AA115: 41400000 | AB115: 41400000 | AC115: 2022-01-25 | AD115: 2022-02-01 | AE115: 2022-10-31 | AF115: 180 | AG115: 1 | AH115: 90 | AM115: Terminado | AN115: 1
A116: 102 | B116: 2022 | C116: FDLCH-CPS-102-2022 | D116: https://community.secop.gov.co/Public/Tendering/OpportunityDetail/Index?noticeUID=CO1.NTC.2714690&isFromPublicArea=True&isModal=true&asPopupView=true | E116: Contratos de prestación de servicios profesionales y de apoyo a la gestión | F116: Contratación directa | G116: Prestación de servicios profesionales y de apoyo a la gestión, o para la ejecución de trabajos artísticos que sólo puedan encomendarse a determinadas personas naturales | H116: Prestar servicios profesionales para apoyar el área de gestión del desarrollo local de la Alcaldía Local de Chapinero, en la gestión, formulación, desarrollo, seguimiento y evaluación de los temas relacionados con educación superior en la localidad de chapinero, enmarcados en el proyecto de inversión “Chapinero construye futuro y realizar el apoyo a la supervisión de los contratos y/o convenios que de el se deriven” | I116: Inversión | J116: Un nuevo contrato social y ambiental para la Bogotá del Siglo XXI | K116: 17 | L116: =IF(ISERROR(VLOOKUP(K116,[2]Proposito_programa!$C$2:$E$59,2,FALSE))," ",VLOOKUP(K116,[2]Proposito_programa!$C$2:$E$59,2,FALSE)) -> Jóvenes con capacidades: Proyecto de vida para la ciudadanía, la innovación y el trabajo del siglo XXI | M116: =IF(ISERROR(VLOOKUP(K116,[2]Proposito_programa!$C$2:$E$59,3,FALSE))," ",VLOOKUP(K116,[2]Proposito_programa!$C$2:$E$59,3,FALSE)) -> Propósito 1: Hacer un nuevo contrato social para incrementar la inclusión social, productiva y política | N116: 1743 | P116: 7724577 | Q116: JUAN CARLOS DUSSAN ZULETA | R116: Persona Natural | W116: 28800000 | X116: 0 | Y116: 1 | Z116: 14400000 | AA116: 43200000 | AB116: 43200000 | AC116: 2022-01-26 | AD116: 2022-02-01 | AE116: 2022-10-31 | AF116: 180 | AG116: 1 | AH116: 90 | AM116: Terminado | AN116: 1
A117: 103 | B117: 2022 | C117: FDLCH-CPS-103-2022 | D117: https://community.secop.gov.co/Public/Tendering/OpportunityDetail/Index?noticeUID=CO1.NTC.2714125&isFromPublicArea=True&isModal=true&asPopupView=true | E117: Contratos de prestación de servicios profesionales y de apoyo a la gestión | F117: Contratación directa | G117: Prestación de servicios profesionales y de apoyo a la gestión, o para la ejecución de trabajos artísticos que sólo puedan encomendarse a determinadas personas naturales | H117: Prestar servicios profesionales para apoyar el área de gestión del desarrollo local de la Alcaldía Local de Chapinero, en la gestión, formulación, desarrollo, seguimiento y evaluación de los temas relacionados con educación superior en la localidad de chapinero, enmarcados en el proyecto de inversión “Chapinero construye futuro" y realizaqr el apoyo a la supervisión de los contratos y/o convenios que de el se deriven. | I117: Inversión | J117: Un nuevo contrato social y ambiental para la Bogotá del Siglo XXI | K117: 17 | L117: =IF(ISERROR(VLOOKUP(K117,[2]Proposito_programa!$C$2:$E$59,2,FALSE))," ",VLOOKUP(K117,[2]Proposito_programa!$C$2:$E$59,2,FALSE)) -> Jóvenes con capacidades: Proyecto de vida para la ciudadanía, la innovación y el trabajo del siglo XXI | M117: =IF(ISERROR(VLOOKUP(K117,[2]Proposito_programa!$C$2:$E$59,3,FALSE))," ",VLOOKUP(K117,[2]Proposito_programa!$C$2:$E$59,3,FALSE)) -> Propósito 1: Hacer un nuevo contrato social para incrementar la inclusión social, productiva y política | N117: 1743 | P117: 39540619 | Q117: LUZ YANETH DUQUE ALBA | R117: Persona Natural | W117: 28800000 | X117: 0 | AA117: 28800000 | AB117: 28800000 | AC117: 2022-01-26 | AD117: 2022-02-03 | AE117: 2022-08-02 | AF117: 180 | AM117: Terminado | AN117: 1
A118: 104 | B118: 2022 | C118: FDLCH-CPS-104-2022 | D118: https://community.secop.gov.co/Public/Tendering/OpportunityDetail/Index?noticeUID=CO1.NTC.2710953&isFromPublicArea=True&isModal=true&asPopupView=true | E118: Contratos de prestación de servicios profesionales y de apoyo a la gestión | F118: Contratación directa | G118: Prestación de servicios profesionales y de apoyo a la gestión, o para la ejecución de trabajos artísticos que sólo puedan encomendarse a determinadas personas naturales | H118: Prestar servicios profesionales para apoyar al área de gestión del desarrollo local de chapinero, en el acompañamiento, gestión, formulación y atención de la ejecución de las actividades derivadas del proyecto de inversión chapinero epicentro del deporte y la recreación. | I118: Inversión | J118: Un nuevo contrato social y ambiental para la Bogotá del Siglo XXI | K118: 20 | L118: =IF(ISERROR(VLOOKUP(K118,[2]Proposito_programa!$C$2:$E$59,2,FALSE))," ",VLOOKUP(K118,[2]Proposito_programa!$C$2:$E$59,2,FALSE)) -> Bogotá, referente en cultura, deporte, recreación y actividad física, con parques para el desarrollo y la salud | M118: =IF(ISERROR(VLOOKUP(K118,[2]Proposito_programa!$C$2:$E$59,3,FALSE))," ",VLOOKUP(K118,[2]Proposito_programa!$C$2:$E$59,3,FALSE)) -> Propósito 1: Hacer un nuevo contrato social para incrementar la inclusión social, productiva y política | N118: 1845 | P118: 1033802617 | Q118: LAURA CAMILA RAMIREZ | R118: Persona Natural | W118: 27600000 | X118: 0 | Y118: 2 | Z118: 13800000 | AA118: 41400000 | AB118: 41400000 | AC118: 2022-01-25 | AD118: 2022-02-02 | AE118: 2022-11-01 | AF118: 180 | AG118: 1 | AH118: 90 | AM118: Terminado | AN118: 1
A119: 105 | B119: 2022 | C119: FDLCH-CPS-105-2022 | D119: https://community.secop.gov.co/Public/Tendering/OpportunityDetail/Index?noticeUID=CO1.NTC.2709744&isFromPublicArea=True&isModal=true&asPopupView=true | E119: Contratos de prestación de servicios profesionales y de apoyo a la gestión | F119: Contratación directa | G119: Prestación de servicios profesionales y de apoyo a la gestión, o para la ejecución de trabajos artísticos que sólo puedan encomendarse a determinadas personas naturales | H119: Prestar servicios profesionales de apoyo a la gestión para el desarrollo de actividades relacionadas con la formulación, seguimiento, terminación y cierre de proyectos de inversión relacionados con la gestión ambiental local en el marco del proyecto de inversión Chapinero Siempra Esperanza. | I119: Inversión | J119: Un nuevo contrato social y ambiental para la Bogotá del Siglo XXI | K119: 24 | L119: =IF(ISERROR(VLOOKUP(K119,[2]Proposito_programa!$C$2:$E$59,2,FALSE))," ",VLOOKUP(K119,[2]Proposito_programa!$C$2:$E$59,2,FALSE)) -> Bogotá región emprendedora e innovadora | M119: =IF(ISERROR(VLOOKUP(K119,[2]Proposito_programa!$C$2:$E$59,3,FALSE))," ",VLOOKUP(K119,[2]Proposito_programa!$C$2:$E$59,3,FALSE)) -> Propósito 1: Hacer un nuevo contrato social para incrementar la inclusión social, productiva y política | N119: 1631 | P119: 1033773200 | Q119: PAULA ROCIO VELOZA MARTINEZ | R119: Persona Natural | W119: 30000000 | X119: 0 | Y119: 1 | Z119: 15000000 | AA119: 45000000 | AB119: 45000000 | AC119: 2022-01-25 | AD119: 2022-02-01 | AE119: 2022-10-31 | AF119: 180 | AG119: 1 | AH119: 90 | AM119: Terminado | AN119: 1
A120: 106 | B120: 2022 | C120: FDLCH-CPS-106-2022 | D120: https://community.secop.gov.co/Public/Tendering/OpportunityDetail/Index?noticeUID=CO1.NTC.2715731&isFromPublicArea=True&isModal=true&asPopupView=true | E120: Contratos de prestación de servicios profesionales y de apoyo a la gestión | F120: Contratación directa | G120: Prestación de servicios profesionales y de apoyo a la gestión, o para la ejecución de trabajos artísticos que sólo puedan encomendarse a determinadas personas naturales | H120: Prestar servicios asistenciales de apoyo para la gestión y desarrollo del proyecto de inversión No. 1715 "Chapinero restaurasdor y cuidador del territorio". | I120: Inversión | J120: Un nuevo contrato social y ambiental para la Bogotá del Siglo XXI | K120: 28 | L120: =IF(ISERROR(VLOOKUP(K120,[2]Proposito_programa!$C$2:$E$59,2,FALSE))," ",VLOOKUP(K120,[2]Proposito_programa!$C$2:$E$59,2,FALSE)) -> Bogotá protectora de sus recursos naturales | M120: =IF(ISERROR(VLOOKUP(K120,[2]Proposito_programa!$C$2:$E$59,3,FALSE))," ",VLOOKUP(K120,[2]Proposito_programa!$C$2:$E$59,3,FALSE)) -> Propósito 2 : Cambiar Nuestros Hábitos de Vida para Reverdecer a Bogotá y Adaptarnos y Mitigar la Crisis Climática | N120: 1715 | P120: 52131900 | Q120: MAGDA LUCIA RIVERA JOYA | R120: Persona Natural | W120: 13200000 | X120: 0 | Y120: 1 | Z120: 6600000 | AA120: 19800000 | AB120: 19800000 | AC120: 2022-01-25 | AD120: 2022-02-02 | AE120: 2022-11-01 | AF120: 180 | AG120: 1 | AH120: 90 | AM120: Terminado | AN120: 1
A121: 107 | B121: 2022 | C121: FDLCH-CPS-107-2022 | D121: https://community.secop.gov.co/Public/Tendering/OpportunityDetail/Index?noticeUID=CO1.NTC.2711727&isFromPublicArea=True&isModal=true&asPopupView=true | E121: Contratos de prestación de servicios profesionales y de apoyo a la gestión | F121: Contratación directa | G121: Prestación de servicios profesionales y de apoyo a la gestión, o para la ejecución de trabajos artísticos que sólo puedan encomendarse a determinadas personas naturales | H121: Prestar servicios asistenciales de apoyo a la gestión para el desarrollo de actividades relacionadas con la asistencia administrativa, seguimiento, terminación y cierre de proyectos de inversión relacionados con la gestión ambiental local en el marco del proyecto de inversión" Chapinero siembra esperanza". | I121: Inversión | J121: Un nuevo contrato social y ambiental para la Bogotá del Siglo XXI | K121: 24 | L121: =IF(ISERROR(VLOOKUP(K121,[2]Proposito_programa!$C$2:$E$59,2,FALSE))," ",VLOOKUP(K121,[2]Proposito_programa!$C$2:$E$59,2,FALSE)) -> Bogotá región emprendedora e innovadora | M121: =IF(ISERROR(VLOOKUP(K121,[2]Proposito_programa!$C$2:$E$59,3,FALSE))," ",VLOOKUP(K121,[2]Proposito_programa!$C$2:$E$59,3,FALSE)) -> Propósito 1: Hacer un nuevo contrato social para incrementar la inclusión social, productiva y política | N121: 1631 | P121: 1024569859 | Q121: YEISON JESUS SANCHEZ WALDO | R121: Persona Natural | W121: 13200000 | X121: 0 | Y121: 1 | Z121: 6600000 | AA121: 19800000 | AB121: 19800000 | AC121: 2022-01-26 | AD121: 2022-02-02 | AE121: 2022-11-01 | AF121: 180 | AG121: 1 | AH121: 90 | AM121: Terminado | AN121: 1
A122: 108 | B122: 2022 | C122: FDLCH-CPS-108-2022 | D122: https://community.secop.gov.co/Public/Tendering/OpportunityDetail/Index?noticeUID=CO1.NTC.2712220&isFromPublicArea=True&isModal=true&asPopupView=true | E122: Contratos de prestación de servicios profesionales y de apoyo a la gestión | F122: Contratación directa | G122: Prestación de servicios profesionales y de apoyo a la gestión, o para la ejecución de trabajos artísticos que sólo puedan encomendarse a determinadas personas naturales | H122: Prestar servicios técnicos de apoyo a la gestión, para el desarrollo de los procesos de formación y transformación ambiental en la localidad en el marco en el proyecto 1712 "Chapinero consiencte y resilente con el cambio climático". | I122: Inversión | J122: Un nuevo contrato social y ambiental para la Bogotá del Siglo XXI | K122: 27 | L122: =IF(ISERROR(VLOOKUP(K122,[2]Proposito_programa!$C$2:$E$59,2,FALSE))," ",VLOOKUP(K122,[2]Proposito_programa!$C$2:$E$59,2,FALSE)) -> Cambio cultural para la gestión de la crisis climática | M122: =IF(ISERROR(VLOOKUP(K122,[2]Proposito_programa!$C$2:$E$59,3,FALSE))," ",VLOOKUP(K122,[2]Proposito_programa!$C$2:$E$59,3,FALSE)) -> Propósito 2 : Cambiar Nuestros Hábitos de Vida para Reverdecer a Bogotá y Adaptarnos y Mitigar la Crisis Climática | N122: 1712 | P122: 1019127835 | Q122: NATALIA PUERTO GONZALEZ | R122: Persona Natural | W122: 18000000 | X122: -15600000 | Y122: 1 | Z122: 9000000 | AA122: 11400000 | AB122: 27000000 | AC122: 2022-01-26 | AD122: 2022-02-01 | AE122: 2022-10-31 | AF122: 180 | AG122: 1 | AH122: 90 | AM122: Terminado | AN122: 1
A123: 109 | B123: 2022 | C123: FDLCH-CPS-109-2022 | D123: https://community.secop.gov.co/Public/Tendering/OpportunityDetail/Index?noticeUID=CO1.NTC.2738666&isFromPublicArea=True&isModal=true&asPopupView=true | E123: Contratos de prestación de servicios profesionales y de apoyo a la gestión | F123: Contratación directa | G123: Prestación de servicios profesionales y de apoyo a la gestión, o para la ejecución de trabajos artísticos que sólo puedan encomendarse a determinadas personas naturales | H123: Apoyar jurídicamente la ejecución de las acciones requeridas para la depuración de las actuaciones administrativas que cursan en la Alcaldía Local. | I123: Inversión | J123: Un nuevo contrato social y ambiental para la Bogotá del Siglo XXI | K123: 57 | L123: =IF(ISERROR(VLOOKUP(K123,[2]Proposito_programa!$C$2:$E$59,2,FALSE))," ",VLOOKUP(K123,[2]Proposito_programa!$C$2:$E$59,2,FALSE)) -> Gestión pública local | M123: =IF(ISERROR(VLOOKUP(K123,[2]Proposito_programa!$C$2:$E$59,3,FALSE))," ",VLOOKUP(K123,[2]Proposito_programa!$C$2:$E$59,3,FALSE)) -> Propósito 5: Construir Bogotá - Región con gobierno abierto, transparente y ciudadanía consciente | N123: 1841 | P123: 1026267438 | Q123: SERGIO GEOVANNY TOCANCIPA ARIZA | R123: Persona Natural | W123: 27600000 | X123: 0 | Y123: 1 | Z123: 13800000 | AA123: 41400000 | AB123: 41400000 | AC123: 2022-01-27 | AD123: 2022-02-01 | AE123: 2022-10-31 | AF123: 180 | AG123: 1 | AH123: 90 | AM123: Terminado | AN123: 1
A124: 110 | B124: 2022 | C124: FDLCH-CPS-110-2022 | D124: https://community.secop.gov.co/Public/Tendering/OpportunityDetail/Index?noticeUID=CO1.NTC.2708476&isFromPublicArea=True&isModal=true&asPopupView=true | E124: Contratos de prestación de servicios profesionales y de apoyo a la gestión | F124: Contratación directa | G124: Prestación de servicios profesionales y de apoyo a la gestión, o para la ejecución de trabajos artísticos que sólo puedan encomendarse a determinadas personas naturales | H124: Prestar servicios asistenciales de apoyo a la gestión para el desarrollo de actividades relacionadas con la gestión ambiental local en el marco del proyecto de inversión "Chapinero sostenible y consciente" | I124: Inversión | J124: Un nuevo contrato social y ambiental para la Bogotá del Siglo XXI | K124: 38 | L124: =IF(ISERROR(VLOOKUP(K124,[2]Proposito_programa!$C$2:$E$59,2,FALSE))," ",VLOOKUP(K124,[2]Proposito_programa!$C$2:$E$59,2,FALSE)) -> Ecoeficiencia, reciclaje, manejo de residuos e inclusión de la población recicladora | M124: =IF(ISERROR(VLOOKUP(K124,[2]Proposito_programa!$C$2:$E$59,3,FALSE))," ",VLOOKUP(K124,[2]Proposito_programa!$C$2:$E$59,3,FALSE)) -> Propósito 2 : Cambiar Nuestros Hábitos de Vida para Reverdecer a Bogotá y Adaptarnos y Mitigar la Crisis Climática | N124: 1728 | P124: 1077866912 | Q124: MARIA PAULA BRAVO OROZCO | R124: Persona Natural | W124: 12000000 | X124: 0 | AA124: 12000000 | AB124: 12000000 | AC124: 2022-01-25 | AD124: 2022-02-01 | AE124: 2022-10-31 | AF124: 180 | AG124: 1 | AH124: 90 | AM124: Terminado | AN124: 1
A125: 111 | B125: 2022 | C125: FDLCH-CPS-111-2022 | D125: https://community.secop.gov.co/Public/Tendering/OpportunityDetail/Index?noticeUID=CO1.NTC.2706517&isFromPublicArea=True&isModal=False | E125: Contratos de prestación de servicios profesionales y de apoyo a la gestión | F125: Contratación directa | G125: Prestación de servicios profesionales y de apoyo a la gestión, o para la ejecución de trabajos artísticos que sólo puedan encomendarse a determinadas personas naturales | H125: Prestar servicios de apoyo a la gestión, para apoyar al área de gestión del desarrollo local de la alcaldía local de chapinero, en la gestión, desarrollo, seguimiento y evaluación del proyecto de inversión chapinero es primera infancia del programa educación inicial: bases sólidas para la vida | I125: Inversión | J125: Un nuevo contrato social y ambiental para la Bogotá del Siglo XXI | K125: 12 | L125: =IF(ISERROR(VLOOKUP(K125,[2]Proposito_programa!$C$2:$E$59,2,FALSE))," ",VLOOKUP(K125,[2]Proposito_programa!$C$2:$E$59,2,FALSE)) -> Educación inicial: Bases sólidas para la vida. | M125: =IF(ISERROR(VLOOKUP(K125,[2]Proposito_programa!$C$2:$E$59,3,FALSE))," ",VLOOKUP(K125,[2]Proposito_programa!$C$2:$E$59,3,FALSE)) -> Propósito 1: Hacer un nuevo contrato social para incrementar la inclusión social, productiva y política | N125: 1830 | P125: 1031138150 | Q125: DIANA PAOLA AGUDELO CABRERA | R125: Persona Natural | W125: 16320000 | X125: 0 | Y125: 1 | Z125: 8160000 | AA125: 24480000 | AB125: 24480000 | AC125: 2022-01-25 | AD125: 2022-02-01 | AE125: 2022-10-31 | AF125: 180 | AG125: 1 | AH125: 90 | AM125: Terminado | AN125: 1
A126: 112 | B126: 2022 | C126: FDLCH-CPS-112-2022 | D126: https://community.secop.gov.co/Public/Tendering/OpportunityDetail/Index?noticeUID=CO1.NTC.2707639&isFromPublicArea=True&isModal=true&asPopupView=true | E126: Contratos de prestación de servicios profesionales y de apoyo a la gestión | F126: Contratación directa | G126: Prestación de servicios profesionales y de apoyo a la gestión, o para la ejecución de trabajos artísticos que sólo puedan encomendarse a determinadas personas naturales | H126: Prestar servicios profesionales para la gestión, planeación, seguimiento, mitigación y respuesta a situaciones y escenarios de emergencia, en marco del fortalecimiento de la gestión local de los riesgos y la adaptación al cambio climático | I126: Inversión | J126: Un nuevo contrato social y ambiental para la Bogotá del Siglo XXI | K126: 30 | L126: =IF(ISERROR(VLOOKUP(K126,[2]Proposito_programa!$C$2:$E$59,2,FALSE))," ",VLOOKUP(K126,[2]Proposito_programa!$C$2:$E$59,2,FALSE)) -> Eficiencia en la atención de emergencias | M126: =IF(ISERROR(VLOOKUP(K126,[2]Proposito_programa!$C$2:$E$59,3,FALSE))," ",VLOOKUP(K126,[2]Proposito_programa!$C$2:$E$59,3,FALSE)) -> Propósito 2 : Cambiar Nuestros Hábitos de Vida para Reverdecer a Bogotá y Adaptarnos y Mitigar la Crisis Climática | N126: 1719 | P126: 80220756 | Q126: LUIS EDUARDO CRUZ SANCHEZ | R126: Persona Natural | W126: 28800000 | X126: 0 | AA126: 28800000 | AB126: 28640000 | AC126: 2022-01-25 | AD126: 2022-01-26 | AE126: 2022-07-25 | AF126: 180 | AM126: Terminado | AN126: 1
A127: 113 | B127: 2022 | C127: FDLCH-CPS-113-2022 | D127: https://community.secop.gov.co/Public/Tendering/OpportunityDetail/Index?noticeUID=CO1.NTC.2707602&isFromPublicArea=True&isModal=true&asPopupView=true | E127: Contratos de prestación de servicios profesionales y de apoyo a la gestión | F127: Contratación directa | G127: Prestación de servicios profesionales y de apoyo a la gestión, o para la ejecución de trabajos artísticos que sólo puedan encomendarse a determinadas personas naturales | H127: Prestar servicios profesionales para la atención integral de las víctimas del conflicto armado; la gestión, formulación, desarrollo, seguimiento y evaluación del proyecto "Chapinero territorio de paz" y la atención de las instacias de participación locales relacionadas con la construcción de paz local. | I127: Inversión | J127: Un nuevo contrato social y ambiental para la Bogotá del Siglo XXI | K127: 39 | L127: =IF(ISERROR(VLOOKUP(K127,[2]Proposito_programa!$C$2:$E$59,2,FALSE))," ",VLOOKUP(K127,[2]Proposito_programa!$C$2:$E$59,2,FALSE)) -> Bogotá territorio de paz y atención integral a las víctimas del conflicto armado | M127: =IF(ISERROR(VLOOKUP(K127,[2]Proposito_programa!$C$2:$E$59,3,FALSE))," ",VLOOKUP(K127,[2]Proposito_programa!$C$2:$E$59,3,FALSE)) -> Propósito 3: Inspirar confianza y legitimidad para vivir sin miedo y ser epicentro de cultura ciudadana, paz y reconciliación | N127: 2028 | P127: 1014284420 | Q127: LAURA DANIELA GONZALEZ PACHECO | R127: Persona Natural | W127: 27600000 | X127: 0 | Y127: 1 | Z127: 13800000 | AA127: 41400000 | AB127: 41400000 | AC127: 2022-01-25 | AD127: 2022-01-28 | AE127: 2022-10-27 | AF127: 180 | AG127: 1 | AH127: 90 | AM127: Terminado | AN127: 1
A128: 114 | B128: 2022 | C128: FDLCH-CPS-114-2022 | D128: https://community.secop.gov.co/Public/Tendering/OpportunityDetail/Index?noticeUID=CO1.NTC.2710522&isFromPublicArea=True&isModal=true&asPopupView=true | E128: Contratos de prestación de servicios profesionales y de apoyo a la gestión | F128: Contratación directa | G128: Prestación de servicios profesionales y de apoyo a la gestión, o para la ejecución de trabajos artísticos que sólo puedan encomendarse a determinadas personas naturales | H128: Prestar servicios de apoyo a la gestión para la atención integrasl de las víctimas del conflicto armado en la marco del proyecto "Chapinero terrirorio de paz y la atención de las instancias de participación locales relacionadas con la construcción de paz local. | I128: Inversión | J128: Un nuevo contrato social y ambiental para la Bogotá del Siglo XXI | K128: 39 | L128: =IF(ISERROR(VLOOKUP(K128,[2]Proposito_programa!$C$2:$E$59,2,FALSE))," ",VLOOKUP(K128,[2]Proposito_programa!$C$2:$E$59,2,FALSE)) -> Bogotá territorio de paz y atención integral a las víctimas del conflicto armado | M128: =IF(ISERROR(VLOOKUP(K128,[2]Proposito_programa!$C$2:$E$59,3,FALSE))," ",VLOOKUP(K128,[2]Proposito_programa!$C$2:$E$59,3,FALSE)) -> Propósito 3: Inspirar confianza y legitimidad para vivir sin miedo y ser epicentro de cultura ciudadana, paz y reconciliación | N128: 2028 | P128: 1023903680 | Q128: ERIKA MILENA NIÑO MOYANO | R128: Persona Natural | W128: 12000000 | X128: 0 | AA128: 12000000 | AB128: 12000000 | AC128: 2022-01-26 | AD128: 2022-01-28 | AE128: 2022-07-27 | AF128: 180 | AM128: Terminado | AN128: 1
A129: 115 | B129: 2022 | C129: FDLCH-CPS-115-2022 | D129: https://community.secop.gov.co/Public/Tendering/OpportunityDetail/Index?noticeUID=CO1.NTC.2713041&isFromPublicArea=True&isModal=False | E129: Contratos de prestación de servicios profesionales y de apoyo a la gestión | F129: Contratación directa | G129: Prestación de servicios profesionales y de apoyo a la gestión, o para la ejecución de trabajos artísticos que sólo puedan encomendarse a determinadas personas naturales | H129: Prestar los servicios profesionales de apoyo a la gestión para la formulación, desarrollo y seguimiento del proyecto de inversión "Chapinero modelo de moviidad inteligente" y la supervisión de contratos que le sean asignados. | I129: Inversión | J129: Un nuevo contrato social y ambiental para la Bogotá del Siglo XXI | K129: 49 | L129: =IF(ISERROR(VLOOKUP(K129,[2]Proposito_programa!$C$2:$E$59,2,FALSE))," ",VLOOKUP(K129,[2]Proposito_programa!$C$2:$E$59,2,FALSE)) -> Movilidad segura, sostenible y accesible | M129: =IF(ISERROR(VLOOKUP(K129,[2]Proposito_programa!$C$2:$E$59,3,FALSE))," ",VLOOKUP(K129,[2]Proposito_programa!$C$2:$E$59,3,FALSE)) -> Propósito 4: Hacer de Bogotá Región un modelo de movilidad multimodal, incluyente y sostenible | N129: 1734 | P129: 1014240563 | Q129: DIEGO MANUEL SALGADO GUTIERREZ | R129: Persona Natural | W129: 30000000 | X129: 0 | Y129: 1 | Z129: 15000000 | AA129: 45000000 | AB129: 45000000 | AC129: 2022-01-26 | AD129: 2022-02-01 | AE129: 2022-10-31 | AF129: 180 | AG129: 1 | AH129: 90 | AM129: Terminado | AN129: 1
A130: 116 | B130: 2022 | C130: FDLCH-CPS-116-2022 | D130: https://community.secop.gov.co/Public/Tendering/OpportunityDetail/Index?noticeUID=CO1.NTC.2715572&isFromPublicArea=True&isModal=False | E130: Contratos de prestación de servicios profesionales y de apoyo a la gestión | F130: Contratación directa | G130: Prestación de servicios profesionales y de apoyo a la gestión, o para la ejecución de trabajos artísticos que sólo puedan encomendarse a determinadas personas naturales | H130: Prestar los servicios técnicos de apoyo a la gestión, acciones administrativas y seguimiento de las actividades derivadas del proyecto de inversión "Chapinero modelo de movilidad inteligente" | I130: Inversión | J130: Un nuevo contrato social y ambiental para la Bogotá del Siglo XXI | K130: 49 | L130: =IF(ISERROR(VLOOKUP(K130,[2]Proposito_programa!$C$2:$E$59,2,FALSE))," ",VLOOKUP(K130,[2]Proposito_programa!$C$2:$E$59,2,FALSE)) -> Movilidad segura, sostenible y accesible | M130: =IF(ISERROR(VLOOKUP(K130,[2]Proposito_programa!$C$2:$E$59,3,FALSE))," ",VLOOKUP(K130,[2]Proposito_programa!$C$2:$E$59,3,FALSE)) -> Propósito 4: Hacer de Bogotá Región un modelo de movilidad multimodal, incluyente y sostenible | N130: 1734 | P130: 1022388528 | Q130: JHON FREDDY VALERO MAYA | R130: Persona Natural | W130: 17400000 | X130: 0 | Y130: 1 | Z130: 8700000 | AA130: 26100000 | AB130: 26100000 | AC130: 2022-01-26 | AD130: 2022-02-01 | AE130: 2022-10-31 | AF130: 180 | AG130: 1 | AH130: 90 | AM130: Terminado | AN130: 1
A131: 117 | B131: 2022 | C131: FDLCH-CPS-117-2022 | D131: https://community.secop.gov.co/Public/Tendering/OpportunityDetail/Index?noticeUID=CO1.NTC.2713721&isFromPublicArea=True&isModal=False | E131: Contratos de prestación de servicios profesionales y de apoyo a la gestión | F131: Contratación directa | G131: Prestación de servicios profesionales y de apoyo a la gestión, o para la ejecución de trabajos artísticos que sólo puedan encomendarse a determinadas personas naturales | H131: Prestar los servicios técnicos de apoyo a la gestión, acciones administrativas y seguimiento de las actividades derivadas del proyecto de inversión "Chapinero modelo de movilidad inteligente" | I131: Inversión | J131: Un nuevo contrato social y ambiental para la Bogotá del Siglo XXI | K131: 49 | L131: =IF(ISERROR(VLOOKUP(K131,[2]Proposito_programa!$C$2:$E$59,2,FALSE))," ",VLOOKUP(K131,[2]Proposito_programa!$C$2:$E$59,2,FALSE)) -> Movilidad segura, sostenible y accesible | M131: =IF(ISERROR(VLOOKUP(K131,[2]Proposito_programa!$C$2:$E$59,3,FALSE))," ",VLOOKUP(K131,[2]Proposito_programa!$C$2:$E$59,3,FALSE)) -> Propósito 4: Hacer de Bogotá Región un modelo de movilidad multimodal, incluyente y sostenible | N131: 1734 | P131: 1020794388 | Q131: GINA PAOLA JIMENEZ CONTRERAS | R131: Persona Natural | W131: 17400000 | X131: 0 | AA131: 17400000 | AB131: 17400000 | AC131: 2022-01-26 | AD131: 2022-02-01 | AE131: 2022-07-31 | AF131: 180 | AM131: Terminado | AN131: 1
A132: 118 | B132: 2022 | C132: FDLCH-CPS-118-2022 | D132: https://community.secop.gov.co/Public/Tendering/OpportunityDetail/Index?noticeUID=CO1.NTC.2708743&isFromPublicArea=True&isModal=true&asPopupView=true | E132: Contratos de prestación de servicios profesionales y de apoyo a la gestión | F132: Contratación directa | G132: Prestación de servicios profesionales y de apoyo a la gestión, o para la ejecución de trabajos artísticos que sólo puedan encomendarse a determinadas personas naturales | H132: Prestar servicios profesionales para la gestión, desarrollo, seguimiento y evaluación jurídica pre-contractual, contractual y postcontractual del proyecto de inversión "Chapinero modelo de movilidad inteligente” y las demás relacionadas con el proyecto. | I132: Inversión | J132: Un nuevo contrato social y ambiental para la Bogotá del Siglo XXI | K132: 49 | L132: =IF(ISERROR(VLOOKUP(K132,[2]Proposito_programa!$C$2:$E$59,2,FALSE))," ",VLOOKUP(K132,[2]Proposito_programa!$C$2:$E$59,2,FALSE)) -> Movilidad segura, sostenible y accesible | M132: =IF(ISERROR(VLOOKUP(K132,[2]Proposito_programa!$C$2:$E$59,3,FALSE))," ",VLOOKUP(K132,[2]Proposito_programa!$C$2:$E$59,3,FALSE)) -> Propósito 4: Hacer de Bogotá Región un modelo de movilidad multimodal, incluyente y sostenible | N132: 1734 | P132: 1057590689 | Q132: ELMER RICARDO RINCON PLAZAS | R132: Persona Natural | W132: 33000000 | X132: 0 | Y132: 2 | Z132: 14666667 | AA132: 47666667 | AB132: 47666667 | AC132: 2022-01-25 | AD132: 2022-01-26 | AE132: 2022-10-15 | AF132: 180 | AG132: 2 | AH132: 80 | AM132: Terminado | AN132: 1
A133: 119 | B133: 2022 | C133: FDLCH-CPS-119-2022 | D133: https://community.secop.gov.co/Public/Tendering/OpportunityDetail/Index?noticeUID=CO1.NTC.2711894&isFromPublicArea=True&isModal=False | E133: Contratos de prestación de servicios profesionales y de apoyo a la gestión | F133: Contratación directa | G133: Prestación de servicios profesionales y de apoyo a la gestión, o para la ejecución de trabajos artísticos que sólo puedan encomendarse a determinadas personas naturales | H133: Prestar los servicios profesionales para la gestión, formulación, desarrollo y seguimiento del proyecto de inversión "Chapinero espacio para hábitos saludables" | I133: Inversión | J133: Un nuevo contrato social y ambiental para la Bogotá del Siglo XXI | K133: 33 | L133: =IF(ISERROR(VLOOKUP(K133,[2]Proposito_programa!$C$2:$E$59,2,FALSE))," ",VLOOKUP(K133,[2]Proposito_programa!$C$2:$E$59,2,FALSE)) -> Más árboles y más y mejor espacio público | M133: =IF(ISERROR(VLOOKUP(K133,[2]Proposito_programa!$C$2:$E$59,3,FALSE))," ",VLOOKUP(K133,[2]Proposito_programa!$C$2:$E$59,3,FALSE)) -> Propósito 2 : Cambiar Nuestros Hábitos de Vida para Reverdecer a Bogotá y Adaptarnos y Mitigar la Crisis Climática | N133: 1723 | P133: 1018461926 | Q133: FABIAN ANDRES CARDONA MARTINEZ | R133: Persona Natural | W133: 27600000 | X133: 0 | Y133: 1 | Z133: 13800000 | AA133: 41400000 | AB133: 41400000 | AC133: 2022-01-26 | AD133: 2022-02-01 | AE133: 2022-10-31 | AF133: 180 | AG133: 1 | AH133: 90 | AM133: Terminado | AN133: 1
A134: 120 | B134: 2022 | C134: FDLCH-CPS-120-2022 | D134: https://community.secop.gov.co/Public/Tendering/OpportunityDetail/Index?noticeUID=CO1.NTC.2722658&isFromPublicArea=True&isModal=true&asPopupView=true | E134: Contratos de prestación de servicios profesionales y de apoyo a la gestión | F134: Contratación directa | G134: Prestación de servicios profesionales y de apoyo a la gestión, o para la ejecución de trabajos artísticos que sólo puedan encomendarse a determinadas personas naturales | H134: Prestar servicios profesionales para apoyar técnicamente las distintas etaspas de los procesos de competencia de las inspecciones de policia de la localidad de chapinero según reparto | I134: Inversión | J134: Un nuevo contrato social y ambiental para la Bogotá del Siglo XXI | K134: 57 | L134: =IF(ISERROR(VLOOKUP(K134,[2]Proposito_programa!$C$2:$E$59,2,FALSE))," ",VLOOKUP(K134,[2]Proposito_programa!$C$2:$E$59,2,FALSE)) -> Gestión pública local | M134: =IF(ISERROR(VLOOKUP(K134,[2]Proposito_programa!$C$2:$E$59,3,FALSE))," ",VLOOKUP(K134,[2]Proposito_programa!$C$2:$E$59,3,FALSE)) -> Propósito 5: Construir Bogotá - Región con gobierno abierto, transparente y ciudadanía consciente | N134: 1841 | P134: 80429650 | Q134: EXCELINO ROMERO CASTAÑEDA | R134: Persona Natural | W134: 31080000 | X134: 0 | Y134: 1 | Z134: 15540000 | AA134: 46620000 | AB134: 46620000 | AC134: 2022-01-27 | AD134: 2022-02-02 | AE134: 2022-11-01 | AF134: 180 | AG134: 1 | AH134: 90 | AM134: Terminado | AN134: 1
A135: 121 | B135: 2022 | C135: FDLCH-CPS-121-2022 | D135: https://community.secop.gov.co/Public/Tendering/OpportunityDetail/Index?noticeUID=CO1.NTC.2710891&isFromPublicArea=True&isModal=true&asPopupView=true | E135: Contratos de prestación de servicios profesionales y de apoyo a la gestión | F135: Contratación directa | G135: Prestación de servicios profesionales y de apoyo a la gestión, o para la ejecución de trabajos artísticos que sólo puedan encomendarse a determinadas personas naturales | H135: Prestar los servicios profesionales para apoyar el área de gestión de desarrollo local de la Alcaldía Local de Chapinero, en la formulación, gestión, ejecución y apoyo a la supervisión de los proyectos relacionados con los temas de salud, en cumplimiento de las metas y objetivos del plan de Desarrollo Local. | I135: Inversión | J135: Un nuevo contrato social y ambiental para la Bogotá del Siglo XXI | K135: 6 | L135: =IF(ISERROR(VLOOKUP(K135,[2]Proposito_programa!$C$2:$E$59,2,FALSE))," ",VLOOKUP(K135,[2]Proposito_programa!$C$2:$E$59,2,FALSE)) -> Sistema Distrital de Cuidado | M135: =IF(ISERROR(VLOOKUP(K135,[2]Proposito_programa!$C$2:$E$59,3,FALSE))," ",VLOOKUP(K135,[2]Proposito_programa!$C$2:$E$59,3,FALSE)) -> Propósito 1: Hacer un nuevo contrato social para incrementar la inclusión social, productiva y política | N135: 2024 | P135: 1014187761 | Q135: MARIA DEL PILAR VARGAS TALERO | R135: Persona Natural | W135: 28640000 | Y135: 1 | Z135: 8640000 | AA135: 37280000 | AB135: 37440000 | AC135: 2022-01-25 | AD135: 2022-03-02 | AE135: 2022-10-25 | AF135: 180 | AG135: 1 | AH135: 60 | AI135: 52958310 | AJ135: NADIA CATALINA ARAGON CHILITO | AK135: 2022-03-02 | AL135: 28640000 | AM135: Terminado | AN135: 1
A136: 122 | B136: 2022 | C136: FDLCH-CPS-122-2022 | D136: https://community.secop.gov.co/Public/Tendering/OpportunityDetail/Index?noticeUID=CO1.NTC.2710492&isFromPublicArea=True&isModal=true&asPopupView=true | E136: Contratos de prestación de servicios profesionales y de apoyo a la gestión | F136: Contratación directa | G136: Prestación de servicios profesionales y de apoyo a la gestión, o para la ejecución de trabajos artísticos que sólo puedan encomendarse a determinadas personas naturales | H136: Prestar los servicios profesionales de apoyo a la gestión, para el seguimiento y verificación de las garantías contractuales derivadas de los contratos del proyecto de inversión "Chapinero modelo de movilidad inteligente". | I136: Inversión | J136: Un nuevo contrato social y ambiental para la Bogotá del Siglo XXI | K136: 49 | L136: =IF(ISERROR(VLOOKUP(K136,[2]Proposito_programa!$C$2:$E$59,2,FALSE))," ",VLOOKUP(K136,[2]Proposito_programa!$C$2:$E$59,2,FALSE)) -> Movilidad segura, sostenible y accesible | M136: =IF(ISERROR(VLOOKUP(K136,[2]Proposito_programa!$C$2:$E$59,3,FALSE))," ",VLOOKUP(K136,[2]Proposito_programa!$C$2:$E$59,3,FALSE)) -> Propósito 4: Hacer de Bogotá Región un modelo de movilidad multimodal, incluyente y sostenible | N136: 1734 | P136: 1070011854 | Q136: SANDRA PAOLA SALAMANCA RIAÑO | R136: Persona Natural | W136: 27600000 | X136: 0 | Y136: 1 | Z136: 13800000 | AA136: 41400000 | AB136: 41400000 | AC136: 2022-01-25 | AD136: 2022-01-27 | AE136: 2022-10-26 | AF136: 180 | AG136: 1 | AH136: 90 | AM136: Terminado | AN136: 1
A137: 123 | B137: 2022 | C137: FDLCH-CPS-123-2022 | D137: https://community.secop.gov.co/Public/Tendering/OpportunityDetail/Index?noticeUID=CO1.NTC.2751055&isFromPublicArea=True&isModal=true&asPopupView=true | E137: Contratos de prestación de servicios profesionales y de apoyo a la gestión | F137: Contratación directa | G137: Prestación de servicios profesionales y de apoyo a la gestión, o para la ejecución de trabajos artísticos que sólo puedan encomendarse a determinadas personas naturales | H137: Prestar servicios profesionales para la gestión, formulación, desarrollo, seguimiento y evaluación del Proyecto “Chapinero territorio para vivir sin miedo | I137: Inversión | J137: Un nuevo contrato social y ambiental para la Bogotá del Siglo XXI | K137: 48 | L137: =IF(ISERROR(VLOOKUP(K137,[2]Proposito_programa!$C$2:$E$59,2,FALSE))," ",VLOOKUP(K137,[2]Proposito_programa!$C$2:$E$59,2,FALSE)) -> Plataforma institucional para la seguridad y justicia | M137: =IF(ISERROR(VLOOKUP(K137,[2]Proposito_programa!$C$2:$E$59,3,FALSE))," ",VLOOKUP(K137,[2]Proposito_programa!$C$2:$E$59,3,FALSE)) -> Propósito 3: Inspirar confianza y legitimidad para vivir sin miedo y ser epicentro de cultura ciudadana, paz y reconciliación | N137: 1740 | P137: 52904967 | Q137: ANGELA CRISTINA CARVAJAL TOVAR | R137: Persona Natural | W137: 22800000 | X137: 0 | Y137: 1 | Z137: 11400000 | AA137: 34200000 | AB137: 34200000 | AC137: 2022-01-27 | AD137: 2022-02-01 | AE137: 2022-07-31 | AF137: 120 | AG137: 1 | AH137: 60 | AM137: Terminado | AN137: 1
A138: 124 | B138: 2022 | C138: FDLCH-CPS-124-2022 | D138: https://community.secop.gov.co/Public/Tendering/OpportunityDetail/Index?noticeUID=CO1.NTC.2750522&isFromPublicArea=True&isModal=true&asPopupView=true | E138: Contratos de prestación de servicios profesionales y de apoyo a la gestión | F138: Contratación directa | G138: Prestación de servicios profesionales y de apoyo a la gestión, o para la ejecución de trabajos artísticos que sólo puedan encomendarse a determinadas personas naturales | H138: Prestar servicios de apoyo logístico asistencial para el desarrollo de actividades y eventos locales en el marco de la ejecución del plan de desarrollo local. | I138: Inversión | J138: Un nuevo contrato social y ambiental para la Bogotá del Siglo XXI | K138: 57 | L138: =IF(ISERROR(VLOOKUP(K138,[2]Proposito_programa!$C$2:$E$59,2,FALSE))," ",VLOOKUP(K138,[2]Proposito_programa!$C$2:$E$59,2,FALSE)) -> Gestión pública local | M138: =IF(ISERROR(VLOOKUP(K138,[2]Proposito_programa!$C$2:$E$59,3,FALSE))," ",VLOOKUP(K138,[2]Proposito_programa!$C$2:$E$59,3,FALSE)) -> Propósito 5: Construir Bogotá - Región con gobierno abierto, transparente y ciudadanía consciente | N138: 1741 | P138: 80410411 | Q138: CARLOS JULIO MARTINEZ RIPE | R138: Persona Natural | W138: 13200000 | X138: 0 | Y138: 1 | Z138: 6600000 | AA138: 19800000 | AB138: 19800000 | AC138: 2022-01-27 | AD138: 2022-02-01 | AE138: 2022-10-31 | AF138: 180 | AG138: 1 | AH138: 90 | AM138: Terminado | AN138: 1
A139: 125 | B139: 2022 | C139: FDLCH-CPS-125-2022 | D139: https://community.secop.gov.co/Public/Tendering/OpportunityDetail/Index?noticeUID=CO1.NTC.2750162&isFromPublicArea=True&isModal=true&asPopupView=true | E139: Contratos de prestación de servicios profesionales y de apoyo a la gestión | F139: Contratación directa | G139: Prestación de servicios profesionales y de apoyo a la gestión, o para la ejecución de trabajos artísticos que sólo puedan encomendarse a determinadas personas naturales | H139: Prestar los servicios de apoyo a la gestión para la orientación de sesiones de actividad física musicalizada y no musicalizada en la localidad como del acompañamiento atención y ejecución de actividades recreo-deportivas derivadas del proyecto de invrsión "Chapinero epicentro del deporte y la recreación". | I139: Inversión | J139: Un nuevo contrato social y ambiental para la Bogotá del Siglo XXI | K139: 20 | L139: =IF(ISERROR(VLOOKUP(K139,[2]Proposito_programa!$C$2:$E$59,2,FALSE))," ",VLOOKUP(K139,[2]Proposito_programa!$C$2:$E$59,2,FALSE)) -> Bogotá, referente en cultura, deporte, recreación y actividad física, con parques para el desarrollo y la salud | M139: =IF(ISERROR(VLOOKUP(K139,[2]Proposito_programa!$C$2:$E$59,3,FALSE))," ",VLOOKUP(K139,[2]Proposito_programa!$C$2:$E$59,3,FALSE)) -> Propósito 1: Hacer un nuevo contrato social para incrementar la inclusión social, productiva y política | N139: 1845 | P139: 1018432468 | Q139: EDISON FABIAN LEON LEON | R139: Persona Natural | W139: 16500000 | X139: 0 | AA139: 16500000 | AB139: 16499999 | AC139: 2022-01-27 | AD139: 2022-02-02 | AE139: 2022-08-01 | AF139: 180 | AM139: Terminado | AN139: 1
A140: 126 | B140: 2022 | C140: FDLCH-CPS-126-2022 | D140: https://community.secop.gov.co/Public/Tendering/OpportunityDetail/Index?noticeUID=CO1.NTC.2749931&isFromPublicArea=True&isModal=true&asPopupView=true | E140: Contratos de prestación de servicios profesionales y de apoyo a la gestión | F140: Contratación directa | G140: Prestación de servicios profesionales y de apoyo a la gestión, o para la ejecución de trabajos artísticos que sólo puedan encomendarse a determinadas personas naturales | H140: Prestar servicios de apoyo logístico asistencial para el desarrollo de actividades y eventos locales en el marco de la ejecución del plan de desarrollo local. | I140: Inversión | J140: Un nuevo contrato social y ambiental para la Bogotá del Siglo XXI | K140: 57 | L140: =IF(ISERROR(VLOOKUP(K140,[2]Proposito_programa!$C$2:$E$59,2,FALSE))," ",VLOOKUP(K140,[2]Proposito_programa!$C$2:$E$59,2,FALSE)) -> Gestión pública local | M140: =IF(ISERROR(VLOOKUP(K140,[2]Proposito_programa!$C$2:$E$59,3,FALSE))," ",VLOOKUP(K140,[2]Proposito_programa!$C$2:$E$59,3,FALSE)) -> Propósito 5: Construir Bogotá - Región con gobierno abierto, transparente y ciudadanía consciente | N140: 1741 | P140: 1071166907 | Q140: WILSON FERNANDO ORJUELA CHAVES | R140: Persona Natural | W140: 13200000 | X140: 0 | Y140: 1 | Z140: 6600000 | AA140: 19800000 | AB140: 19800000 | AC140: 2022-01-27 | AD140: 2022-02-01 | AE140: 2022-10-31 | AF140: 180 | AG140: 1 | AH140: 90 | AM140: Terminado | AN140: 1
A141: 127 | B141: 2022 | C141: FDLCH-CPS-127-2022 | D141: https://community.secop.gov.co/Public/Tendering/OpportunityDetail/Index?noticeUID=CO1.NTC.2734273&isFromPublicArea=True&isModal=true&asPopupView=true | E141: Contratos de prestación de servicios profesionales y de apoyo a la gestión | F141: Contratación directa | G141: Prestación de servicios profesionales y de apoyo a la gestión, o para la ejecución de trabajos artísticos que sólo puedan encomendarse a determinadas personas naturales | H141: Prestar los servicios de apoyo a la gestión en la implementación, atención, verificación, soporte y acompañamiento de los procesos y/o actuaciones administrativas de la Alcaldía Local, así como el seguimiento en los aplicativos y/o herramientas virtuales. | I141: Inversión | J141: Un nuevo contrato social y ambiental para la Bogotá del Siglo XXI | K141: 57 | L141: =IF(ISERROR(VLOOKUP(K141,[2]Proposito_programa!$C$2:$E$59,2,FALSE))," ",VLOOKUP(K141,[2]Proposito_programa!$C$2:$E$59,2,FALSE)) -> Gestión pública local | M141: =IF(ISERROR(VLOOKUP(K141,[2]Proposito_programa!$C$2:$E$59,3,FALSE))," ",VLOOKUP(K141,[2]Proposito_programa!$C$2:$E$59,3,FALSE)) -> Propósito 5: Construir Bogotá - Región con gobierno abierto, transparente y ciudadanía consciente | N141: 1741 | P141: 1120563691 | Q141: JHON FREDDY RAMIREZ VILLABUENA | R141: Persona Natural | W141: 8000000 | X141: 0 | Y141: 1 | Z141: 4000000 | AA141: 12000000 | AB141: 12000000 | AC141: 2022-01-27 | AD141: 2022-02-02 | AE141: 2022-08-01 | AF141: 120 | AG141: 1 | AH141: 60 | AM141: Terminado | AN141: 1
A142: 128 | B142: 2022 | C142: FDLCH-CPS-128-2022 | D142: https://community.secop.gov.co/Public/Tendering/OpportunityDetail/Index?noticeUID=CO1.NTC.2708767&isFromPublicArea=True&isModal=true&asPopupView=true | E142: Contratos de prestación de servicios profesionales y de apoyo a la gestión | F142: Contratación directa | G142: Prestación de servicios profesionales y de apoyo a la gestión, o para la ejecución de trabajos artísticos que sólo puedan encomendarse a determinadas personas naturales | H142: Prestar servicios profesionales para el apoyo a la gestión y la articulación de las acciones de inspección vigilancia y control requeridos por la Alcaldía Local de Chapinero en el marco de la normatividad. | I142: Inversión | J142: Un nuevo contrato social y ambiental para la Bogotá del Siglo XXI | K142: 57 | L142: =IF(ISERROR(VLOOKUP(K142,[2]Proposito_programa!$C$2:$E$59,2,FALSE))," ",VLOOKUP(K142,[2]Proposito_programa!$C$2:$E$59,2,FALSE)) -> Gestión pública local | M142: =IF(ISERROR(VLOOKUP(K142,[2]Proposito_programa!$C$2:$E$59,3,FALSE))," ",VLOOKUP(K142,[2]Proposito_programa!$C$2:$E$59,3,FALSE)) -> Propósito 5: Construir Bogotá - Región con gobierno abierto, transparente y ciudadanía consciente | N142: 1841 | P142: 31152253 | Q142: MARIA DEL ROSARIO VALDERRUTEN | R142: Persona Natural | W142: 42240000 | X142: -28864000 | AA142: 13376000 | AB142: 13376000 | AC142: 2022-01-26 | AD142: 2022-01-26 | AE142: 2022-03-23 | AF142: 180 | AM142: Terminado | AN142: 1
A143: 129 | B143: 2022 | C143: FDLCH-CPS-129-2022 | D143: https://community.secop.gov.co/Public/Tendering/OpportunityDetail/Index?noticeUID=CO1.NTC.2737167&isFromPublicArea=True&isModal=true&asPopupView=true | E143: Contratos de prestación de servicios profesionales y de apoyo a la gestión | F143: Contratación directa | G143: Prestación de servicios profesionales y de apoyo a la gestión, o para la ejecución de trabajos artísticos que sólo puedan encomendarse a determinadas personas naturales | H143: Prestar servicios profesionales para la gestión, formulación, desarrollo, seguimiento y evaluación del proyecto de invesión chapinero productivo y emprendedor, la estrategia de mitigación y reactivación económica-EMRE Local y la supervisión de contratos que le asean asignados. | I143: Inversión | J143: Un nuevo contrato social y ambiental para la Bogotá del Siglo XXI | K143: 6 | L143: =IF(ISERROR(VLOOKUP(K143,[2]Proposito_programa!$C$2:$E$59,2,FALSE))," ",VLOOKUP(K143,[2]Proposito_programa!$C$2:$E$59,2,FALSE)) -> Sistema Distrital de Cuidado | M143: =IF(ISERROR(VLOOKUP(K143,[2]Proposito_programa!$C$2:$E$59,3,FALSE))," ",VLOOKUP(K143,[2]Proposito_programa!$C$2:$E$59,3,FALSE)) -> Propósito 1: Hacer un nuevo contrato social para incrementar la inclusión social, productiva y política | N143: 1671 | P143: 1032381420 | Q143: JENNIFER TORRES TORRES | R143: Persona Natural | W143: 24000000 | X143: -8400000 | AA143: 15600000 | AB143: 15600000 | AC143: 2022-01-27 | AD143: 2022-02-01 | AE143: 2022-04-18 | AF143: 120 | AM143: Terminado | AN143: 1
A144: 130 | B144: 2022 | C144: FDLCH-CPS-130-2022 | D144: https://community.secop.gov.co/Public/Tendering/OpportunityDetail/Index?noticeUID=CO1.NTC.2735408&isFromPublicArea=True&isModal=true&asPopupView=true | E144: Contratos de prestación de servicios profesionales y de apoyo a la gestión | F144: Contratación directa | G144: Prestación de servicios profesionales y de apoyo a la gestión, o para la ejecución de trabajos artísticos que sólo puedan encomendarse a determinadas personas naturales | H144: Prestar servicios profesionales para apoyar al Alcalde Local en la gestión de los asuntos relacionados con seguridad ciudadana, convivencia y prevención de conflictividades, violencias y delitos en la localidad, de conformidad con el marco normativo aplicable en la materia. | I144: Inversión | J144: Un nuevo contrato social y ambiental para la Bogotá del Siglo XXI | K144: 57 | L144: =IF(ISERROR(VLOOKUP(K144,[2]Proposito_programa!$C$2:$E$59,2,FALSE))," ",VLOOKUP(K144,[2]Proposito_programa!$C$2:$E$59,2,FALSE)) -> Gestión pública local | M144: =IF(ISERROR(VLOOKUP(K144,[2]Proposito_programa!$C$2:$E$59,3,FALSE))," ",VLOOKUP(K144,[2]Proposito_programa!$C$2:$E$59,3,FALSE)) -> Propósito 5: Construir Bogotá - Región con gobierno abierto, transparente y ciudadanía consciente | N144: 1741 | P144: 79720862 | Q144: IVAN GUILLERMO RAMIREZ REYES | R144: Persona Natural | W144: 48000000 | X144: 0 | Y144: 2 | Z144: =19000000+5000000 -> 24000000 | AA144: =+W144+X144+Z144 -> 72000000 | AB144: 60800000 | AC144: 2022-01-27 | AD144: 2022-01-27 | AE144: 25/01/2023 | AF144: 240 | AG144: 2 | AH144: 120 | AM144: En ejecución | AN144: 0.9
A145: 131 | B145: 2022 | C145: FDLCH-CPS-131-2022 | D145: https://community.secop.gov.co/Public/Tendering/OpportunityDetail/Index?noticeUID=CO1.NTC.2732491&isFromPublicArea=True&isModal=true&asPopupView=true | E145: Contratos de prestación de servicios profesionales y de apoyo a la gestión | F145: Contratación directa | G145: Prestación de servicios profesionales y de apoyo a la gestión, o para la ejecución de trabajos artísticos que sólo puedan encomendarse a determinadas personas naturales | H145: Prestar servicios asistenciales para apoyar al Alcalde Local en la promoción, articulación, acompañamiento y seguimiento para la atención y protección de los animales domésticos y silvestres de la localidad. | I145: Inversión | J145: Un nuevo contrato social y ambiental para la Bogotá del Siglo XXI | K145: 34 | L145: =IF(ISERROR(VLOOKUP(K145,[2]Proposito_programa!$C$2:$E$59,2,FALSE))," ",VLOOKUP(K145,[2]Proposito_programa!$C$2:$E$59,2,FALSE)) -> Bogotá protectora de los animales | M145: =IF(ISERROR(VLOOKUP(K145,[2]Proposito_programa!$C$2:$E$59,3,FALSE))," ",VLOOKUP(K145,[2]Proposito_programa!$C$2:$E$59,3,FALSE)) -> Propósito 2 : Cambiar Nuestros Hábitos de Vida para Reverdecer a Bogotá y Adaptarnos y Mitigar la Crisis Climática | N145: 1731 | P145: 1026263210 | Q145: NORMA CONSTANZA IQUIRA ARISTIZABAL | R145: Persona Natural | W145: 11000000 | Y145: 1 | Z145: 5500000 | AA145: 16500000 | AB145: 13053333 | AC145: 2022-01-27 | AD145: 2022-02-01 | AE145: 2022-09-21 | AF145: 150 | AG145: 1 | AH145: 75 | AI145: 53161037 | AJ145: YURI MATOMA MENDEZ | AK145: 2022-04-18 | AL145: 5333333 | AM145: Terminado | AN145: 1
A146: 132 | B146: 2022 | C146: FDLCH-CPS-132-2022 | D146: https://community.secop.gov.co/Public/Tendering/OpportunityDetail/Index?noticeUID=CO1.NTC.2734177&isFromPublicArea=True&isModal=true&asPopupView=true | E146: Contratos de prestación de servicios profesionales y de apoyo a la gestión | F146: Contratación directa | G146: Prestación de servicios profesionales y de apoyo a la gestión, o para la ejecución de trabajos artísticos que sólo puedan encomendarse a determinadas personas naturales | H146: Prestar servicios profesionales para la gestión, formulación, desarrollo, seguimiento y evaluación del proyecto de inversión"Chapinero y emprendedor, la estrategia de mitigación y reactivación económica - EMRE local y la supervisión de contratos que le sean asignados. | I146: Inversión | J146: Un nuevo contrato social y ambiental para la Bogotá del Siglo XXI | K146: 6 | L146: =IF(ISERROR(VLOOKUP(K146,[2]Proposito_programa!$C$2:$E$59,2,FALSE))," ",VLOOKUP(K146,[2]Proposito_programa!$C$2:$E$59,2,FALSE)) -> Sistema Distrital de Cuidado | M146: =IF(ISERROR(VLOOKUP(K146,[2]Proposito_programa!$C$2:$E$59,3,FALSE))," ",VLOOKUP(K146,[2]Proposito_programa!$C$2:$E$59,3,FALSE)) -> Propósito 1: Hacer un nuevo contrato social para incrementar la inclusión social, productiva y política | N146: 1671 | P146: 60256522 | Q146: NUBIA CONSTANZA MOGOLLON ACEVEDO | R146: Persona Natural | W146: 28200000 | X146: 0 | Y146: 1 | Z146: 14100000 | AA146: 42300000 | AB146: 42300000 | AC146: 2022-01-27 | AD146: 2022-02-01 | AE146: 2022-10-31 | AF146: 180 | AG146: 1 | AH146: 90 | AM146: Terminado | AN146: 1
A147: 133 | B147: 2022 | C147: FDLCH-CPS-133-2022 | D147: https://community.secop.gov.co/Public/Tendering/OpportunityDetail/Index?noticeUID=CO1.NTC.2736462&isFromPublicArea=True&isModal=true&asPopupView=true | E147: Contratos de prestación de servicios profesionales y de apoyo a la gestión | F147: Contratación directa | G147: Prestación de servicios profesionales y de apoyo a la gestión, o para la ejecución de trabajos artísticos que sólo puedan encomendarse a determinadas personas naturales | H147: Prestar los servicios técnicos de apoyo para la operación, seguimiento y cumplmiento de los procesos y procedimientos del servicio, apoyos económicos TIPO C, requeridos para el oportuno y adecuado registro, cruce y reporte de los datos en el sistema misional SIRBE, que contribuyan a la garantía de los derechos de la población mayor en el marco de la política pública social para el envejecimeinto y la vejez en el distrito capital a cargo de la Alcaldía Local. | I147: Inversión | J147: Un nuevo contrato social y ambiental para la Bogotá del Siglo XXI | K147: 1 | L147: =IF(ISERROR(VLOOKUP(K147,[2]Proposito_programa!$C$2:$E$59,2,FALSE))," ",VLOOKUP(K147,[2]Proposito_programa!$C$2:$E$59,2,FALSE)) -> Subsidios y transferencias para la equidad | M147: =IF(ISERROR(VLOOKUP(K147,[2]Proposito_programa!$C$2:$E$59,3,FALSE))," ",VLOOKUP(K147,[2]Proposito_programa!$C$2:$E$59,3,FALSE)) -> Propósito 1: Hacer un nuevo contrato social para incrementar la inclusión social, productiva y política | N147: 1815 | P147: 80449648 | Q147: JUAN CARLOS AREVALO | R147: Persona Natural | W147: 25200000 | X147: 0 | Y147: 1 | Z147: 12600000 | AA147: 37800000 | AB147: 37800000 | AC147: 2022-01-27 | AD147: 2022-02-01 | AE147: 2022-10-31 | AF147: 180 | AG147: 1 | AH147: 90 | AM147: Terminado | AN147: 1
A148: 134 | B148: 2022 | C148: FDLCH-CPS-134-2022 | D148: https://community.secop.gov.co/Public/Tendering/OpportunityDetail/Index?noticeUID=CO1.NTC.2738213&isFromPublicArea=True&isModal=true&asPopupView=true | E148: Contratos de prestación de servicios profesionales y de apoyo a la gestión | F148: Contratación directa | G148: Prestación de servicios profesionales y de apoyo a la gestión, o para la ejecución de trabajos artísticos que sólo puedan encomendarse a determinadas personas naturales | H148: Prestar servicios de apoyo a la gestión en la ejecución de las actividades administrativas y documentales relacionadas con la gestión policiva en la Alcaldía Local de Chapinero. | I148: Inversión | J148: Un nuevo contrato social y ambiental para la Bogotá del Siglo XXI | K148: 57 | L148: =IF(ISERROR(VLOOKUP(K148,[2]Proposito_programa!$C$2:$E$59,2,FALSE))," ",VLOOKUP(K148,[2]Proposito_programa!$C$2:$E$59,2,FALSE)) -> Gestión pública local | M148: =IF(ISERROR(VLOOKUP(K148,[2]Proposito_programa!$C$2:$E$59,3,FALSE))," ",VLOOKUP(K148,[2]Proposito_programa!$C$2:$E$59,3,FALSE)) -> Propósito 5: Construir Bogotá - Región con gobierno abierto, transparente y ciudadanía consciente | N148: 1841 | P148: 39547488 | Q148: MARIA CRISTINA CRISTANCHO TRIANA | R148: Persona Natural | W148: 13200000 | X148: 0 | Y148: 1 | Z148: 6600000 | AA148: 19800000 | AB148: 19800000 | AC148: 2022-01-27 | AD148: 2022-02-01 | AE148: 2022-10-31 | AF148: 180 | AG148: 1 | AH148: 90 | AM148: Terminado | AN148: 1
A149: 135 | B149: 2022 | C149: FDLCH-CPS-135-2022 | D149: https://community.secop.gov.co/Public/Tendering/OpportunityDetail/Index?noticeUID=CO1.NTC.2734892&isFromPublicArea=True&isModal=true&asPopupView=true | E149: Contratos de prestación de servicios profesionales y de apoyo a la gestión | F149: Contratación directa | G149: Prestación de servicios profesionales y de apoyo a la gestión, o para la ejecución de trabajos artísticos que sólo puedan encomendarse a determinadas personas naturales | H149: Prestar servicios técnicos para apoyar la gestión jurídica en la ejecución de las actividades administrativas y documentales con contenido jurídico, relacionadas con los procesos de inspección, vigilancia y control que adelanta la Alcaldía Local de Chapinero | I149: Inversión | J149: Un nuevo contrato social y ambiental para la Bogotá del Siglo XXI | K149: 57 | L149: =IF(ISERROR(VLOOKUP(K149,[2]Proposito_programa!$C$2:$E$59,2,FALSE))," ",VLOOKUP(K149,[2]Proposito_programa!$C$2:$E$59,2,FALSE)) -> Gestión pública local | M149: =IF(ISERROR(VLOOKUP(K149,[2]Proposito_programa!$C$2:$E$59,3,FALSE))," ",VLOOKUP(K149,[2]Proposito_programa!$C$2:$E$59,3,FALSE)) -> Propósito 5: Construir Bogotá - Región con gobierno abierto, transparente y ciudadanía consciente | N149: 1841 | P149: 52524843 | Q149: YADY MATILDE MORENO VARGAS | R149: Persona Natural | W149: 14000000 | X149: 0 | Y149: 1 | Z149: 7000000 | AA149: 21000000 | AB149: 21000000 | AC149: 2022-01-27 | AD149: 2022-02-02 | AE149: 2022-08-01 | AF149: 120 | AG149: 1 | AH149: 60 | AM149: Terminado | AN149: 1
A150: 136 | B150: 2022 | C150: FDLCH-CPS-136-2022 | D150: https://community.secop.gov.co/Public/Tendering/OpportunityDetail/Index?noticeUID=CO1.NTC.2790309&isFromPublicArea=True&isModal=true&asPopupView=true | E150: Contratos de prestación de servicios profesionales y de apoyo a la gestión | F150: Contratación directa | G150: Prestación de servicios profesionales y de apoyo a la gestión, o para la ejecución de trabajos artísticos que sólo puedan encomendarse a determinadas personas naturales | H150: Prestar los servicios de apoyo necesarios para la conducción de los vehículos que conforman el parque automotor en propiedad o custodia del fondo de desarrollo local de chapinero, y el transporte de servidores públicos para la realización de las actividades misionales de la alcaldía local de chapinero | I150: Inversión | J150: Un nuevo contrato social y ambiental para la Bogotá del Siglo XXI | K150: 57 | L150: =IF(ISERROR(VLOOKUP(K150,[2]Proposito_programa!$C$2:$E$59,2,FALSE))," ",VLOOKUP(K150,[2]Proposito_programa!$C$2:$E$59,2,FALSE)) -> Gestión pública local | M150: =IF(ISERROR(VLOOKUP(K150,[2]Proposito_programa!$C$2:$E$59,3,FALSE))," ",VLOOKUP(K150,[2]Proposito_programa!$C$2:$E$59,3,FALSE)) -> Propósito 5: Construir Bogotá - Región con gobierno abierto, transparente y ciudadanía consciente | N150: 1741 | P150: 80143954 | Q150: OSCAR FABIAN PINEDA CASTRO | R150: Persona Natural | W150: =15600000+5806667 -> 21406667 | X150: -5806667 | Y150: 1 | Z150: 2600000 | AA150: 18200000 | AB150: 16640000 | AC150: 2022-01-28 | AD150: 2022-02-08 | AE150: 2023-03-01 | AF150: 180 | AG150: 1 | AH150: 30 | AI150: 1026562676 | AJ150: HENRY MICHEL DAZA OSPINA | AK150: 2022-09-27 | AL150: 5806667 | AM150: En ejecución | AN150: 0.9
A151: 137 | B151: 2022 | C151: FDLCH-CPS-137-2022 | D151: https://community.secop.gov.co/Public/Tendering/OpportunityDetail/Index?noticeUID=CO1.NTC.2732747&isFromPublicArea=True&isModal=true&asPopupView=true | E151: Contratos de prestación de servicios profesionales y de apoyo a la gestión | F151: Contratación directa | G151: Prestación de servicios profesionales y de apoyo a la gestión, o para la ejecución de trabajos artísticos que sólo puedan encomendarse a determinadas personas naturales | H151: Prestar servicios de apoyo a la gestión para desarrollar las actividades de atención y orientación al ciudadano que se requieran en las instalaciones de la alcaldía local de chapinero | I151: Inversión | J151: Un nuevo contrato social y ambiental para la Bogotá del Siglo XXI | K151: 57 | L151: =IF(ISERROR(VLOOKUP(K151,[2]Proposito_programa!$C$2:$E$59,2,FALSE))," ",VLOOKUP(K151,[2]Proposito_programa!$C$2:$E$59,2,FALSE)) -> Gestión pública local | M151: =IF(ISERROR(VLOOKUP(K151,[2]Proposito_programa!$C$2:$E$59,3,FALSE))," ",VLOOKUP(K151,[2]Proposito_programa!$C$2:$E$59,3,FALSE)) -> Propósito 5: Construir Bogotá - Región con gobierno abierto, transparente y ciudadanía consciente | N151: 1741 | P151: 52785810 | Q151: DIANA SHIRLEY ARDILA ARDILA | R151: Persona Natural | W151: 12000000 | X151: 0 | Y151: 1 | Z151: 6000000 | AA151: 18000000 | AB151: 18000000 | AC151: 2022-01-26 | AD151: 2022-02-01 | AE151: 2022-10-31 | AF151: 180 | AG151: 1 | AH151: 90 | AM151: Terminado | AN151: 1
A152: 138 | B152: 2022 | C152: FDLCH-CPS-138-2022 | D152: https://community.secop.gov.co/Public/Tendering/OpportunityDetail/Index?noticeUID=CO1.NTC.2732435&isFromPublicArea=True&isModal=true&asPopupView=true | E152: Contratos de prestación de servicios profesionales y de apoyo a la gestión | F152: Contratación directa | G152: Prestación de servicios profesionales y de apoyo a la gestión, o para la ejecución de trabajos artísticos que sólo puedan encomendarse a determinadas personas naturales | H152: Apoyar en las tareas operativas de carácter archivístico desarrolladas en la Alcaldía Local de Chapinero para garantizar la aplicación correcta de los procedimientos técnicos | I152: Inversión | J152: Un nuevo contrato social y ambiental para la Bogotá del Siglo XXI | K152: 57 | L152: =IF(ISERROR(VLOOKUP(K152,[2]Proposito_programa!$C$2:$E$59,2,FALSE))," ",VLOOKUP(K152,[2]Proposito_programa!$C$2:$E$59,2,FALSE)) -> Gestión pública local | M152: =IF(ISERROR(VLOOKUP(K152,[2]Proposito_programa!$C$2:$E$59,3,FALSE))," ",VLOOKUP(K152,[2]Proposito_programa!$C$2:$E$59,3,FALSE)) -> Propósito 5: Construir Bogotá - Región con gobierno abierto, transparente y ciudadanía consciente | N152: 1741 | P152: 52423626 | Q152: DIANA PAOLA OVALLE RODRIGUEZ | R152: Persona Natural | W152: 24000000 | X152: 0 | Y152: 1 | Z152: 12000000 | AA152: 36000000 | AB152: 36000000 | AC152: 2022-01-26 | AD152: 2022-02-01 | AE152: 2022-10-31 | AF152: 180 | AG152: 1 | AH152: 90 | AM152: Terminado | AN152: 1
A153: 71 | B153: 2021 | C153: FDLCH-CPS-071-2021 | D153: https://colombiacompra.gov.co/tienda-virtual-del-estado-colombiano/ordenes-compra/65068 | E153: Contratos de prestación de servicios | F153: Selección abreviada | G153: Selección abreviada por menor cuantía | H153: Prestar los servicios de aseo y cafeteria en la Alcaldía Local de Chapinero y sus sedes, conforme a lo estipulado en el Acuerdo Marco de Precios III | I153: Funcionamiento | J153: Un nuevo contrato social y ambiental para la Bogotá del Siglo XXI | K153: No aplica | L153: =IF(ISERROR(VLOOKUP(K153,Proposito_programa!$C$2:$E$59,2,FALSE))," ",VLOOKUP(K153,Proposito_programa!$C$2:$E$59,2,FALSE)) ->  | M153: =IF(ISERROR(VLOOKUP(K153,Proposito_programa!$C$2:$E$59,3,FALSE))," ",VLOOKUP(K153,Proposito_programa!$C$2:$E$59,3,FALSE)) ->  | P153: 830068543 | Q153: MUNDOLIMPIEZA LTDA | R153: Persona Jurídica | Z153: 8606292 | AA153: =+W153+X153+Z153 -> 8606292 | AB153: 8606292 | AC153: 2022-05-11 | AD153: 2021-03-04 | AM153: Terminado | AN153: 1
A154: 140 | B154: 2022 | C154: FLCH-CPS-140-2022 | D154: https://community.secop.gov.co/Public/Tendering/OpportunityDetail/Index?noticeUID=CO1.NTC.2735830&isFromPublicArea=True&isModal=true&asPopupView=true | E154: Contratos de prestación de servicios profesionales y de apoyo a la gestión | F154: Contratación directa | G154: Prestación de servicios profesionales y de apoyo a la gestión, o para la ejecución de trabajos artísticos que sólo puedan encomendarse a determinadas personas naturales | H154: Prestar servicios profesionales para apoyar la formulación, ejecución, seguimiento y mejora continua de las herramientas que conforman la gestión ambienal institucional de la Alcaldía Local de Chapinero. | I154: Inversión | J154: Un nuevo contrato social y ambiental para la Bogotá del Siglo XXI | K154: 57 | L154: =IF(ISERROR(VLOOKUP(K154,[2]Proposito_programa!$C$2:$E$59,2,FALSE))," ",VLOOKUP(K154,[2]Proposito_programa!$C$2:$E$59,2,FALSE)) -> Gestión pública local | M154: =IF(ISERROR(VLOOKUP(K154,[2]Proposito_programa!$C$2:$E$59,3,FALSE))," ",VLOOKUP(K154,[2]Proposito_programa!$C$2:$E$59,3,FALSE)) -> Propósito 5: Construir Bogotá - Región con gobierno abierto, transparente y ciudadanía consciente | N154: 1741 | P154: 79748591 | Q154: HARVY ZURITH BARRIOS LOPEZ | R154: Persona Natural | W154: 27600000 | X154: 0 | AA154: 27600000 | AB154: 27600000 | AC154: 2022-01-27 | AD154: 2022-02-01 | AE154: 2022-07-31 | AF154: 180 | AM154: Terminado | AN154: 1
A155: 141 | B155: 2022 | C155: FDLCH-CPS-141-2022 | D155: https://community.secop.gov.co/Public/Tendering/OpportunityDetail/Index?noticeUID=CO1.NTC.2760172&isFromPublicArea=True&isModal=true&asPopupView=true | E155: Contratos de prestación de servicios profesionales y de apoyo a la gestión | F155: Contratación directa | G155: Prestación de servicios profesionales y de apoyo a la gestión, o para la ejecución de trabajos artísticos que sólo puedan encomendarse a determinadas personas naturales | H155: Prestar servicios profesionales para el apoyo en la gestión, ejecución y seguimiento de los contratos derivados del proyecto "Chapinero productivo y emprendedor", y aquellos relacionados con la estrategia de mitigación y reacitivación económica- EMRE LOCAL | I155: Inversión | J155: Un nuevo contrato social y ambiental para la Bogotá del Siglo XXI | K155: 6 | L155: =IF(ISERROR(VLOOKUP(K155,[2]Proposito_programa!$C$2:$E$59,2,FALSE))," ",VLOOKUP(K155,[2]Proposito_programa!$C$2:$E$59,2,FALSE)) -> Sistema Distrital de Cuidado | M155: =IF(ISERROR(VLOOKUP(K155,[2]Proposito_programa!$C$2:$E$59,3,FALSE))," ",VLOOKUP(K155,[2]Proposito_programa!$C$2:$E$59,3,FALSE)) -> Propósito 1: Hacer un nuevo contrato social para incrementar la inclusión social, productiva y política | N155: 1671 | P155: 79365852 | Q155: JOHN ROGER SANCHEZ RAMOS | R155: Persona Natural | W155: 23500000 | X155: -13473334 | AA155: 10026666 | AB155: 10026666 | AC155: 2022-01-27 | AD155: 2022-02-02 | AE155: 2022-07-01 | AF155: 150 | AM155: Terminado | AN155: 1
A156: 142 | B156: 2022 | C156: FDLCH-CPS-142-2022 | D156: https://community.secop.gov.co/Public/Tendering/OpportunityDetail/Index?noticeUID=CO1.NTC.2735250&isFromPublicArea=True&isModal=true&asPopupView=true | E156: Contratos de prestación de servicios profesionales y de apoyo a la gestión | F156: Contratación directa | G156: Prestación de servicios profesionales y de apoyo a la gestión, o para la ejecución de trabajos artísticos que sólo puedan encomendarse a determinadas personas naturales | H156: Apoyar jurídicamente la ejecución de las acciones requeridas para la depuración de las actuaciones administrativas que cursan en la Alcaldía Local. | I156: Inversión | J156: Un nuevo contrato social y ambiental para la Bogotá del Siglo XXI | K156: 57 | L156: =IF(ISERROR(VLOOKUP(K156,[2]Proposito_programa!$C$2:$E$59,2,FALSE))," ",VLOOKUP(K156,[2]Proposito_programa!$C$2:$E$59,2,FALSE)) -> Gestión pública local | M156: =IF(ISERROR(VLOOKUP(K156,[2]Proposito_programa!$C$2:$E$59,3,FALSE))," ",VLOOKUP(K156,[2]Proposito_programa!$C$2:$E$59,3,FALSE)) -> Propósito 5: Construir Bogotá - Región con gobierno abierto, transparente y ciudadanía consciente | N156: 1841 | P156: 79937933 | Q156: HERNANDO ELIAS GARCÍA VARGAS | R156: Persona Natural | W156: 18400000 | X156: 0 | Y156: 1 | Z156: 9200000 | AA156: 27600000 | AB156: 27600000 | AC156: 2022-01-27 | AD156: 2022-02-02 | AE156: 2022-08-01 | AF156: 120 | AG156: 1 | AH156: 60 | AM156: Terminado | AN156: 1
A157: 143 | B157: 2022 | C157: FDLCH-CPS-143-2022 | D157: https://community.secop.gov.co/Public/Tendering/OpportunityDetail/Index?noticeUID=CO1.NTC.2779034&isFromPublicArea=True&isModal=true&asPopupView=true | E157: Contratos de prestación de servicios profesionales y de apoyo a la gestión | F157: Contratación directa | G157: Prestación de servicios profesionales y de apoyo a la gestión, o para la ejecución de trabajos artísticos que sólo puedan encomendarse a determinadas personas naturales | H157: Prestar servicios de apoyo a la gestión para asistir administrativamente al área de gestión del Desarrollo de la Localidad de Chapinero. | I157: Inversión | J157: Un nuevo contrato social y ambiental para la Bogotá del Siglo XXI | K157: 57 | L157: =IF(ISERROR(VLOOKUP(K157,[2]Proposito_programa!$C$2:$E$59,2,FALSE))," ",VLOOKUP(K157,[2]Proposito_programa!$C$2:$E$59,2,FALSE)) -> Gestión pública local | M157: =IF(ISERROR(VLOOKUP(K157,[2]Proposito_programa!$C$2:$E$59,3,FALSE))," ",VLOOKUP(K157,[2]Proposito_programa!$C$2:$E$59,3,FALSE)) -> Propósito 5: Construir Bogotá - Región con gobierno abierto, transparente y ciudadanía consciente | N157: 1741 | P157: 1024577383 | Q157: CRISTIAM DAVID ESTUPIÑAN RODRIGUEZ | R157: Persona Natural | W157: 8800000 | X157: 0 | Y157: 1 | Z157: 4400000 | AA157: 13200000 | AB157: 13200000 | AC157: 2022-01-28 | AD157: 2022-02-02 | AE157: 2022-08-01 | AF157: 120 | AG157: 1 | AH157: 60 | AM157: Terminado | AN157: 1
A158: 144 | B158: 2022 | C158: FDLCH-CPS-144-2022 | D158: https://community.secop.gov.co/Public/Tendering/OpportunityDetail/Index?noticeUID=CO1.NTC.2777999&isFromPublicArea=True&isModal=true&asPopupView=true | E158: Contratos de prestación de servicios profesionales y de apoyo a la gestión | F158: Contratación directa | G158: Prestación de servicios profesionales y de apoyo a la gestión, o para la ejecución de trabajos artísticos que sólo puedan encomendarse a determinadas personas naturales | H158: Prestar servicios de apoyo a la gestión para desarrollar las actividades de radicación, gestión de correspondencia y de la documentación que expide, se allega y controla de la Alcaldía Local de Chapinero. | I158: Inversión | J158: Un nuevo contrato social y ambiental para la Bogotá del Siglo XXI | K158: 57 | L158: =IF(ISERROR(VLOOKUP(K158,[2]Proposito_programa!$C$2:$E$59,2,FALSE))," ",VLOOKUP(K158,[2]Proposito_programa!$C$2:$E$59,2,FALSE)) -> Gestión pública local | M158: =IF(ISERROR(VLOOKUP(K158,[2]Proposito_programa!$C$2:$E$59,3,FALSE))," ",VLOOKUP(K158,[2]Proposito_programa!$C$2:$E$59,3,FALSE)) -> Propósito 5: Construir Bogotá - Región con gobierno abierto, transparente y ciudadanía consciente | N158: 1741 | P158: 79638358 | Q158: HERNANDO FERNEY QUIROGA ARIZA | R158: Persona Natural | W158: =8000000+7133333 -> 15133333 | X158: -7133333 | Y158: 1 | Z158: 4000000 | AA158: 12000000 | AB158: 12000000 | AC158: 2022-01-28 | AD158: 2022-02-02 | AE158: 2022-08-01 | AF158: 120 | AG158: 1 | AH158: 60 | AI158: 52603721 | AJ158: SANDRA MILENA RODRIGUEZ SASTOQUE | AK158: 2022-02-14 | AL158: 7133333 | AM158: Terminado | AN158: 1
A159: 145 | B159: 2022 | C159: FDLCH-CPS-145-2022 | D159: https://community.secop.gov.co/Public/Tendering/OpportunityDetail/Index?noticeUID=CO1.NTC.2784026&isFromPublicArea=True&isModal=true&asPopupView=true | E159: Contratos de prestación de servicios profesionales y de apoyo a la gestión | F159: Contratación directa | G159: Prestación de servicios profesionales y de apoyo a la gestión, o para la ejecución de trabajos artísticos que sólo puedan encomendarse a determinadas personas naturales | H159: Prestar servicios profesionales para apoyar técnicamente las distintas etapas de los procesos de competencia de las inspecciones de policía de la localidad de chapinero según reparto. | I159: Inversión | J159: Un nuevo contrato social y ambiental para la Bogotá del Siglo XXI | K159: 57 | L159: =IF(ISERROR(VLOOKUP(K159,[2]Proposito_programa!$C$2:$E$59,2,FALSE))," ",VLOOKUP(K159,[2]Proposito_programa!$C$2:$E$59,2,FALSE)) -> Gestión pública local | M159: =IF(ISERROR(VLOOKUP(K159,[2]Proposito_programa!$C$2:$E$59,3,FALSE))," ",VLOOKUP(K159,[2]Proposito_programa!$C$2:$E$59,3,FALSE)) -> Propósito 5: Construir Bogotá - Región con gobierno abierto, transparente y ciudadanía consciente | N159: 1841 | P159: 82393070 | Q159: EDSON ANDRES RINCON RAMIREZ | R159: Persona Natural | W159: 25900000 | X159: 0 | AA159: 25900000 | AB159: 25900000 | AC159: 2022-01-28 | AD159: 2022-02-02 | AE159: 2022-07-01 | AF159: 150 | AM159: Terminado | AN159: 1
A160: 146 | B160: 2022 | C160: FDLCH-CPS-146-2022 | D160: https://community.secop.gov.co/Public/Tendering/OpportunityDetail/Index?noticeUID=CO1.NTC.2785318&isFromPublicArea=True&isModal=true&asPopupView=true | E160: Contratos de prestación de servicios profesionales y de apoyo a la gestión | F160: Contratación directa | G160: Prestación de servicios profesionales y de apoyo a la gestión, o para la ejecución de trabajos artísticos que sólo puedan encomendarse a determinadas personas naturales | H160: Prestar servicios asistenciales de apoyo para la gestión y desarrollo del proyecto de inversión No. 1827 "Chapinero rural y productivo". | I160: Inversión | J160: Un nuevo contrato social y ambiental para la Bogotá del Siglo XXI | K160: 23 | L160: =IF(ISERROR(VLOOKUP(K160,[2]Proposito_programa!$C$2:$E$59,2,FALSE))," ",VLOOKUP(K160,[2]Proposito_programa!$C$2:$E$59,2,FALSE)) -> Bogotá rural | M160: =IF(ISERROR(VLOOKUP(K160,[2]Proposito_programa!$C$2:$E$59,3,FALSE))," ",VLOOKUP(K160,[2]Proposito_programa!$C$2:$E$59,3,FALSE)) -> Propósito 1: Hacer un nuevo contrato social para incrementar la inclusión social, productiva y política | N160: 1827 | P160: 52909131 | Q160: REINA DAYANIRA ALVIS MELGAREJO | R160: Persona Natural | W160: 7520000 | X160: 0 | Y160: 1 | Z160: 3760000 | AA160: 11280000 | AB160: 11280000 | AC160: 2022-01-28 | AD160: 2022-02-02 | AE160: 2022-08-01 | AF160: 120 | AG160: 1 | AH160: 60 | AM160: Terminado | AN160: 1
A161: 147 | B161: 2022 | C161: FDLCH-CPS-147-2022 | D161: https://community.secop.gov.co/Public/Tendering/OpportunityDetail/Index?noticeUID=CO1.NTC.2782918&isFromPublicArea=True&isModal=true&asPopupView=true | E161: Contratos de prestación de servicios profesionales y de apoyo a la gestión | F161: Contratación directa | G161: Prestación de servicios profesionales y de apoyo a la gestión, o para la ejecución de trabajos artísticos que sólo puedan encomendarse a determinadas personas naturales | H161: Prestar los servicios profesionales de apoyo jurídico en la ejecución de las acciones requeridas para el trámite e impulso procesal de las actuaciones, contravenciones y/o querellas que cursen en las inspecciones de policia de la Localidad. | I161: Inversión | J161: Un nuevo contrato social y ambiental para la Bogotá del Siglo XXI | K161: 57 | L161: =IF(ISERROR(VLOOKUP(K161,[2]Proposito_programa!$C$2:$E$59,2,FALSE))," ",VLOOKUP(K161,[2]Proposito_programa!$C$2:$E$59,2,FALSE)) -> Gestión pública local | M161: =IF(ISERROR(VLOOKUP(K161,[2]Proposito_programa!$C$2:$E$59,3,FALSE))," ",VLOOKUP(K161,[2]Proposito_programa!$C$2:$E$59,3,FALSE)) -> Propósito 5: Construir Bogotá - Región con gobierno abierto, transparente y ciudadanía consciente | N161: 1841 | P161: 1020727657 | Q161: ANGELICA ALONSO DUEÑAS | R161: Persona Natural | W161: 18400000 | X161: 0 | AA161: 18400000 | AB161: 18400000 | AC161: 2022-01-28 | AD161: 2022-02-02 | AE161: 2022-06-01 | AF161: 120 | AM161: Terminado | AN161: 1
A162: 74 | B162: 2021 | C162: FDLCH-CCBM-074-2021 | D162: https://community.secop.gov.co/Public/Tendering/OpportunityDetail/Index?noticeUID=CO1.NTC.1834562&isFromPublicArea=True&isModal=False | E162: Contratos de prestación de servicios | F162: Selección abreviada | G162: Selección abreviada por menor cuantía | H162: La adquisición a traves de la BMC - BOLSA MERCANTIL DE COLOMBIA S.A del servicio de vigilancia y seguridas privada integral permanente en la modalidad fija para protección y cuidado de los funcionarios, usuarios y todos los bienes muebles e inmuebles de propiedad o en custodia del Fondo de Desarrollo Local de Chapinero y todos aquellos d elos que llegare a adquirir. | I162: Funcionamiento | J162: Un nuevo contrato social y ambiental para la Bogotá del Siglo XXI | K162: No aplica | L162: =IF(ISERROR(VLOOKUP(K162,Proposito_programa!$C$2:$E$59,2,FALSE))," ",VLOOKUP(K162,Proposito_programa!$C$2:$E$59,2,FALSE)) ->  | M162: =IF(ISERROR(VLOOKUP(K162,Proposito_programa!$C$2:$E$59,3,FALSE))," ",VLOOKUP(K162,Proposito_programa!$C$2:$E$59,3,FALSE)) ->  | P162: 805000867 | Q162: CORREAGRO SA | R162: Persona Jurídica | Z162: 29791766 | AA162: 29791766 | AB162: 29791766 | AC162: 2022-06-07 | AD162: 2020-10-19 | AM162: Terminado | AN162: 1
A163: 149 | B163: 2022 | C163: FDLCH-CPS-149-2022 | D163: https://community.secop.gov.co/Public/Tendering/OpportunityDetail/Index?noticeUID=CO1.NTC.2892481&isFromPublicArea=True&isModal=true&asPopupView=true | E163: Contratos de prestación de servicios | F163: Contratación mínima cuantia | G163: No aplica | H163: Prestar los servicios y elementos logísticos para apoyar actividades físicas y deportivas que desarrolle el Fondo de Desarrollo Local de Chapinero | I163: Inversión | J163: Un nuevo contrato social y ambiental para la Bogotá del Siglo XXI | K163: 20 | L163: =IF(ISERROR(VLOOKUP(K163,[2]Proposito_programa!$C$2:$E$59,2,FALSE))," ",VLOOKUP(K163,[2]Proposito_programa!$C$2:$E$59,2,FALSE)) -> Bogotá, referente en cultura, deporte, recreación y actividad física, con parques para el desarrollo y la salud | M163: =IF(ISERROR(VLOOKUP(K163,[2]Proposito_programa!$C$2:$E$59,3,FALSE))," ",VLOOKUP(K163,[2]Proposito_programa!$C$2:$E$59,3,FALSE)) -> Propósito 1: Hacer un nuevo contrato social para incrementar la inclusión social, productiva y política | N163: 1845 | O163: 3 | P163: 830133329 | Q163: FUNDACION PARA EL DESARROLLO SOCIOCULTURAL DEPORTIVO Y COMUNITARIO FUNDESCO | R163: Persona Jurídica | W163: 27000000 | X163: 0 | AA163: 27000000 | AB163: 19460000 | AC163: 2022-04-21 | AD163: 2022-04-22 | AE163: 2022-10-21 | AF163: 180 | AM163: Terminado | AN163: 1
A164: 88 | B164: 2021 | C164: FDLCH-CSE-088-2021 | D164: https://community.secop.gov.co/Public/Tendering/OpportunityDetail/Index?noticeUID=CO1.NTC.1823951&isFromPublicArea=True&isModal=False | E164: Seguros | F164: Selección abreviada | G164: Selección abreviada por menor cuantía | H164: Contratar los seguros que amparen los intereses patrimoniales actuales y futuros, así como los bienes de propiedad del Fondo de Desarrollo Locla de Chapinero, que esten bajo su responsabilidad y custodia y aquellos que sean adquiridos para desarrollar las funciones inherentes a su actuvidad asi coo cualquier otra póliza de seguros que requiera la entidad en el desarrollo de su actividad. | I164: Funcionamiento | J164: Un nuevo contrato social y ambiental para la Bogotá del Siglo XXI | K164: No aplica | L164: =IF(ISERROR(VLOOKUP(K164,Proposito_programa!$C$2:$E$59,2,FALSE))," ",VLOOKUP(K164,Proposito_programa!$C$2:$E$59,2,FALSE)) ->  | M164: =IF(ISERROR(VLOOKUP(K164,Proposito_programa!$C$2:$E$59,3,FALSE))," ",VLOOKUP(K164,Proposito_programa!$C$2:$E$59,3,FALSE)) ->  | O164: 1 | P164: 891700037 | Q164: MAPFRE SEGUROS GENERALES DE COLOMBIA SA | R164: Persona Jurídica | Z164: 3279437 | AA164: 3279437 | AB164: 0 | AC164: 2022-04-29 | AD164: 2021-03-30 | AM164: Terminado | AN164: 1
A165: 139 | B165: 2022 | C165: FDLCH-CAR-139-2022 | D165: https://community.secop.gov.co/Public/Tendering/OpportunityDetail/Index?noticeUID=CO1.NTC.2775074&isFromPublicArea=True&isModal=true&asPopupView=true | E165: Arrendamiento de inmuebles | F165: Contratación directa | G165: Prestación de servicios profesionales y de apoyo a la gestión, o para la ejecución de trabajos artísticos que sólo puedan encomendarse a determinadas personas naturales | H165: Contratar en arriendo una bodega con el propósito de guardar los elementos decomisados durante losoperativos de control de espacio público adelantados por la Alcaldía Local de Chapinero. | I165: Funcionamiento | J165: Un nuevo contrato social y ambiental para la Bogotá del Siglo XXI | K165: No aplica | L165: =IF(ISERROR(VLOOKUP(K165,[2]Proposito_programa!$C$2:$E$59,2,FALSE))," ",VLOOKUP(K165,[2]Proposito_programa!$C$2:$E$59,2,FALSE)) ->  | M165: =IF(ISERROR(VLOOKUP(K165,[2]Proposito_programa!$C$2:$E$59,3,FALSE))," ",VLOOKUP(K165,[2]Proposito_programa!$C$2:$E$59,3,FALSE)) ->  | P165: 20185010 | Q165: ANA GRACIELA GALAN | R165: Persona Natural | W165: 54450000 | X165: 0 | Y165: 1 | Z165: 9900000 | AA165: 64350000 | AB165: 49500000 | AC165: 2022-01-28 | AD165: 2022-01-28 | AE165: 27/02/2023 | AF165: 330 | AG165: 1 | AH165: 60 | AM165: Terminado | AN165: 1
A166: 148 | B166: 2022 | C166: FDLCH-CPS-148-2022 | D166: https://colombiacompra.gov.co/tienda-virtual-del-estado-colombiano/ordenes-compra/85280 | E166: Seguros | F166: Selección abreviada | G166: Selección abreviada por menor cuantía | H166: Adquirir el seguro obligatorio de accidente de transito (SOAT) para el parque automotor de la Alcaldía Local de Chapinero. | I166: Funcionamiento | J166: Un nuevo contrato social y ambiental para la Bogotá del Siglo XXI | K166: No aplica | L166: =IF(ISERROR(VLOOKUP(K166,[2]Proposito_programa!$C$2:$E$59,2,FALSE))," ",VLOOKUP(K166,[2]Proposito_programa!$C$2:$E$59,2,FALSE)) ->  | M166: =IF(ISERROR(VLOOKUP(K166,[2]Proposito_programa!$C$2:$E$59,3,FALSE))," ",VLOOKUP(K166,[2]Proposito_programa!$C$2:$E$59,3,FALSE)) ->  | P166: 860037013 | Q166: COMPAÑIA MUNDIAL DE SEGUROS SA | R166: Persona Natural | W166: 5124096 | X166: -54576 | AA166: 5069520 | AB166: 5069520 | AC166: 2022-02-15 | AD166: 2022-02-17 | AE166: 2022-03-03 | AF166: 30 | AM166: Liquidado | AN166: 1
A167: 153 | B167: 2022 | C167: FDLCH-CPS-153-2022 | D167: https://community.secop.gov.co/Public/Tendering/OpportunityDetail/Index?noticeUID=CO1.NTC.2951756&isFromPublicArea=True&isModal=true&asPopupView=true | E167: Contratos de prestación de servicios | F167: Selección abreviada | G167: Selección abreviada por menor cuantía | H167: Prestar servicios para realizar la ejecución de las escuelas de formación deportiva de la Localidad de Chapinero. | I167: Inversión | J167: Un nuevo contrato social y ambiental para la Bogotá del Siglo XXI | K167: 20 | L167: =IF(ISERROR(VLOOKUP(K167,[2]Proposito_programa!$C$2:$E$59,2,FALSE))," ",VLOOKUP(K167,[2]Proposito_programa!$C$2:$E$59,2,FALSE)) -> Bogotá, referente en cultura, deporte, recreación y actividad física, con parques para el desarrollo y la salud | M167: =IF(ISERROR(VLOOKUP(K167,[2]Proposito_programa!$C$2:$E$59,3,FALSE))," ",VLOOKUP(K167,[2]Proposito_programa!$C$2:$E$59,3,FALSE)) -> Propósito 1: Hacer un nuevo contrato social para incrementar la inclusión social, productiva y política | N167: 1845 | O167: 4 | P167: 900094963 | Q167: FUNDACION PARA EL DESARROLLO INFANTIL SOCIAL Y CULTURAL IWOKE | R167: Persona Jurídica | W167: 258914320 | X167: 0 | AA167: 258914320 | AB167: 51782864 | AC167: 2022-06-08 | AD167: 2022-06-13 | AE167: 2023-02-12 | AF167: 240 | AM167: En ejecución | AN167: 0.85
A168: 154 | B168: 2022 | C168: FDLCH-CIA-154-2022 | D168: https://www.contratos.gov.co/consultas/detalleProceso.do?numConstancia=22-22-37942&g-recaptcha-response=03ANYolqu6VqecP1MwkAsm4oCC6DyH_o_e8rrAkpp9UHN6n7LnqymaIDtZAxfhA3ZIicq7mzK3C8u9ukPpQ5i7O_1sZmGmySGf1cSjRrtZlht-tZ3_wgs9e7FRMDgbI5KAm0m-VWIBDFfzrdIrtqVRMD9AlxrkBMlvIllmBQB1psFz5idGKCISENlfvvq57Afp5kPzcikS-h2nLp2B9tQA6eZVmeWG23HmDbbJLreVEdQPJw_aC17Rb4XozmhCWPmdRUyuw1PxpZGkYucOUt3jEpd9_5VvJOBLAmLUq-DzKdIQ83jtLA3dwB54-jPraSPNl_KI5OcAq0guRLqTVsn8FSjD-XstFioG0kjPdOVgEBmJUalM56H4W7goAphkWX7hapFGbmz6TV6ON94Pkij9UmEelDjUIPxYlA9yN_Rja6sKUf7knyQT7vyE3_5bo4HtemGrCuQ7sssYtORQFVQhWRGM0LO1n8puOs0ByzCfbOYDIdVGY-b-Rx_CQ6H91XqdC8NR9d4QHv5QhWA9YkO9ODxjC6jllqYj-g | E168: Convenios/Contratos interadministrativos | F168: Contratación directa | G168: Contratos interadministrativos | H168: Aunar esfuerzos técnicos, administrativos y financieros con el fin de desarrollar acciones articuladas entre la SCRD, el IDARTES y los Fondos de Desarrollo Local, orientadas a fomentar procesos de formación, cualificación, fortalecimiento de los agentes culturales territoriales del Distrito Capital, en el marco de la generación y circulación de bienes y servicios culturales, artísticos y patrimoniales, de conformidad con las iniciativas priorizadas y concertadas en la estrategia Distrital "Presupuestos Participativos" y/o de las concertaciones con los grupos de interés de las localidades y a las acciones adelantadas en el “Proceso Misional de Fomento”, de acuerdo con los proyectos a ejecutar asociados a las metas de cada localidad en el programa "Es Cultura Local 2022". | I168: Inversión | J168: Un nuevo contrato social y ambiental para la Bogotá del Siglo XXI | K168: 21 | L168: =IF(ISERROR(VLOOKUP(K168,[2]Proposito_programa!$C$2:$E$59,2,FALSE))," ",VLOOKUP(K168,[2]Proposito_programa!$C$2:$E$59,2,FALSE)) -> Creación y vida cotidiana: Apropiación ciudadana del arte, la cultura y el patrimonio, para la democracia cultural | M168: =IF(ISERROR(VLOOKUP(K168,[2]Proposito_programa!$C$2:$E$59,3,FALSE))," ",VLOOKUP(K168,[2]Proposito_programa!$C$2:$E$59,3,FALSE)) -> Propósito 1: Hacer un nuevo contrato social para incrementar la inclusión social, productiva y política | N168: 1848 | P168: 899999061 | Q168: SECRETARIA DE CULTURA, RECREACION Y DEPORTE-SCRD | R168: Persona Jurídica | W168: 490000000 | X168: 0 | AA168: 490000000 | AB168: 483552000 | AC168: 2022-07-08 | AD168: 2022-07-19 | AE168: 2023-08-31 | AF168: 360 | AM168: En ejecución | AN168: 0.5
A169: 150 | B169: 2022 | C169: FDLCH-CS-150-2022 | D169: https://community.secop.gov.co/Public/Tendering/OpportunityDetail/Index?noticeUID=CO1.NTC.2901139&isFromPublicArea=True&isModal=true&asPopupView=true | E169: Seguros | F169: Selección abreviada | G169: Selección abreviada por menor cuantía | H169: Contratar los seguros que amparen los intereses patrimoniales actuales y futuros así como los bienes de propiedad del Fondo de Desarrollo Local de Chapinero que estén bajo su responsabilidad y custodia y aquellos que sean adquiridos para desarrollar las funciones inherentes a su actividad así como cualquier otra póliza de seguros que requiera la entidad en el desarrollo de su actividad. | I169: Funcionamiento | J169: Un nuevo contrato social y ambiental para la Bogotá del Siglo XXI | K169: No aplica | L169: =IF(ISERROR(VLOOKUP(K169,[2]Proposito_programa!$C$2:$E$59,2,FALSE))," ",VLOOKUP(K169,[2]Proposito_programa!$C$2:$E$59,2,FALSE)) ->  | M169: =IF(ISERROR(VLOOKUP(K169,[2]Proposito_programa!$C$2:$E$59,3,FALSE))," ",VLOOKUP(K169,[2]Proposito_programa!$C$2:$E$59,3,FALSE)) ->  | P169: 860037013 | Q169: COMPAÑIA MUNDIAL DE SEGUROS SA | R169: Persona Jurídica | W169: 6148110 | X169: 0 | AA169: 6148110 | AB169: 6148110 | AC169: 2022-04-29 | AD169: 2022-04-30 | AE169: 2023-06-16 | AF169: 360 | AM169: En ejecución | AN169: 0.55
A170: 151 | B170: 2022 | C170: FDLCH-CCBM-151-2022 | D170: https://community.secop.gov.co/Public/Tendering/OpportunityDetail/Index?noticeUID=CO1.NTC.2959926&isFromPublicArea=True&isModal=False | E170: Contratos de prestación de servicios | F170: Selección abreviada | G170: Selección abreviada por menor cuantía | H170: LA ADQUISICION A TRAVES DE LA BOLSA MERCANTIL DE COLOMBIA S.A. - BMC DEL SERVICIO DE VIGILANCIA Y SEGURIDAD PRIVADA INTEGRAL PERMANENTE EN LAMODALIDAD FIJA PARA PROTECCIÓN Y CUIDADO DE LOS FUNCIONARIOS, USUARIOS YTODOS LOS BIENES MUEBLES E INMUEBLES DE PROPIEDAD O EN CUSTODIA DEL FONDO DE DESARROLLO LOCAL DE CHAPINERO Y DE TODOS AQUELLOS DE LOS QUE LLEGARE A ADQUIRIR. | I170: Funcionamiento | J170: Un nuevo contrato social y ambiental para la Bogotá del Siglo XXI | K170: No aplica | L170: =IF(ISERROR(VLOOKUP(K170,[2]Proposito_programa!$C$2:$E$59,2,FALSE))," ",VLOOKUP(K170,[2]Proposito_programa!$C$2:$E$59,2,FALSE)) ->  | M170: =IF(ISERROR(VLOOKUP(K170,[2]Proposito_programa!$C$2:$E$59,3,FALSE))," ",VLOOKUP(K170,[2]Proposito_programa!$C$2:$E$59,3,FALSE)) ->  | P170: 891502104 | Q170: COMPAÑIA DE VIGILANCIA COVISUR DE COLOMBIA LTDA | R170: Persona Jurídica | W170: 555941174 | X170: 0 | Y170: 1 | Z170: 91517371 | AA170: 647458545 | AB170: 354495947 | AC170: 2022-05-24 | AD170: 2022-06-08 | AE170: 2023-08-06 | AF170: 360 | AG170: 1 | AH170: 39 | AM170: En ejecución | AN170: 0.5
A171: 158 | B171: 2022 | C171: FDLCH-CPS-158-2022 | D171: https://community.secop.gov.co/Public/Tendering/OpportunityDetail/Index?noticeUID=CO1.NTC.3010459&isFromPublicArea=True&isModal=true&asPopupView=true | E171: Contratos de prestación de servicios | F171: Selección abreviada | G171: Selección abreviada por menor cuantía | H171: Prestar servicios para desarrollar los eventos de circulación artística, cultural y patrimonial de la Localidad de Chapinero. | I171: Inversión | J171: Un nuevo contrato social y ambiental para la Bogotá del Siglo XXI | K171: 21 | L171: =IF(ISERROR(VLOOKUP(K171,[2]Proposito_programa!$C$2:$E$59,2,FALSE))," ",VLOOKUP(K171,[2]Proposito_programa!$C$2:$E$59,2,FALSE)) -> Creación y vida cotidiana: Apropiación ciudadana del arte, la cultura y el patrimonio, para la democracia cultural | M171: =IF(ISERROR(VLOOKUP(K171,[2]Proposito_programa!$C$2:$E$59,3,FALSE))," ",VLOOKUP(K171,[2]Proposito_programa!$C$2:$E$59,3,FALSE)) -> Propósito 1: Hacer un nuevo contrato social para incrementar la inclusión social, productiva y política | N171: 1848 | O171: 5 | P171: 830112276 | Q171: FUNDACION ESPACIOS DE VIDA | R171: Persona Jurídica | W171: 260582932 | X171: 0 | AA171: 260582932 | AB171: 208466346 | AC171: 2022-07-28 | AD171: 2022-08-01 | AE171: 2023-02-28 | AF171: 210 | AM171: En ejecución | AN171: 0.85
A172: 159 | B172: 2022 | C172: FDLCH-COP-159-2022 | D172: https://community.secop.gov.co/Public/Tendering/OpportunityDetail/Index?noticeUID=CO1.NTC.2977809&isFromPublicArea=True&isModal=true&asPopupView=true | E172: Contratos de prestación de servicios | F172: Licitación pública | G172: No aplica | H172: Ejecutar a monto agotable, por precios unitarios fijos obras y actividades para la conservación de la infraestructura vial, urbana de la Localidad de Chapinero, en Bogota DC | I172: Inversión | J172: Un nuevo contrato social y ambiental para la Bogotá del Siglo XXI | K172: 49 | L172: =IF(ISERROR(VLOOKUP(K172,[2]Proposito_programa!$C$2:$E$59,2,FALSE))," ",VLOOKUP(K172,[2]Proposito_programa!$C$2:$E$59,2,FALSE)) -> Movilidad segura, sostenible y accesible | M172: =IF(ISERROR(VLOOKUP(K172,[2]Proposito_programa!$C$2:$E$59,3,FALSE))," ",VLOOKUP(K172,[2]Proposito_programa!$C$2:$E$59,3,FALSE)) -> Propósito 4: Hacer de Bogotá Región un modelo de movilidad multimodal, incluyente y sostenible | N172: 1734 | O172: 5 | P172: 901617716 | Q172: UT BRAPO | R172: Persona Jurídica | W172: 3696922405 | X172: 0 | AA172: 3696922405 | AB172: 0 | AC172: 2022-08-05 | AD172: 2022-08-31 | AE172: 2023-03-29 | AF172: 210 | AM172: En ejecución | AN172: 0.8
A173: 160 | B173: 2022 | C173: FDLCH-CPS-160-2022 | D173: https://community.secop.gov.co/Public/Tendering/OpportunityDetail/Index?noticeUID=CO1.NTC.3114911&isFromPublicArea=True&isModal=true&asPopupView=true | E173: Contratos de prestación de servicios profesionales y de apoyo a la gestión | F173: Contratación directa | G173: Prestación de servicios profesionales y de apoyo a la gestión, o para la ejecución de trabajos artísticos que sólo puedan encomendarse a determinadas personas naturales | H173: Prestar los servicios de apoyo a la gestión para la orientación de sesiones de actividad física musicalizada y no musicalizada en la localidad como del acompañamiento, atención y de ejecución de actividades recreo deportivas derivadas del proyecto de inversión "Chapinero Epicentro del Deporte y a Recreación. | I173: Inversión | J173: Un nuevo contrato social y ambiental para la Bogotá del Siglo XXI | K173: 20 | L173: =IF(ISERROR(VLOOKUP(K173,[2]Proposito_programa!$C$2:$E$59,2,FALSE))," ",VLOOKUP(K173,[2]Proposito_programa!$C$2:$E$59,2,FALSE)) -> Bogotá, referente en cultura, deporte, recreación y actividad física, con parques para el desarrollo y la salud | M173: =IF(ISERROR(VLOOKUP(K173,[2]Proposito_programa!$C$2:$E$59,3,FALSE))," ",VLOOKUP(K173,[2]Proposito_programa!$C$2:$E$59,3,FALSE)) -> Propósito 1: Hacer un nuevo contrato social para incrementar la inclusión social, productiva y política | N173: 1845 | P173: 1018432468 | Q173: EDISON FABIAN LEON LEON | R173: Persona Natural | W173: 13700000 | X173: 0 | Y173: 1 | Z173: 6850000 | AA173: 20550000 | AB173: 11690667 | AC173: 2022-08-05 | AD173: 2022-08-08 | AE173: 2023-01-07 | AF173: 150 | AG173: 1 | AH173: 75 | AM173: Terminado | AN173: 1
A174: 161 | B174: 2022 | C174: FDLCH-CPS-161-2022 | D174: https://community.secop.gov.co/Public/Tendering/OpportunityDetail/Index?noticeUID=CO1.NTC.3236992&isFromPublicArea=True&isModal=true&asPopupView=true | E174: Contratos de prestación de servicios profesionales y de apoyo a la gestión | F174: Contratación directa | G174: Prestación de servicios profesionales y de apoyo a la gestión, o para la ejecución de trabajos artísticos que sólo puedan encomendarse a determinadas personas naturales | H174: Prestar servicios técnicos para apoyo a la gestión, formulación, desarrollo y seguimiento del proyecto de inversión No.1731 "CHAPINERO DEJANDO HUELLA POR LOS ANIMALES". | I174: Inversión | J174: Un nuevo contrato social y ambiental para la Bogotá del Siglo XXI | K174: 34 | L174: =IF(ISERROR(VLOOKUP(K174,[2]Proposito_programa!$C$2:$E$59,2,FALSE))," ",VLOOKUP(K174,[2]Proposito_programa!$C$2:$E$59,2,FALSE)) -> Bogotá protectora de los animales | M174: =IF(ISERROR(VLOOKUP(K174,[2]Proposito_programa!$C$2:$E$59,3,FALSE))," ",VLOOKUP(K174,[2]Proposito_programa!$C$2:$E$59,3,FALSE)) -> Propósito 2 : Cambiar Nuestros Hábitos de Vida para Reverdecer a Bogotá y Adaptarnos y Mitigar la Crisis Climática | N174: 1731 | P174: 1022411110 | Q174: VERONICA SIMONA MARTINEZ AREVALO | R174: Persona Natural | W174: 14000000 | X174: 0 | AA174: 14000000 | AB174: 7373333 | AC174: 2022-09-05 | AD174: 2022-09-12 | AE174: 2023-02-11 | AF174: 150 | AM174: En ejecución | AN174: 0.85
A175: 162 | B175: 2022 | C175: FDLCH-CPS-162-2022 | D175: https://community.secop.gov.co/Public/Tendering/OpportunityDetail/Index?noticeUID=CO1.NTC.3116913&isFromPublicArea=True&isModal=true&asPopupView=true | E175: Contratos de prestación de servicios profesionales y de apoyo a la gestión | F175: Contratación directa | G175: Prestación de servicios profesionales y de apoyo a la gestión, o para la ejecución de trabajos artísticos que sólo puedan encomendarse a determinadas personas naturales | H175: Apoyar jurídicamente la ejecución de las acciones requeridas para la depuración de las actuaciones administrativas que cursan en la Alcaldía Local. | I175: Inversión | J175: Un nuevo contrato social y ambiental para la Bogotá del Siglo XXI | K175: 57 | L175: =IF(ISERROR(VLOOKUP(K175,[2]Proposito_programa!$C$2:$E$59,2,FALSE))," ",VLOOKUP(K175,[2]Proposito_programa!$C$2:$E$59,2,FALSE)) -> Gestión pública local | M175: =IF(ISERROR(VLOOKUP(K175,[2]Proposito_programa!$C$2:$E$59,3,FALSE))," ",VLOOKUP(K175,[2]Proposito_programa!$C$2:$E$59,3,FALSE)) -> Propósito 5: Construir Bogotá - Región con gobierno abierto, transparente y ciudadanía consciente | N175: 1841 | P175: 79937933 | Q175: HERNANDO ELIAS GARCIA VARGAS | R175: Persona Natural | W175: 23000000 | X175: 0 | AA175: 23000000 | AB175: 17326667 | AC175: 2022-08-05 | AD175: 2022-08-08 | AE175: 2023-01-07 | AF175: 150 | AM175: Terminado | AN175: 1
A176: 163 | B176: 2022 | C176: FDLCH-CPS-163-2022 | D176: https://community.secop.gov.co/Public/Tendering/OpportunityDetail/Index?noticeUID=CO1.NTC.3115465&isFromPublicArea=True&isModal=true&asPopupView=true | E176: Contratos de prestación de servicios profesionales y de apoyo a la gestión | F176: Contratación directa | G176: Prestación de servicios profesionales y de apoyo a la gestión, o para la ejecución de trabajos artísticos que sólo puedan encomendarse a determinadas personas naturales | H176: Prestación de servicios de apoyo en la gestión de los asuntos relacionados con la comunicación ciudadana para la seguridad ciudadana, la convivencia y la prevención de conflictividades, violencias y delitos en la localidad de Chapinero, en el marco del proyecto "Chapinero promueve y genera confianza ciudadana". | I176: Inversión | J176: Un nuevo contrato social y ambiental para la Bogotá del Siglo XXI | K176: 43 | L176: =IF(ISERROR(VLOOKUP(K176,[2]Proposito_programa!$C$2:$E$59,2,FALSE))," ",VLOOKUP(K176,[2]Proposito_programa!$C$2:$E$59,2,FALSE)) -> Cultura ciudadana para la confianza, la convivencia y la participación desde la vida cotidiana | M176: =IF(ISERROR(VLOOKUP(K176,[2]Proposito_programa!$C$2:$E$59,3,FALSE))," ",VLOOKUP(K176,[2]Proposito_programa!$C$2:$E$59,3,FALSE)) -> Propósito 3: Inspirar confianza y legitimidad para vivir sin miedo y ser epicentro de cultura ciudadana, paz y reconciliación | N176: 1735 | P176: 51646432 | Q176: MARTHA PATRICIA MUÑOZ RUIZ | R176: Persona Natural | W176: 13630000 | X176: 0 | AA176: 13630000 | AB176: 11630933 | AC176: 2022-08-08 | AD176: 2022-08-08 | AE176: 2023-01-07 | AF176: 150 | AM176: Terminado | AN176: 1
A177: 164 | B177: 2022 | C177: FDLCH-CPS-164-2022 | D177: https://community.secop.gov.co/Public/Tendering/OpportunityDetail/Index?noticeUID=CO1.NTC.3124670&isFromPublicArea=True&isModal=true&asPopupView=true | E177: Contratos de prestación de servicios profesionales y de apoyo a la gestión | F177: Contratación directa | G177: Prestación de servicios profesionales y de apoyo a la gestión, o para la ejecución de trabajos artísticos que sólo puedan encomendarse a determinadas personas naturales | H177: Prestar servicios profesionales para el apoyo a la gestión y la articulación de las acciones de inspección, vigilancia y control requeridas por la Alcaldía local de Chapinero en el marco de la normatividad vigente. | I177: Inversión | J177: Un nuevo contrato social y ambiental para la Bogotá del Siglo XXI | K177: 57 | L177: =IF(ISERROR(VLOOKUP(K177,[2]Proposito_programa!$C$2:$E$59,2,FALSE))," ",VLOOKUP(K177,[2]Proposito_programa!$C$2:$E$59,2,FALSE)) -> Gestión pública local | M177: =IF(ISERROR(VLOOKUP(K177,[2]Proposito_programa!$C$2:$E$59,3,FALSE))," ",VLOOKUP(K177,[2]Proposito_programa!$C$2:$E$59,3,FALSE)) -> Propósito 5: Construir Bogotá - Región con gobierno abierto, transparente y ciudadanía consciente | N177: 1841 | P177: 79053156 | Q177: PEDRO JAVIER ORTEGON PINILLA | R177: Persona Natural | W177: 24000000 | X177: 0 | Y177: 1 | Z177: 9000000 | AA177: 33000000 | AB177: 22200000 | AC177: 2022-08-09 | AD177: 2022-08-10 | AE177: 2023-01-24 | AF177: 120 | AG177: 1 | AH177: 45 | AM177: En ejecución | AN177: 0.9
A178: 165 | B178: 2022 | C178: FDLCH-CPS-165-2022 | D178: https://community.secop.gov.co/Public/Tendering/OpportunityDetail/Index?noticeUID=CO1.NTC.3116397&isFromPublicArea=True&isModal=true&asPopupView=true | E178: Contratos de prestación de servicios profesionales y de apoyo a la gestión | F178: Contratación directa | G178: Prestación de servicios profesionales y de apoyo a la gestión, o para la ejecución de trabajos artísticos que sólo puedan encomendarse a determinadas personas naturales | H178: Prestar servicios de apoyo a la gestión para el desarrollo de estrategias que promuevan la prevención, atención de la violencia intrafamiliar y sexual y la eliminación de las violencias basadas en género en el marco del programa sistema distrital de cuidado. | I178: Inversión | J178: Un nuevo contrato social y ambiental para la Bogotá del Siglo XXI | K178: 6 | L178: =IF(ISERROR(VLOOKUP(K178,[2]Proposito_programa!$C$2:$E$59,2,FALSE))," ",VLOOKUP(K178,[2]Proposito_programa!$C$2:$E$59,2,FALSE)) -> Sistema Distrital de Cuidado | M178: =IF(ISERROR(VLOOKUP(K178,[2]Proposito_programa!$C$2:$E$59,3,FALSE))," ",VLOOKUP(K178,[2]Proposito_programa!$C$2:$E$59,3,FALSE)) -> Propósito 1: Hacer un nuevo contrato social para incrementar la inclusión social, productiva y política | N178: 1710 | P178: 52150992 | Q178: NURY ALEXANDRA HERNANDEZ PIRAJAN | R178: Persona Natural | W178: 10800000 | X178: 0 | Y178: 1 | Z178: 810000 | AA178: 11610000 | AB178: 11610000 | AC178: 2022-08-05 | AD178: 2022-08-08 | AE178: 19/12/2022 | AF178: 120 | AG178: 1 | AH178: 9 | AM178: Terminado | AN178: 1
A179: 152 | B179: 2022 | C179: FDLCH-CS-152-2022 | D179: https://community.secop.gov.co/Public/Tendering/OpportunityDetail/Index?noticeUID=CO1.NTC.2939316&isFromPublicArea=True&isModal=true&asPopupView=true | E179: Seguros | F179: Selección abreviada | G179: Selección abreviada por menor cuantía | H179: Contratar los seguros que amparen los intereses patrimoniales actuales y futuros así como los bienes de propiedad del Fondo de Desarrollo Local de Chapinero que esten bajo su responsabilidad y costodia y aquellos que sean adquiridos para desarrollar las funciones inherentes a su actividad. | I179: Funcionamiento | J179: Un nuevo contrato social y ambiental para la Bogotá del Siglo XXI | K179: No aplica | L179: =IF(ISERROR(VLOOKUP(K179,[2]Proposito_programa!$C$2:$E$59,2,FALSE))," ",VLOOKUP(K179,[2]Proposito_programa!$C$2:$E$59,2,FALSE)) ->  | M179: =IF(ISERROR(VLOOKUP(K179,[2]Proposito_programa!$C$2:$E$59,3,FALSE))," ",VLOOKUP(K179,[2]Proposito_programa!$C$2:$E$59,3,FALSE)) ->  | O179: 2 | P179: 860002184 | Q179: AXA COLPATRIA SEGUROS SA | R179: Persona Jurídica | W179: 53937538 | X179: 0 | AA179: 53937538 | AB179: 48937538 | AC179: 2022-05-27 | AD179: 2022-05-30 | AE179: 2023-09-03 | AF179: 450 | AM179: En ejecución | AN179: 0.5
A180: 155 | B180: 2022 | C180: FDLCH-CPS-155-2022 | D180: https://colombiacompra.gov.co/tienda-virtual-del-estado-colombiano/ordenes-compra/92908 | E180: Contratos de prestación de servicios | F180: Selección abreviada | G180: Acuerdo marco de precios | H180: Contratar el servicio Software por catálogo el cual permite la adquisición de bienes y servicios para la Alcaldía Local de Chapinero | I180: Funcionamiento | J180: Un nuevo contrato social y ambiental para la Bogotá del Siglo XXI | K180: No aplica | L180: =IF(ISERROR(VLOOKUP(K180,[2]Proposito_programa!$C$2:$E$59,2,FALSE))," ",VLOOKUP(K180,[2]Proposito_programa!$C$2:$E$59,2,FALSE)) ->  | M180: =IF(ISERROR(VLOOKUP(K180,[2]Proposito_programa!$C$2:$E$59,3,FALSE))," ",VLOOKUP(K180,[2]Proposito_programa!$C$2:$E$59,3,FALSE)) ->  | P180: 901399373 | Q180: LA UNION TEMPORAL DELL EMC | R180: Persona Jurídica | W180: 125006400 | X180: 0 | AA180: 125006400 | AB180: 125006400 | AC180: 2022-07-05 | AD180: 2022-07-05 | AE180: 2022-08-04 | AF180: 30 | AM180: Terminado | AN180: 1
A181: 167 | B181: 2022 | C181: FDLCH-CPS-167-2022 | D181: https://community.secop.gov.co/Public/Tendering/OpportunityDetail/Index?noticeUID=CO1.NTC.3125002&isFromPublicArea=True&isModal=true&asPopupView=true | E181: Contratos de prestación de servicios profesionales y de apoyo a la gestión | F181: Contratación directa | G181: Prestación de servicios profesionales y de apoyo a la gestión, o para la ejecución de trabajos artísticos que sólo puedan encomendarse a determinadas personas naturales | H181: Prestar servicios profesionales para la gestión, formulación, desarrollo, seguimiento y evaluación del Proyecto “Chapinero territorio para vivir sin miedo | I181: Inversión | J181: Un nuevo contrato social y ambiental para la Bogotá del Siglo XXI | K181: 48 | L181: =IF(ISERROR(VLOOKUP(K181,[2]Proposito_programa!$C$2:$E$59,2,FALSE))," ",VLOOKUP(K181,[2]Proposito_programa!$C$2:$E$59,2,FALSE)) -> Plataforma institucional para la seguridad y justicia | M181: =IF(ISERROR(VLOOKUP(K181,[2]Proposito_programa!$C$2:$E$59,3,FALSE))," ",VLOOKUP(K181,[2]Proposito_programa!$C$2:$E$59,3,FALSE)) -> Propósito 3: Inspirar confianza y legitimidad para vivir sin miedo y ser epicentro de cultura ciudadana, paz y reconciliación | N181: 1740 | P181: 52904967 | Q181: ANGELA CRISTINA CARVAJAL TOVAR | R181: Persona Natural | W181: 22800000 | X181: 0 | Y181: 1 | Z181: 5700000 | AA181: 28500000 | AB181: 24130000 | AC181: 2022-08-09 | AD181: 2022-08-09 | AE181: 2023-01-08 | AF181: 120 | AG181: 1 | AH181: 30 | AM181: Terminado | AN181: 1
A182: 169 | B182: 2022 | C182: FDLCH-CPS-169-2022 | D182: https://community.secop.gov.co/Public/Tendering/OpportunityDetail/Index?noticeUID=CO1.NTC.3127835&isFromPublicArea=True&isModal=true&asPopupView=true | E182: Contratos de prestación de servicios profesionales y de apoyo a la gestión | F182: Contratación directa | G182: Prestación de servicios profesionales y de apoyo a la gestión, o para la ejecución de trabajos artísticos que sólo puedan encomendarse a determinadas personas naturales | H182: Prestar los servicios de apoyo a la gestión en la implementación, atención, verificación, soporte y acompañamiento de los procesos y/o actuaciones administrativas de registro y seguimiento a la propiedad horizontal en los aplicativos y/o herramientas virutales en la Localidad de Chapinero. | I182: Inversión | J182: Un nuevo contrato social y ambiental para la Bogotá del Siglo XXI | K182: 57 | L182: =IF(ISERROR(VLOOKUP(K182,[2]Proposito_programa!$C$2:$E$59,2,FALSE))," ",VLOOKUP(K182,[2]Proposito_programa!$C$2:$E$59,2,FALSE)) -> Gestión pública local | M182: =IF(ISERROR(VLOOKUP(K182,[2]Proposito_programa!$C$2:$E$59,3,FALSE))," ",VLOOKUP(K182,[2]Proposito_programa!$C$2:$E$59,3,FALSE)) -> Propósito 5: Construir Bogotá - Región con gobierno abierto, transparente y ciudadanía consciente | N182: 1741 | P182: 1013639105 | Q182: ANDRES MAURICIO CONDE TOLEDO | R182: Persona Natural | W182: 8800000 | X182: 0 | Y182: 1 | Z182: 4400000 | AA182: 13200000 | AB182: 9240000 | AC182: 2022-08-09 | AD182: 2022-08-10 | AE182: 2023-02-09 | AF182: 120 | AG182: 1 | AH182: 60 | AM182: En ejecución | AN182: 0.85
A183: 170 | B183: 2022 | C183: FDLCH-CPS-170-2022 | D183: https://community.secop.gov.co/Public/Tendering/OpportunityDetail/Index?noticeUID=CO1.NTC.3146230&isFromPublicArea=True&isModal=true&asPopupView=true | E183: Contratos de prestación de servicios profesionales y de apoyo a la gestión | F183: Contratación directa | G183: Prestación de servicios profesionales y de apoyo a la gestión, o para la ejecución de trabajos artísticos que sólo puedan encomendarse a determinadas personas naturales | H183: Prestar los servicios profesionales para la operación prestación seguimiento y cumplimiento de los procedimientos administrativos operativos y programáticos del servicio apoyo económico tipo c que contribuyan a la garantía de los derechos de la población mayor en el marco de la política pública | I183: Inversión | J183: Un nuevo contrato social y ambiental para la Bogotá del Siglo XXI | K183: 1 | L183: =IF(ISERROR(VLOOKUP(K183,[2]Proposito_programa!$C$2:$E$59,2,FALSE))," ",VLOOKUP(K183,[2]Proposito_programa!$C$2:$E$59,2,FALSE)) -> Subsidios y transferencias para la equidad | M183: =IF(ISERROR(VLOOKUP(K183,[2]Proposito_programa!$C$2:$E$59,3,FALSE))," ",VLOOKUP(K183,[2]Proposito_programa!$C$2:$E$59,3,FALSE)) -> Propósito 1: Hacer un nuevo contrato social para incrementar la inclusión social, productiva y política | N183: 1815 | P183: 34984062 | Q183: ENITH DEL ROSARIO RUIZ PORRAS | R183: Persona Natural | W183: 18400000 | X183: 0 | Y183: 1 | Z183: 6900000 | AA183: 25300000 | AB183: 18400000 | AC183: 2022-08-16 | AD183: 2022-08-16 | AE183: 2023-01-30 | AF183: 120 | AG183: 1 | AH183: 45 | AM183: En ejecución | AN183: 0.9
A184: 171 | B184: 2022 | C184: FDLCH-CPS-171-2022 | D184: https://community.secop.gov.co/Public/Tendering/OpportunityDetail/Index?noticeUID=CO1.NTC.3146347&isFromPublicArea=True&isModal=true&asPopupView=true | E184: Contratos de prestación de servicios profesionales y de apoyo a la gestión | F184: Contratación directa | G184: Prestación de servicios profesionales y de apoyo a la gestión, o para la ejecución de trabajos artísticos que sólo puedan encomendarse a determinadas personas naturales | H184: Prestar servicios profesionales para apoyar técnicamente las actuaciones administrativas, impulso procesal y de inspección, vigilancia y control de competencia de la alcaldía local de chapinero | I184: Inversión | J184: Un nuevo contrato social y ambiental para la Bogotá del Siglo XXI | K184: 57 | L184: =IF(ISERROR(VLOOKUP(K184,[2]Proposito_programa!$C$2:$E$59,2,FALSE))," ",VLOOKUP(K184,[2]Proposito_programa!$C$2:$E$59,2,FALSE)) -> Gestión pública local | M184: =IF(ISERROR(VLOOKUP(K184,[2]Proposito_programa!$C$2:$E$59,3,FALSE))," ",VLOOKUP(K184,[2]Proposito_programa!$C$2:$E$59,3,FALSE)) -> Propósito 5: Construir Bogotá - Región con gobierno abierto, transparente y ciudadanía consciente | N184: 1841 | P184: 1074136017 | Q184: JUAN DAVID URREGO MESA | R184: Persona Natural | W184: 18060000 | X184: 0 | Y184: 1 | Z184: 9030000 | AA184: 27090000 | AB184: 17909500 | AC184: 2022-08-16 | AD184: 2022-08-17 | AE184: 2023-02-16 | AF184: 120 | AG184: 1 | AH184: 60 | AM184: En ejecución | AN184: 0.85
A185: 172 | B185: 2022 | C185: FDLCH-CIA-172-2022 | D185: https://community.secop.gov.co/Public/Tendering/OpportunityDetail/Index?noticeUID=CO1.NTC.3172436&isFromPublicArea=True&isModal=true&asPopupView=true | E185: Convenios/Contratos interadministrativos | F185: Contratación directa | G185: Contratos interadministrativos | H185: Aunar esfuerzos técnicos, administrativos, financieros y logísticos para realizar a través de procesos asistencia técnica, la formulación de planes de inversión y capitalización de unidades productivas o emprendimientos según la focalización territorial definida de la Localidad de Chapinero, con el fin de promover la sostenibilidad de la población con mayores brechas sociales y económicas en el marco de la post pandemia. | I185: Inversión | J185: Un nuevo contrato social y ambiental para la Bogotá del Siglo XXI | K185: 6 | L185: =IF(ISERROR(VLOOKUP(K185,[2]Proposito_programa!$C$2:$E$59,2,FALSE))," ",VLOOKUP(K185,[2]Proposito_programa!$C$2:$E$59,2,FALSE)) -> Sistema Distrital de Cuidado | M185: =IF(ISERROR(VLOOKUP(K185,[2]Proposito_programa!$C$2:$E$59,3,FALSE))," ",VLOOKUP(K185,[2]Proposito_programa!$C$2:$E$59,3,FALSE)) -> Propósito 1: Hacer un nuevo contrato social para incrementar la inclusión social, productiva y política | N185: 1671 | P185: 800250713 | Q185: CORPORACION PARA EL DESARROLLO DE LAS MICROEMPRESAS | R185: Persona Jurídica | W185: 683403543 | X185: 0 | AA185: 683403543 | AB185: 486451772 | AC185: 2022-08-19 | AD185: 2022-08-29 | AE185: 2023-06-28 | AF185: 300 | AM185: En ejecución | AN185: 0.5
A186: 173 | B186: 2022 | C186: FDLCH-CPS-173-2022 | D186: https://community.secop.gov.co/Public/Tendering/OpportunityDetail/Index?noticeUID=CO1.NTC.3146311&isFromPublicArea=True&isModal=true&asPopupView=true | E186: Contratos de prestación de servicios profesionales y de apoyo a la gestión | F186: Contratación directa | G186: Prestación de servicios profesionales y de apoyo a la gestión, o para la ejecución de trabajos artísticos que sólo puedan encomendarse a determinadas personas naturales | H186: Prestar servicios de apoyo a la gestión para la atención integral de las víctimas del conflicto armado en el marco del proyecto "Chapinero Territorio de Paz y la Atención de las Instancias de Participación Locales", relacionadas con la construcción de paz local. | I186: Inversión | J186: Un nuevo contrato social y ambiental para la Bogotá del Siglo XXI | K186: 39 | L186: =IF(ISERROR(VLOOKUP(K186,[2]Proposito_programa!$C$2:$E$59,2,FALSE))," ",VLOOKUP(K186,[2]Proposito_programa!$C$2:$E$59,2,FALSE)) -> Bogotá territorio de paz y atención integral a las víctimas del conflicto armado | M186: =IF(ISERROR(VLOOKUP(K186,[2]Proposito_programa!$C$2:$E$59,3,FALSE))," ",VLOOKUP(K186,[2]Proposito_programa!$C$2:$E$59,3,FALSE)) -> Propósito 3: Inspirar confianza y legitimidad para vivir sin miedo y ser epicentro de cultura ciudadana, paz y reconciliación | N186: 2028 | P186: 1018472123 | Q186: CAMILO ANDRES MENDEZ SALAMANCA | R186: Persona Natural | W186: 10960000 | X186: 0 | AA186: 10960000 | AB186: 9498667 | AC186: 2022-08-16 | AD186: 2022-08-17 | AE186: 2022-12-16 | AF186: 120 | AM186: Terminado | AN186: 1
A187: 175 | B187: 2022 | C187: FDLCH-CPS-175-2022 | D187: https://community.secop.gov.co/Public/Tendering/OpportunityDetail/Index?noticeUID=CO1.NTC.3165327&isFromPublicArea=True&isModal=true&asPopupView=true | E187: Contratos de prestación de servicios profesionales y de apoyo a la gestión | F187: Contratación directa | G187: Prestación de servicios profesionales y de apoyo a la gestión, o para la ejecución de trabajos artísticos que sólo puedan encomendarse a determinadas personas naturales | H187: Prestación de servicios profesionales para apoyar al área de gestión del desarrollo local de la alcaldía local de chapinero en la gestión formulación desarrollo seguimiento y evaluación de los temas relacionados con educación superior en la localidad de chapinero enmarcados en el proyecto de "Inversión Chapinero Construye Futuro y realizar el apoyo a la supervisión de los contratos y/o convenios que de él se deriva. | I187: Inversión | J187: Un nuevo contrato social y ambiental para la Bogotá del Siglo XXI | K187: 17 | L187: =IF(ISERROR(VLOOKUP(K187,[2]Proposito_programa!$C$2:$E$59,2,FALSE))," ",VLOOKUP(K187,[2]Proposito_programa!$C$2:$E$59,2,FALSE)) -> Jóvenes con capacidades: Proyecto de vida para la ciudadanía, la innovación y el trabajo del siglo XXI | M187: =IF(ISERROR(VLOOKUP(K187,[2]Proposito_programa!$C$2:$E$59,3,FALSE))," ",VLOOKUP(K187,[2]Proposito_programa!$C$2:$E$59,3,FALSE)) -> Propósito 1: Hacer un nuevo contrato social para incrementar la inclusión social, productiva y política | N187: 1743 | P187: 51950770 | Q187: ARACELY MEJIA HERRERA | R187: Persona Natural | W187: 19200000 | X187: 0 | Y187: 1 | Z187: 4800000 | AA187: 24000000 | AB187: 18720000 | AC187: 2022-08-18 | AD187: 2022-08-19 | AE187: 2023-01-18 | AF187: 120 | AG187: 1 | AH187: 30 | AM187: En ejecución | AN187: 0.95
A188: 176 | B188: 2022 | C188: FDLCH-CPS-176-2022 | D188: https://community.secop.gov.co/Public/Tendering/OpportunityDetail/Index?noticeUID=CO1.NTC.3165930&isFromPublicArea=True&isModal=true&asPopupView=true | E188: Contratos de prestación de servicios profesionales y de apoyo a la gestión | F188: Contratación directa | G188: Prestación de servicios profesionales y de apoyo a la gestión, o para la ejecución de trabajos artísticos que sólo puedan encomendarse a determinadas personas naturales | H188: Prestar servicios técnicos para apoyar la gestión jurídica en la ejecución de las actividades administrativas y documentales con contenido jurídico relacionadas con los procesos de inspección, vigilancia y control que adelanta la Alcaldía Local de Chapinero. | I188: Inversión | J188: Un nuevo contrato social y ambiental para la Bogotá del Siglo XXI | K188: 57 | L188: =IF(ISERROR(VLOOKUP(K188,[2]Proposito_programa!$C$2:$E$59,2,FALSE))," ",VLOOKUP(K188,[2]Proposito_programa!$C$2:$E$59,2,FALSE)) -> Gestión pública local | M188: =IF(ISERROR(VLOOKUP(K188,[2]Proposito_programa!$C$2:$E$59,3,FALSE))," ",VLOOKUP(K188,[2]Proposito_programa!$C$2:$E$59,3,FALSE)) -> Propósito 5: Construir Bogotá - Región con gobierno abierto, transparente y ciudadanía consciente | N188: 1841 | P188: 52524843 | Q188: YADY MATILDE MORENO VARGAS | R188: Persona Natural | W188: 14000000 | X188: 0 | Y188: 1 | Z188: 1750000 | AA188: 15750000 | AB188: 11433333 | AC188: 2022-08-19 | AD188: 2022-08-23 | AE188: 2023-06-01 | AF188: 120 | AG188: 1 | AH188: 15 | AM188: Terminado | AN188: 1
A189: 177 | B189: 2022 | C189: FDLCH-CIN-177-2022 | D189: https://community.secop.gov.co/Public/Tendering/OpportunityDetail/Index?noticeUID=CO1.NTC.3017832&isFromPublicArea=True&isModal=true&asPopupView=true | E189: Interventoría | F189: Concurso de méritos | G189: No aplica | H189: Realizar la interventoría técnica administrativa legal, financiera, social, ambental y sistema de seguridad y salud en el trabajo - SG-SST del contrato de obra que se derive de la licitación pública o la que haga sus veces que refiere a ejecutar a monto agotable por precios unitarios fijos obras y actividades para la conservación de la infraestructura víal, urbana de la Localidad de Chapinero, en Bogotá D.C. | I189: Inversión | J189: Un nuevo contrato social y ambiental para la Bogotá del Siglo XXI | K189: 49 | L189: =IF(ISERROR(VLOOKUP(K189,[2]Proposito_programa!$C$2:$E$59,2,FALSE))," ",VLOOKUP(K189,[2]Proposito_programa!$C$2:$E$59,2,FALSE)) -> Movilidad segura, sostenible y accesible | M189: =IF(ISERROR(VLOOKUP(K189,[2]Proposito_programa!$C$2:$E$59,3,FALSE))," ",VLOOKUP(K189,[2]Proposito_programa!$C$2:$E$59,3,FALSE)) -> Propósito 4: Hacer de Bogotá Región un modelo de movilidad multimodal, incluyente y sostenible | N189: 1734 | O189: 7 | P189: 900644351 | Q189: CONSULTORES DONOVAN SAS | R189: Persona Jurídica | W189: 548402175 | X189: 0 | AA189: 548402175 | AB189: 0 | AC189: 2022-08-17 | AD189: 2022-08-31 | AE189: 2023-03-29 | AF189: 210 | AM189: En ejecución | AN189: 0.8
A190: 178 | B190: 2022 | C190: FDLCH-CPS-178-2022 | D190: https://community.secop.gov.co/Public/Tendering/OpportunityDetail/Index?noticeUID=CO1.NTC.3183687&isFromPublicArea=True&isModal=true&asPopupView=true | E190: Contratos de prestación de servicios profesionales y de apoyo a la gestión | F190: Contratación directa | G190: Prestación de servicios profesionales y de apoyo a la gestión, o para la ejecución de trabajos artísticos que sólo puedan encomendarse a determinadas personas naturales | H190: prestar los servicios profesionales para coordinar la articulación asistencia y acompañamiento de los procesos de planeación local para la promoción de la participación de las mujeres y de la equidad de género para materializar en la localidad las estrategias de territorialización y transversalización de la política pública de mujeres y equidad de género, ppmyeg. | I190: Inversión | J190: Un nuevo contrato social y ambiental para la Bogotá del Siglo XXI | K190: 40 | L190: =IF(ISERROR(VLOOKUP(K190,[2]Proposito_programa!$C$2:$E$59,2,FALSE))," ",VLOOKUP(K190,[2]Proposito_programa!$C$2:$E$59,2,FALSE)) -> Más mujeres viven una vida libre de violencias, se sienten seguras y acceden con confianza al sistema de justicia | M190: =IF(ISERROR(VLOOKUP(K190,[2]Proposito_programa!$C$2:$E$59,3,FALSE))," ",VLOOKUP(K190,[2]Proposito_programa!$C$2:$E$59,3,FALSE)) -> Propósito 3: Inspirar confianza y legitimidad para vivir sin miedo y ser epicentro de cultura ciudadana, paz y reconciliación | N190: 2035 | P190: 53108000 | Q190: LEIDY VIVIANA ORTIZ GUEVARA | R190: Persona Natural | W190: 24000000 | X190: 0 | Y190: 1 | Z190: 12000000 | AA190: 36000000 | AB190: 22400000 | AC190: 2022-08-23 | AD190: 2022-08-24 | AE190: 23/02/2023 | AF190: 120 | AG190: 1 | AH190: 60 | AM190: En ejecución | AN190: 0.85
A191: 180 | B191: 2022 | C191: FDLCH-CPS-180-2022 | D191: https://community.secop.gov.co/Public/Tendering/OpportunityDetail/Index?noticeUID=CO1.NTC.3194455&isFromPublicArea=True&isModal=true&asPopupView=true | E191: Contratos de prestación de servicios profesionales y de apoyo a la gestión | F191: Contratación directa | G191: Prestación de servicios profesionales y de apoyo a la gestión, o para la ejecución de trabajos artísticos que sólo puedan encomendarse a determinadas personas naturales | H191: Prestar los servicios profesionales de apoyo al área de gestión del desarrollo local en los procesos de estructuración y seguimiento del proceso de planeación local desarrollando actividades relacionadas con la formulación, seguimiento, terminación y cierre de proyectos de inversión así como el fortalecimiento y promoción de la participación ciudadana. | I191: Inversión | J191: Un nuevo contrato social y ambiental para la Bogotá del Siglo XXI | K191: 57 | L191: =IF(ISERROR(VLOOKUP(K191,[2]Proposito_programa!$C$2:$E$59,2,FALSE))," ",VLOOKUP(K191,[2]Proposito_programa!$C$2:$E$59,2,FALSE)) -> Gestión pública local | M191: =IF(ISERROR(VLOOKUP(K191,[2]Proposito_programa!$C$2:$E$59,3,FALSE))," ",VLOOKUP(K191,[2]Proposito_programa!$C$2:$E$59,3,FALSE)) -> Propósito 5: Construir Bogotá - Región con gobierno abierto, transparente y ciudadanía consciente | N191: 1741 | P191: 1032489616 | Q191: MARIA CAMILA FARFAN LEYVA | R191: Persona Natural | W191: 26000000 | X191: 0 | Y191: 1 | Z191: 13000000 | AA191: 39000000 | AB191: 23833333 | AC191: 2022-08-25 | AD191: 2022-08-26 | AE191: 2023-02-25 | AF191: 120 | AG191: 1 | AH191: 60 | AM191: En ejecución | AN191: 0.9
A192: 181 | B192: 2022 | C192: FDLCH-CPS-181-2022 | D192: https://community.secop.gov.co/Public/Tendering/OpportunityDetail/Index?noticeUID=CO1.NTC.3188758&isFromPublicArea=True&isModal=true&asPopupView=true | E192: Contratos de prestación de servicios profesionales y de apoyo a la gestión | F192: Contratación directa | G192: Prestación de servicios profesionales y de apoyo a la gestión, o para la ejecución de trabajos artísticos que sólo puedan encomendarse a determinadas personas naturales | H192: Prestar servicios profesionales para apoyar la formulación, ejecución, seguimiento y menjora continua de las herramientas que conforman la gestión ambiental institucional de la Alcaldía Local de Chapinero. | I192: Inversión | J192: Un nuevo contrato social y ambiental para la Bogotá del Siglo XXI | K192: 57 | L192: =IF(ISERROR(VLOOKUP(K192,[2]Proposito_programa!$C$2:$E$59,2,FALSE))," ",VLOOKUP(K192,[2]Proposito_programa!$C$2:$E$59,2,FALSE)) -> Gestión pública local | M192: =IF(ISERROR(VLOOKUP(K192,[2]Proposito_programa!$C$2:$E$59,3,FALSE))," ",VLOOKUP(K192,[2]Proposito_programa!$C$2:$E$59,3,FALSE)) -> Propósito 5: Construir Bogotá - Región con gobierno abierto, transparente y ciudadanía consciente | N192: 1741 | P192: 79748591 | Q192: HARVY ZURITH BARRIOS LOPEZ | R192: Persona Natural | W192: 18400000 | X192: 0 | AA192: 18400000 | AB192: 13953333 | AC192: 2022-08-24 | AD192: 2022-08-30 | AE192: 2022-12-29 | AF192: 120 | AM192: Terminado | AN192: 1
A193: 182 | B193: 2022 | C193: FDLCH-CIA-182-2022 | D193: https://community.secop.gov.co/Public/Tendering/OpportunityDetail/Index?noticeUID=CO1.NTC.3197922&isFromPublicArea=True&isModal=true&asPopupView=true | E193: Convenios/Contratos interadministrativos | F193: Contratación directa | G193: Contratos interadministrativos | H193: Aunar esfuerzos técnicos, administrativos, jurídicos y financieros entre la Agencia Distrital para la Educación Superior, la Ciencia y la Tecnología - Atenea y el Fondo de Desarrollo Local de Chapinero para la implementación de un nuevo modelo inclusivo, eficiente y flexible para el acceso y la permanencia de las y los jóvenes egresados de instituciones de educación media a programas de educación superior y posmedia | I193: Inversión | J193: Un nuevo contrato social y ambiental para la Bogotá del Siglo XXI | K193: 17 | L193: =IF(ISERROR(VLOOKUP(K193,[2]Proposito_programa!$C$2:$E$59,2,FALSE))," ",VLOOKUP(K193,[2]Proposito_programa!$C$2:$E$59,2,FALSE)) -> Jóvenes con capacidades: Proyecto de vida para la ciudadanía, la innovación y el trabajo del siglo XXI | M193: =IF(ISERROR(VLOOKUP(K193,[2]Proposito_programa!$C$2:$E$59,3,FALSE))," ",VLOOKUP(K193,[2]Proposito_programa!$C$2:$E$59,3,FALSE)) -> Propósito 1: Hacer un nuevo contrato social para incrementar la inclusión social, productiva y política | N193: 1743 | P193: 901508361 | Q193: AGENCIA DISTRITAL PARA LA EDUCACION SUPERIOR, LA CIENCIA Y LA TECNOLOGIA, ATENEA | R193: Persona Jurídica | W193: 1153434000 | X193: 0 | AA193: 1153434000 | AB193: 1153434000 | AC193: 2022-08-26 | AD193: 2022-08-31 | AE193: 2028-06-30 | AF193: 150 | AM193: En ejecución | AN193: 0.4
A194: 183 | B194: 2022 | C194: FDLCH-CPS-183-2022 | D194: https://community.secop.gov.co/Public/Tendering/OpportunityDetail/Index?noticeUID=CO1.NTC.3215794&isFromPublicArea=True&isModal=true&asPopupView=true | E194: Contratos de prestación de servicios profesionales y de apoyo a la gestión | F194: Contratación directa | G194: Prestación de servicios profesionales y de apoyo a la gestión, o para la ejecución de trabajos artísticos que sólo puedan encomendarse a determinadas personas naturales | H194: Prestación de servicios profesionales para la atención integral y apoyo en el manejo de gestión administrativa de las actuaciones de inspección, vigilancia y control competencia de la Alcaldía Local de Chapinero. | I194: Inversión | J194: Un nuevo contrato social y ambiental para la Bogotá del Siglo XXI | K194: 57 | L194: =IF(ISERROR(VLOOKUP(K194,[2]Proposito_programa!$C$2:$E$59,2,FALSE))," ",VLOOKUP(K194,[2]Proposito_programa!$C$2:$E$59,2,FALSE)) -> Gestión pública local | M194: =IF(ISERROR(VLOOKUP(K194,[2]Proposito_programa!$C$2:$E$59,3,FALSE))," ",VLOOKUP(K194,[2]Proposito_programa!$C$2:$E$59,3,FALSE)) -> Propósito 5: Construir Bogotá - Región con gobierno abierto, transparente y ciudadanía consciente | N194: 1841 | P194: 52533394 | Q194: MARICELA PALACIO RODRIGUEZ | R194: Persona Natural | W194: 21200000 | X194: 0 | Y194: 1 | Z194: 10600000 | AA194: 31800000 | AB194: 18726667 | AC194: 2022-08-31 | AD194: 2022-08-31 | AE194: 2023-02-28 | AF194: 120 | AG194: 1 | AH194: 60 | AM194: En ejecución | AN194: 0.85
A195: 185 | B195: 2022 | C195: FDLCH-CPS-185-2022 | D195: https://community.secop.gov.co/Public/Tendering/OpportunityDetail/Index?noticeUID=CO1.NTC.3229526&isFromPublicArea=True&isModal=true&asPopupView=true | E195: Contratos de prestación de servicios profesionales y de apoyo a la gestión | F195: Contratación directa | G195: Prestación de servicios profesionales y de apoyo a la gestión, o para la ejecución de trabajos artísticos que sólo puedan encomendarse a determinadas personas naturales | H195: Prestar servicios de apoyo a la gestión para asistir administrativamente al área de gestión del desarrollo de la Alcaldía Local de Chapinero. | I195: Inversión | J195: Un nuevo contrato social y ambiental para la Bogotá del Siglo XXI | K195: 57 | L195: =IF(ISERROR(VLOOKUP(K195,[2]Proposito_programa!$C$2:$E$59,2,FALSE))," ",VLOOKUP(K195,[2]Proposito_programa!$C$2:$E$59,2,FALSE)) -> Gestión pública local | M195: =IF(ISERROR(VLOOKUP(K195,[2]Proposito_programa!$C$2:$E$59,3,FALSE))," ",VLOOKUP(K195,[2]Proposito_programa!$C$2:$E$59,3,FALSE)) -> Propósito 5: Construir Bogotá - Región con gobierno abierto, transparente y ciudadanía consciente | N195: 1741 | P195: 1010182229 | Q195: JONNATHAN EDGARDO SANCHEZ MONTAÑA | R195: Persona Natural | W195: 10908000 | X195: 0 | Y195: 1 | Z195: 5454000 | AA195: 16362000 | AB195: 9453600 | AC195: 2022-09-02 | AD195: 2022-09-02 | AE195: 2023-03-01 | AF195: 120 | AG195: 1 | AH195: 60 | AM195: En ejecución | AN195: 0.8
A196: 186 | B196: 2022 | C196: FDLCH-CPS-186-2022 | D196: https://community.secop.gov.co/Public/Tendering/OpportunityDetail/Index?noticeUID=CO1.NTC.3237323&isFromPublicArea=True&isModal=true&asPopupView=true | E196: Contratos de prestación de servicios profesionales y de apoyo a la gestión | F196: Contratación directa | G196: Prestación de servicios profesionales y de apoyo a la gestión, o para la ejecución de trabajos artísticos que sólo puedan encomendarse a determinadas personas naturales | H196: Prestar los servicios profesionales para apoyar el área de gestión del desarrollo loacal de la Alcaldía Local de Chapinero, en la formulación, gestión, ejecución y apoyo a la supervisión de los proyectos relacionados con los temas de salud, en cumplimiento de las metas y objetivos del Plan de Desarrollo Local. | I196: Inversión | J196: Un nuevo contrato social y ambiental para la Bogotá del Siglo XXI | K196: 6 | L196: =IF(ISERROR(VLOOKUP(K196,[2]Proposito_programa!$C$2:$E$59,2,FALSE))," ",VLOOKUP(K196,[2]Proposito_programa!$C$2:$E$59,2,FALSE)) -> Sistema Distrital de Cuidado | M196: =IF(ISERROR(VLOOKUP(K196,[2]Proposito_programa!$C$2:$E$59,3,FALSE))," ",VLOOKUP(K196,[2]Proposito_programa!$C$2:$E$59,3,FALSE)) -> Propósito 1: Hacer un nuevo contrato social para incrementar la inclusión social, productiva y política | N196: 2024 | P196: 52035792 | Q196: ADRIANA MARIA PEÑALOZA TORO | R196: Persona Natural | W196: 18400000 | X196: 0 | Y196: 1 | Z196: 3986568 | AA196: 22386568 | AB196: 12113333 | AC196: 2022-09-08 | AD196: 2022-09-12 | AE196: 2023-06-02 | AF196: 120 | AG196: 1 | AH196: 28 | AM196: En ejecución | AN196: 0.5
A197: 187 | B197: 2022 | C197: FDLCH-CPS-187-2022 | D197: https://community.secop.gov.co/Public/Tendering/OpportunityDetail/Index?noticeUID=CO1.NTC.3236657&isFromPublicArea=True&isModal=true&asPopupView=true | E197: Contratos de prestación de servicios profesionales y de apoyo a la gestión | F197: Contratación directa | G197: Prestación de servicios profesionales y de apoyo a la gestión, o para la ejecución de trabajos artísticos que sólo puedan encomendarse a determinadas personas naturales | H197: Prestar servicios profesionales para apoyar la gestión jurídica en la ejecución de las acciones requeridas para el trámite e impulso procesal de las actuaciones administrativas y de inspección, vigilancia y control de competencia de la Alcaldía Local de Chapinero en cerros orientales, zona de reserva forestal protectora, polígonos de monitoreo, áreas de ocupación pública prioritaria, franja de adecuación y zonas de especial protección ambiental. | I197: Inversión | J197: Un nuevo contrato social y ambiental para la Bogotá del Siglo XXI | K197: 57 | L197: =IF(ISERROR(VLOOKUP(K197,[2]Proposito_programa!$C$2:$E$59,2,FALSE))," ",VLOOKUP(K197,[2]Proposito_programa!$C$2:$E$59,2,FALSE)) -> Gestión pública local | M197: =IF(ISERROR(VLOOKUP(K197,[2]Proposito_programa!$C$2:$E$59,3,FALSE))," ",VLOOKUP(K197,[2]Proposito_programa!$C$2:$E$59,3,FALSE)) -> Propósito 5: Construir Bogotá - Región con gobierno abierto, transparente y ciudadanía consciente | N197: 1841 | P197: 79608642 | Q197: HERBERT JOHNN MARTINEZ BUITRAGO | R197: Persona Natural | W197: 20000000 | X197: 0 | AA197: 20000000 | AB197: 14000000 | AC197: 2022-09-05 | AD197: 2022-09-07 | AE197: 2023-01-06 | AF197: 120 | AM197: Terminado | AN197: 1
A198: 188 | B198: 2022 | C198: FDLCH-CPS-188-2022 | D198: https://community.secop.gov.co/Public/Tendering/OpportunityDetail/Index?noticeUID=CO1.NTC.3237018&isFromPublicArea=True&isModal=true&asPopupView=true | E198: Contratos de prestación de servicios profesionales y de apoyo a la gestión | F198: Contratación directa | G198: Prestación de servicios profesionales y de apoyo a la gestión, o para la ejecución de trabajos artísticos que sólo puedan encomendarse a determinadas personas naturales | H198: Prestar servicios de apoyo a la gestión al área de gestión del desarrollo local en las actividades y estrategias de fomento y promoción de la reactivación económica local, el fortalecimiento de los emprendimientos y de las pequeñas y medianas empresas locales | I198: Inversión | J198: Un nuevo contrato social y ambiental para la Bogotá del Siglo XXI | K198: 6 | L198: =IF(ISERROR(VLOOKUP(K198,[2]Proposito_programa!$C$2:$E$59,2,FALSE))," ",VLOOKUP(K198,[2]Proposito_programa!$C$2:$E$59,2,FALSE)) -> Sistema Distrital de Cuidado | M198: =IF(ISERROR(VLOOKUP(K198,[2]Proposito_programa!$C$2:$E$59,3,FALSE))," ",VLOOKUP(K198,[2]Proposito_programa!$C$2:$E$59,3,FALSE)) -> Propósito 1: Hacer un nuevo contrato social para incrementar la inclusión social, productiva y política | N198: 1671 | P198: 1023938082 | Q198: BONNER YESID HERNANDEZ BENITO | R198: Persona Natural | W198: 10000000 | X198: 0 | Y198: 1 | Z198: 416666 | AA198: 10416666 | AB198: 8333333 | AC198: 2022-09-05 | AD198: 2022-09-06 | AE198: 2023-01-10 | AF198: 120 | AG198: 1 | AH198: 5 | AM198: En ejecución | AN198: 0.95
A199: 189 | B199: 2022 | C199: FDLCH-CPS-189-2022 | D199: https://community.secop.gov.co/Public/Tendering/OpportunityDetail/Index?noticeUID=CO1.NTC.3250540&isFromPublicArea=True&isModal=true&asPopupView=true | E199: Contratos de prestación de servicios profesionales y de apoyo a la gestión | F199: Contratación directa | G199: Prestación de servicios profesionales y de apoyo a la gestión, o para la ejecución de trabajos artísticos que sólo puedan encomendarse a determinadas personas naturales | H199: Prestar los servicios técnicos de apoyo a la gestión, acciones administrativas y seguimiento de las actividades derivadas del proyecto de inversión "Chapinero modelo de movilidad inteligente" | I199: Inversión | J199: Un nuevo contrato social y ambiental para la Bogotá del Siglo XXI | K199: 49 | L199: =IF(ISERROR(VLOOKUP(K199,[2]Proposito_programa!$C$2:$E$59,2,FALSE))," ",VLOOKUP(K199,[2]Proposito_programa!$C$2:$E$59,2,FALSE)) -> Movilidad segura, sostenible y accesible | M199: =IF(ISERROR(VLOOKUP(K199,[2]Proposito_programa!$C$2:$E$59,3,FALSE))," ",VLOOKUP(K199,[2]Proposito_programa!$C$2:$E$59,3,FALSE)) -> Propósito 4: Hacer de Bogotá Región un modelo de movilidad multimodal, incluyente y sostenible | N199: 1734 | P199: 1020794388 | Q199: GINA PAOLA JIMENEZ CONTRERAS | R199: Persona Natural | W199: 12792000 | X199: 0 | Y199: 1 | Z199: 6396000 | AA199: 19188000 | AB199: 10340200 | AC199: 2022-09-07 | AD199: 2022-09-09 | AE199: 2023-08-03 | AF199: 120 | AG199: 1 | AH199: 60 | AM199: En ejecución | AN199: 0.5
A200: 190 | B200: 2022 | C200: FDLCH-CPS-190-2022 | D200: https://community.secop.gov.co/Public/Tendering/OpportunityDetail/Index?noticeUID=CO1.NTC.3250569&isFromPublicArea=True&isModal=true&asPopupView=true | E200: Contratos de prestación de servicios profesionales y de apoyo a la gestión | F200: Contratación directa | G200: Prestación de servicios profesionales y de apoyo a la gestión, o para la ejecución de trabajos artísticos que sólo puedan encomendarse a determinadas personas naturales | H200: Prestar servicios profesionales para la gestión, desarrollo y seguimiento del proyecto de inversión " CHAPINERO ESPACIO PARA HÁBITOS SALUDABLES" | I200: Inversión | J200: Un nuevo contrato social y ambiental para la Bogotá del Siglo XXI | K200: 33 | L200: =IF(ISERROR(VLOOKUP(K200,[2]Proposito_programa!$C$2:$E$59,2,FALSE))," ",VLOOKUP(K200,[2]Proposito_programa!$C$2:$E$59,2,FALSE)) -> Más árboles y más y mejor espacio público | M200: =IF(ISERROR(VLOOKUP(K200,[2]Proposito_programa!$C$2:$E$59,3,FALSE))," ",VLOOKUP(K200,[2]Proposito_programa!$C$2:$E$59,3,FALSE)) -> Propósito 2 : Cambiar Nuestros Hábitos de Vida para Reverdecer a Bogotá y Adaptarnos y Mitigar la Crisis Climática | N200: 1723 | P200: 1032445959 | Q200: MARIA ALEJANDRA JIMENEZ AUCIQUE | R200: Persona Natural | W200: 18760000 | Y200: 1 | Z200: 9380000 | AA200: 28140000 | AB200: 14695333 | AC200: 2022-09-07 | AD200: 2022-09-12 | AE200: 2023-03-11 | AF200: 120 | AG200: 1 | AH200: 60 | AM200: En ejecución | AN200: 0.8
A201: 191 | B201: 2022 | C201: FDLCH-CPS-191-2022 | D201: https://community.secop.gov.co/Public/Tendering/OpportunityDetail/Index?noticeUID=CO1.NTC.3248406&isFromPublicArea=True&isModal=true&asPopupView=true | E201: Contratos de prestación de servicios profesionales y de apoyo a la gestión | F201: Contratación directa | G201: Prestación de servicios profesionales y de apoyo a la gestión, o para la ejecución de trabajos artísticos que sólo puedan encomendarse a determinadas personas naturales | H201: Prestar servicios de apoyo a la gestión en la ejecución de las actividades administrativas y documentales relacionadas con la gestión policiva en la Alcaldía Local de Chapinero. | I201: Inversión | J201: Un nuevo contrato social y ambiental para la Bogotá del Siglo XXI | K201: 57 | L201: =IF(ISERROR(VLOOKUP(K201,[2]Proposito_programa!$C$2:$E$59,2,FALSE))," ",VLOOKUP(K201,[2]Proposito_programa!$C$2:$E$59,2,FALSE)) -> Gestión pública local | M201: =IF(ISERROR(VLOOKUP(K201,[2]Proposito_programa!$C$2:$E$59,3,FALSE))," ",VLOOKUP(K201,[2]Proposito_programa!$C$2:$E$59,3,FALSE)) -> Propósito 5: Construir Bogotá - Región con gobierno abierto, transparente y ciudadanía consciente | N201: 1841 | P201: 101643505 | Q201: CRISTIAN OSWALDO LAITON VARGAS | R201: Persona Natural | W201: 8800000 | X201: 0 | AA201: 8800000 | AB201: 7186667 | AC201: 2022-09-07 | AD201: 2022-09-08 | AE201: 2023-01-07 | AF201: 120 | AM201: Terminado | AN201: 1
A202: 192 | B202: 2022 | C202: FDLCH-CPS-192-2022 | D202: https://community.secop.gov.co/Public/Tendering/OpportunityDetail/Index?noticeUID=CO1.NTC.3254730&isFromPublicArea=True&isModal=true&asPopupView=true | E202: Contratos de prestación de servicios profesionales y de apoyo a la gestión | F202: Contratación directa | G202: Prestación de servicios profesionales y de apoyo a la gestión, o para la ejecución de trabajos artísticos que sólo puedan encomendarse a determinadas personas naturales | H202: Prestar servicios de apoyo técnico para la gestión y ejecución de las actividades administrativas que se adelantan en la Alcaldía Local de Chapinero. | I202: Inversión | J202: Un nuevo contrato social y ambiental para la Bogotá del Siglo XXI | K202: 57 | L202: =IF(ISERROR(VLOOKUP(K202,[2]Proposito_programa!$C$2:$E$59,2,FALSE))," ",VLOOKUP(K202,[2]Proposito_programa!$C$2:$E$59,2,FALSE)) -> Gestión pública local | M202: =IF(ISERROR(VLOOKUP(K202,[2]Proposito_programa!$C$2:$E$59,3,FALSE))," ",VLOOKUP(K202,[2]Proposito_programa!$C$2:$E$59,3,FALSE)) -> Propósito 5: Construir Bogotá - Región con gobierno abierto, transparente y ciudadanía consciente | N202: 1741 | P202: 52603721 | Q202: SANDRA MILENA RODRIGUEZ SASTOQUE | R202: Persona Natural | W202: 8211000 | X202: 0 | Y202: 1 | Z202: 4105500 | AA202: 12316500 | AB202: 8575933 | AC202: 2022-09-08 | AD202: 2022-09-12 | AE202: 2023-01-25 | AF202: 240 | AG202: 1 | AH202: 45 | AM202: En ejecución | AN202: 0.9
... 215 more rows

Sheet BOGDATA VS FORMATO R3
A1: BOGDATA- CUADRO ANALISIS- CHAPINERO
C2: COMPROMISOS ACUMULADOS BOGDATA | D2: VALOR FINAL | E2: ACUMULADO GIROS BOGDATA | F2: GIROS
B3: FUNCIONAMIENTO | C3: 2967215043 | D3: 2292232163 | E3: 2245441934 | F3: 1616461666
B4: DIFERENCIAS | C4: =C3-D3 -> 674982880 | E4: =E3-F3 -> 628980268
B5: INVERSION (Comprometido) | C5: 24296914848 | D5: 24296914848 | E5: 12625638325 | F5: 12625638325
B6: DIFERENCIAS | C6: =C5-D5 -> 0 | E6: =E5-F5 -> 0
B7: Un nuevo contrato social y ambiental para la Bogotá del Siglo XXI | C7: 24296914848 | D7: 24296914848 | E7: 12625638325 | F7: 12625638325
B8: DIFERENCIAS | C8: =C7-D7 -> 0 | E8: =E7-F7 -> 0
B9: Propósito 1 - Hacer un nuevo contrato social con igualdad de oportunidades para la inclusión social, productiva y política | C9: 10947044204 | D9: 11374611204 | E9: 7750383775 | F9: 7750383775
B10: DIFERENCIAS | C10: =C9-D9 -> -427567000 | E10: =E9-F9 -> 0
B11: Subsidios y transferencias para la equidad- Programa 1 | C11: 4219260970 | D11: 4219260970 | E11: 4149404127 | F11: 4149404127
B12: DIFERENCIAS | C12: =C11-D11 -> 0 | E12: =E11-F11 -> 0
B13: Proyecto 1815 | C13: 4219260970 | D13: 4219260970 | E13: 4149404127 | F13: 4149404127
B14: DIFERENCIAS | C14: =C13-D13 -> 0 | E14: =E13-F13 -> 0
B15: Sistema Distrital de Cuidado - Programa 6 | C15: 2754038219 | D15: 2754038219 | E15: 982662438 | F15: 982662438
B16: DIFERENCIAS | C16: =+C15-D15 -> 0 | E16: =+E15-F15 -> 0
B17: Proyecto 1671 | C17: 1400924332 | D17: 1400924332 | E17: 665495105 | F17: 665495105
B18: DIFERENCIAS | C18: =+C17-D17 -> 0 | E18: =+E17-F17 -> 0
B19: Proyecto 1710 | C19: 507645592 | D19: 507645592 | E19: 128543334 | F19: 128543334
B20: DIFERENCIAS | C20: =+C19-D19 -> 0 | E20: =+E19-F19 -> 0
B21: Proyecto 1855 | C21: 243337030 | D21: 243337030 | E21: 53333333 | F21: 53333333
B22: DIFERENCIAS | C22: =+C21-D21 -> 0 | E22: =+E21-F21 -> 0
B23: Proyecto 2024 | C23: 602131265 | D23: 602131265 | E23: 135290666 | F23: 135290666
B24: DIFERENCIAS | C24: =+C23-D23 -> 0 | E24: =+E23-F23 -> 0
B25: Educación inicial: Bases sólidas para la vida - Programa 12 | C25: 556345363 | D25: 556345363 | E25: 177234667 | F25: 177234667
B26: DIFERENCIAS | C26: =+C25-D25 -> 0 | E26: =+E25-F25 -> 0
B27: Proyecto 1830 | C27: 556345363 | D27: 556345363 | E27: 177234667 | F27: 177234667
B28: DIFERENCIAS | C28: =+C27-D27 -> 0 | E28: =+E27-F27 -> 0
B29: Jóvenes con capacidades: Proyecto de vida para la ciudadanía, la innovación y el trabajo del siglo XXI - Programa 17 | C29: 1259034000 | D29: 1259034000 | E29: 1250074000 | F29: 1250074000
B30: DIFERENCIAS | C30: =+C29-D29 -> 0 | E30: =+E29-F29 -> 0
B31: Proyecto 1743 | C31: 1259034000 | D31: 1259034000 | E31: 1250074000 | F31: 1250074000
B32: DIFERENCIAS | C32: =+C31-D31 -> 0 | E32: =+E31-F31 -> 0
B33: Bogotá, referente en cultura, deporte, recreación y actividad física, con parques para el desarrollo y la salud - Programa 20 | C33: 628481475 | D33: 628481475 | E33: 194000197 | F33: 194000197
B34: DIFERENCIAS | C34: =+C33-D33 -> 0 | E34: =+E33-F33 -> 0
B35: Proyecto 1845 | C35: 628481475 | D35: 628481475 | E35: 194000197 | F35: 194000197
B36: DIFERENCIAS | C36: =+C35-D35 -> 0 | E36: =+E35-F35 -> 0
B37: Creación y vida cotidiana: Apropiación ciudadana del arte, la cultura y el patrimonio, para la democracia cultural - Programa 21 | C37: 976916265 | D37: 976916265 | E37: 860185013 | F37: 860185013
B38: DIFERENCIAS | C38: =+C37-D37 -> 0 | E38: =+E37-F37 -> 0
B39: Proyecto 1848 | C39: 976916265 | D39: 976916265 | E39: 860185013 | F39: 860185013
B40: DIFERENCIAS | C40: =+C39-D39 -> 0 | E40: =+E39-F39 -> 0
B41: Bogotá rural - Programa 23 | C41: 292967912 | D41: 292967912 | E41: 67090000 | F41: 67090000
B42: DIFERENCIAS | C42: =+C41-D41 -> 0 | E42: =+E41-F41 -> 0
B43: Proyecto 1827 | C43: 292967912 | D43: 292967912 | E43: 67090000 | F43: 67090000
B44: DIFERENCIAS | C44: =+C43-D43 -> 0 | E44: =+E43-F43 -> 0
B45: Bogotá región emprendedora e innovadora - Programa 24 | C45: 260000000 | D45: 260000000 | E45: 69733333 | F45: 69733333
B46: DIFERENCIAS | C46: =+C45-D45 -> 0 | E46: =+E45-F45 -> 0
B47: Proyecto 1631 | C47: 260000000 | D47: 260000000 | E47: 69733333 | F47: 69733333
B48: DIFERENCIAS | C48: =+C47-D47 -> 0 | E48: =+E47-F47 -> 0
B49: Propósito 2 - Cambiar nuestros hábitos de vida para reverdecer a Bogotá y adaptarnos y mitigar la crisis climática | C49: 1677325093 | D49: 1677325093 | E49: 471396801 | F49: 471396801
B50: DIFERENCIAS | C50: =+C49-D49 -> 0 | E50: =+E49-F49 -> 0
B51: Cambio cultural para la gestión de la crisis climática - Programa 27 | C51: 246329000 | D51: 246329000 | E51: 75016667 | F51: 75016667
B52: DIFERENCIAS | C52: =+C51-D51 -> 0 | E52: =+E51-F51 -> 0
B53: Proyecto 7212 | C53: 246329000 | D53: 246329000 | E53: 75016667 | F53: 75016667
B54: DIFERENCIAS | C54: =+C53-D53 -> 0 | E54: =+E53-F53 -> 0
B55: Bogotá protectora de sus recursos naturales - Programa 28 | C55: 252000000 | D55: 252000000 | E55: 73600000 | F55: 73600000
B56: DIFERENCIAS | C56: =+C55-D55 -> 0 | E56: =+E55-F55 -> 0
B57: Proyecto 1715 | C57: 252000000 | D57: 252000000 | E57: 73600000 | F57: 73600000
B58: DIFERENCIAS | C58: =+C57-D57 -> 0 | E58: =+E57-F57 -> 0
B59: Eficiencia en la atención de emergencias - Programa 30 | C59: 290907320 | D59: 290907320 | E59: 81040000 | F59: 81040000
B60: DIFERENCIAS | C60: =+C59-D59 -> 0 | E60: =+E59-F59 -> 0
B61: Proyecto 1719 | C61: 290907320 | D61: 290907320 | E61: 81040000 | F61: 81040000
B62: DIFERENCIAS | C62: =+C61-D61 -> 0 | E62: =+E61-F61 -> 0
B63: Más árboles y más y mejor espacio público - Programa 33 | C63: 255230073 | D63: 255230073 | E63: 85178667 | F63: 85178667
B64: DIFERENCIAS | C64: =+C63-D63 -> 0 | E64: =+E63-F63 -> 0
B65: Proyecto 1723 | C65: 255230073 | D65: 255230073 | E65: 85178667 | F65: 85178667
B66: DIFERENCIAS | C66: =+C65-D65 -> 0 | E66: =+E65-F65 -> 0
B67: Bogotá protectora de los animales - Programa 34 | C67: 399929700 | D67: 399929700 | E67: 92378133 | F67: 92378133
B68: DIFERENCIAS | C68: =+C67-D67 -> 0 | E68: =+E67-F67 -> 0
B69: Proyecto 1731 | C69: 399929700 | D69: 399929700 | E69: 92378133 | F69: 92378133
B70: DIFERENCIAS | C70: =+C69-D69 -> 0 | E70: =+E69-F69 -> 0
B71: Ecoeficiencia, reciclaje, manejo de residuos e inclusión de la población recicladora - Programa 38 | C71: 232929000 | D71: 232929000 | E71: 64183334 | F71: 64183334
B72: DIFERENCIAS | C72: =+C71-D71 -> 0 | E72: =+E71-F71 -> 0
B73: Proyecto 1728 | C73: 232929000 | D73: 232929000 | E73: 64183334 | F73: 64183334
B74: DIFERENCIAS | C74: =+C73-D73 -> 0 | E74: =+E73-F73 -> 0
B75: Propósito 3 - Inspirar confianza y legitimidad para vivir sin miedo y ser epicentro de cultura ciudadana, paz y reconciliación | C75: 1945755345 | D75: 1518188345 | E75: 540812267 | F75: 540812267
B76: DIFERENCIAS | C76: =+C75-D75 -> 427567000 | E76: =+E75-F75 -> 0
B77: Bogotá territorio de paz y atención integral a las víctimas del conflicto armado - Programa 39 | C77: 243991908 | D77: 243991908 | E77: 73675334 | F77: 73675334
